Workbook

Sheet Centre of Mass
E1: Upper Limb - Centre of Mass
E3: Explore how anthropometric and body segment parameters affect the
E4: position of the centre of mass (CoM) using the white cells
E5: *Macros must be enabled to use buttons*
B7: Subject Characteristics | E7: Range | F7: =IF(COUNT(F8:F11)>0,"Corrected","") ->  | G7: Display Options | J7: Default | K7: Check | L7: Scale | M7: Min | N7: Max | P7: Step | Q7: New | R7: Check
B8: Arm Length | C8: 0.33 | D8: m | E8: =_xlfn.TEXTJOIN(,,"(",TEXT(M8,"0.00")," - ",TEXT(N8,"0.00"),")") -> (0.20 - 0.40) | F8: =IF(C8=K8,"",K8) ->  | J8: 0.33 | K8: =IF(ISNUMBER(C8),IF(C8<M8,M8,IF(C8>N8,N8,C8)),J8) -> 0.33 | L8: =K8/J8 -> 1 | M8: 0.2 | N8: 0.4 | P8: 0.02 | Q8: =K8+P8 -> 0.35 | R8: =ROUND(IF(Q8<M8,M8,IF(Q8>N8,N8,Q8)),3) -> 0.35
B9: Forearm Length | C9: 0.26 | D9: m | E9: =_xlfn.TEXTJOIN(,,"(",TEXT(M9,"0.00")," - ",TEXT(N9,"0.00"),")") -> (0.15 - 0.35) | F9: =IF(C9=K9,"",K9) ->  | G9: Joint Coord | H9: Yes | J9: 0.26 | K9: =IF(ISNUMBER(C9),IF(C9<M9,M9,IF(C9>N9,N9,C9)),J9) -> 0.26 | L9: =K9/J9 -> 1 | M9: 0.15 | N9: 0.35 | P9: 0.02 | Q9: =K9+P9 -> 0.28 | R9: =ROUND(IF(Q9<M9,M9,IF(Q9>N9,N9,Q9)),3) -> 0.28
B10: Body Mass | C10: 81 | D10: kg | E10: ( > 0 ) | F10: =IF(C10=K10,"",K10) ->  | G10: System CoM | H10: No | J10: 81 | K10: =IF(IF(ISNUMBER(C10),IF(C10>0,C10)),C10,J10) -> 81 | M10: 0 | P10: 5 | Q10: =K10+P10 -> 86 | R10: =ROUND(IF(Q10<=5,1,Q10),1) -> 86
B11: Mass in Hand | C11: 0 | D11: kg | E11: ( ≥ 0 ) | F11: =IF(C11=K11,"",K11) ->  | G11: Segment CoM | H11: Yes | J11: 0 | K11: =IF(IF(ISNUMBER(C11),IF(C11>=0,C11)),C11,J11) -> 0 | M11: 0 | P11: 1 | Q11: =K11+P11 -> 1 | R11: =ROUND(IF(Q11<M11,M11,Q11),1) -> 1
B12: =IF((K8+K9) > 0.7,"Go, Go, Gadget arm!","") -> 
B13: Body Segment Parameters | F13: =IF(COUNT(F15:F20)>0,"Corrected","") ->  | U13: Weight | V13: CoM Position (m)
B14: Segment Mass (relative to body mass) | G14: Segment Mass | J14: Default | K14: Check | M14: Min | N14: Max | U14: (N) | V14: X | W14: Y
B15: Arm | C15: 0.028 | E15: =_xlfn.TEXTJOIN(,,"(",TEXT(M15,"0")," - ",TEXT(N15,"0"),")") -> (0 - 1) | F15: =IF(C15=K15,"",K15) ->  | G15: =_xlfn.TEXTJOIN(" ",,TEXT(K15*$K$10,"0.00"),"kg") -> 2.27 kg | J15: 0.028 | K15: =IF(ISNUMBER(C15),IF(C15<M15,M15,IF(C15>N15,N15,C15)),J15) -> 0.028 | M15: 0 | N15: 1 | P15: 0.01 | Q15: =K15+P15 -> 0.038 | R15: =ROUND(IF(Q15<M15,M15,IF(Q15>N15,N15,Q15)),3) -> 0.038 | T15: System | U15: =SUM(U17:U19) -> 39.73 | V15: =IF($K$11>0,(($K$15*$K$10*$V17)+($K$16*$K$10*$V18)+($K$11*$V19)) / ($K$10*($K$15+$K$16)+$K$11),($K$15*$V17+$K$16*$V18)/($K$15+$K$16)) -> 0.22 | W15: =IF($K$11>0,(($K$15*$K$10*$W17)+($K$16*$K$10*$W18)+($K$11*$W19)) / ($K$10*($K$15+$K$16)+$K$11),($K$15*$W17+$K$16*$W18)/($K$15+$K$16)) -> -0.16
B16: Forearm | C16: 0.022 | E16: =_xlfn.TEXTJOIN(,,"(",TEXT(M16,"0")," - ",TEXT(N16,"0"),")") -> (0 - 1) | F16: =IF(C16=K16,"",K16) ->  | G16: =_xlfn.TEXTJOIN(" ",,TEXT(K16*$K$10,"0.00"),"kg") -> 1.78 kg | J16: 0.022 | K16: =IF(ISNUMBER(C16),IF(C16<M16,M16,IF(C16>N16,N16,C16)),J16) -> 0.022 | M16: 0 | N16: 1 | P16: 0.01 | Q16: =K16+P16 -> 0.032 | R16: =ROUND(IF(Q16<M16,M16,IF(Q16>N16,N16,Q16)),3) -> 0.032
T17: Arm | U17: =K10*K15*9.81 -> 22.25 | V17: =(G24-G23)*$K19+G23 -> 0.09 | W17: =(H24-H23)*$K19+H23 -> -0.11
B18: CoM Location (relative to segment length) | G18: Distance from Proximal Joint | J18: Default | K18: Check | T18: Forearm | U18: =K10*K16*9.81 -> 17.48 | V18: =(G25-G24)*$K20+G24 -> 0.39 | W18: =(H25-H24)*$K20+H24 -> -0.22
B19: Arm | C19: 0.436 | E19: =_xlfn.TEXTJOIN(,,"(",TEXT(M19,"0")," - ",TEXT(N19,"0"),")") -> (0 - 1) | F19: =IF(C19=K19,"",K19) ->  | G19: =_xlfn.TEXTJOIN(" ",,TEXT(K19*K8*100,"0.00"),"cm") -> 14.39 cm | J19: 0.436 | K19: =IF(ISNUMBER(C19),IF(C19<M19,M19,IF(C19>N19,N19,C19)),J19) -> 0.436 | M19: 0 | N19: 1 | P19: 0.05 | Q19: =K19+P19 -> 0.486 | R19: =ROUND(IF(Q19<M19,M19,IF(Q19>N19,N19,Q19)),3) -> 0.486 | T19: Mass in Hand | U19: =IF(K11>0,K11*9.81,"") ->  | V19: =IF($K$11 > 0,(IMREAL(M24)*0.12)*0.5+G25,"") ->  | W19: =IF($K$11>0,(IMAGINARY(M24)*0.12)*0.5+H25,"") -> 
B20: Forearm | C20: 0.682 | E20: =_xlfn.TEXTJOIN(,,"(",TEXT(M20,"0")," - ",TEXT(N20,"0"),")") -> (0 - 1) | F20: =IF(C20=K20,"",K20) ->  | G20: =_xlfn.TEXTJOIN(" ",,TEXT(K20*K9*100,"0.00"),"cm") -> 17.73 cm | J20: 0.682 | K20: =IF(ISNUMBER(C20),IF(C20<M20,M20,IF(C20>N20,N20,C20)),J20) -> 0.682 | M20: 0 | N20: 1 | P20: 0.05 | Q20: =K20+P20 -> 0.732 | R20: =ROUND(IF(Q20<M20,M20,IF(Q20>N20,N20,Q20)),3) -> 0.732
B21: =IF(C15+C16>1,"Caution: Mass of Arm + Forearm exceeds body mass","") -> 
B22: Joint Angles | F22: =IF(COUNT(F23:F24)>0,"Corrected","") ->  | G22: Joint Coordinates (m) | J22: Default | K22: Relative | L22: Absolute | M22: Orientation Vector | N22: Min | O22: Max | T22: Designed and created by
B23: Shoulder | C23: 40 | D23: ° | E23: =_xlfn.TEXTJOIN(,,"(",TEXT(N23,"0")," - ",TEXT(O23,"0"),")") -> (-30 - 120) | F23: =IF(C23=K23,"",K23) ->  | G23: 0.00 | H23: 0.00 | J23: 40 | K23: =IF(ISNUMBER(C23),IF(C23<N23,N23,IF(C23>O23,O23,C23)),J23) -> 40 | L23: =-90+K23 -> -50 | M23: =COMPLEX(COS((L23)*PI()/180),SIN((L23)*PI()/180)) -> 0.642787609686539-0.766044443118978i | N23: -30 | O23: 120 | P23: 5 | Q23: =K23+P23 -> 45 | R23: =ROUND(IF(Q23<N23,N23,IF(Q23>O23,O23,Q23)),3) -> 45 | T23: Derek Zwambag, PhD
B24: Elbow | C24: 120 | D24: ° | E24: =_xlfn.TEXTJOIN(,,"(",TEXT(N24,"0")," - ",TEXT(O24,"0"),")") -> (30 - 180) | F24: =IF(C24=K24,"",K24) ->  | G24: =IMREAL(M23)*K8+G23 -> 0.21 | H24: =IMAGINARY(M23)*K8+H23 -> -0.25 | J24: 120 | K24: =IF(ISNUMBER(C24),IF(C24<N24,N24,IF(C24>O24,O24,C24)),J24) -> 120 | L24: =180+L23-K24 -> 10 | M24: =COMPLEX(COS((L24)*PI()/180),SIN((L24)*PI()/180)) -> 0.984807753012208+0.17364817766693i | N24: 30 | O24: 180 | P24: 5 | Q24: =K24-P24 -> 115 | R24: =ROUND(IF(Q24<N24,N24,IF(Q24>O24,O24,Q24)),3) -> 115 | T24: Postdoctoral Fellow - Wilfrid Laurier University
B25: Wrist | C25: 180 | D25: ° | G25: =IMREAL(M24)*K9+G24 -> 0.47 | H25: =IMAGINARY(M24)*K9+H24 -> -0.21 | T25: dzwambag@wlu.ca
T26: 2019-06-20
B27: Mass in hand is assumed to be 6 cm from wrist | F27: Mass of hand is included in forearm mass | T27: Version 1.1
B28: Suggestion: You can use your height to estimate your arm (H x 0.186) and forearm length (H x 0.146)
B29: Default body segment parameters are from Dempster as reported in Winter (1990) "Biomechanics and motor control of human movement"
AK30: Bones that need length Scaling
AL31: Original Length | AM31: 0.33 | AO31: 0.26 | AQ31: 0.26
AL32: Target Length | AM32: =K8 -> 0.33 | AO32: =K9 -> 0.26 | AQ32: =AO32 -> 0.26
AL33: Prox trans | AM33: -0.05 | AO33: -0.407 | AQ33: -0.407 | AS33: Bone Rotation
AL34: Med trans | AM34: -0.27 | AO34: -0.55 | AQ34: -0.55
AL35: Mid Length | AM35: =AM33-AM34 -> 0.22 | AO35: =AO33-AO34 -> 0.143 | AQ35: =AQ33-AQ34 -> 0.143 | AS35: Translate to 0 | AT35: =0 -> 0.0000 | AU35: 0 | AV35: 0 | AW35: -0.33 | AX35: 0 | AY35: -0.33 | AZ35: 0 | BA35: -0.59 | BB35: 0 | BC35: -0.59 | BD35: 0 | BE35: -0.59 | BF35: 0 | BG35: -0.59 | BH35: 0 | BI35: -0.59 | BJ35: 0 | BK35: -0.59 | BL35: 0 | BM35: -0.59 | BN35: 0 | BO35: -0.59 | BP35: 0 | BQ35: -0.59 | BT35: Delete overlaps | CG35: =0 -> 0.0000 | CH35: 0
AL36: Mid Target | AM36: =AM35-(AM31-AM32) -> 0.22 | AO36: =AO35-(AO31-AO32) -> 0.143 | AQ36: =AQ35-(AQ31-AQ32) -> 0.143 | AS36: Rotate | AT36: =COMPLEX(COS((L23+90)*PI()/180),SIN((L23+90)*PI()/180)) -> 0.766044443118978+0.642787609686539i | AV36: =COMPLEX(COS((L24+90)*PI()/180),SIN((L24+90)*PI()/180)) -> -0.17364817766693+0.984807753012208i | AX36: =AV36 -> -0.17364817766693+0.984807753012208i | AZ36: =AV36 -> -0.17364817766693+0.984807753012208i | BB36: =AV36 -> -0.17364817766693+0.984807753012208i | BD36: =AV36 -> -0.17364817766693+0.984807753012208i | BF36: =AV36 -> -0.17364817766693+0.984807753012208i | BH36: =AX36 -> -0.17364817766693+0.984807753012208i | BJ36: =AZ36 -> -0.17364817766693+0.984807753012208i | BL36: =BB36 -> -0.17364817766693+0.984807753012208i | BN36: =AV36 -> -0.17364817766693+0.984807753012208i | BP36: =BN36 -> -0.17364817766693+0.984807753012208i | CG36: 1
AL37: Max change | AM37: =AM35-AM36 -> 0 | AO37: =AO35-AO36 -> 0 | AQ37: =AQ35-AQ36 -> 0 | AS37: Translate | AT37: =0-F47 -> 0.00 | AU37: =0+F48 -> 0.00 | AV37: =G24-F47 -> 0.21 | AW37: =H24+F48 -> -0.25 | AX37: =G24-F47 -> 0.21 | AY37: =H24+F48 -> -0.25 | AZ37: =G25-F47 -> 0.47 | BA37: =H25+F48 -> -0.21 | BB37: =G25-F47 -> 0.47 | BC37: =H25+F48 -> -0.21 | BD37: =G25-F47 -> 0.47 | BE37: =H25+F48 -> -0.21 | BF37: =G25-F47 -> 0.47 | BG37: =H25+F48 -> -0.21 | BH37: =G25-F47 -> 0.47 | BI37: =H25+F48 -> -0.21 | BJ37: =G25-F47 -> 0.47 | BK37: =H25+F48 -> -0.21 | BL37: =G25-F47 -> 0.47 | BM37: =H25+F48 -> -0.21 | BN37: =G25-F47 -> 0.47 | BO37: =H25+F48 -> -0.21 | BP37: =G25-F47 -> 0.47 | BQ37: =H25+F48 -> -0.21 | CG37: =0-F47 -> 0.00 | CH37: =0+F48 -> 0.00
J38: Spine of scapula | L38: Humerus | N38: Radius | P38: Ulna | R38: Wrist Bones | T38: Wrist Bones | V38: Metacarpals | X38: Metacarpals | Z38: Thumb | AB38: Phalanges | AD38: Phalanges | AF38: Hand Weight | AH38: Individual points | AL38: Humerus | AM38: =AM36/AM35 -> 1 | AN38: Radius | AO38: =AO36/AO35 -> 1 | AP38: Ulna | AQ38: =AQ36/AQ35 -> 1 | AT38: =L38 -> Humerus | AV38: =N38 -> Radius | AX38: =P38 -> Ulna | AZ38: =R38 -> Wrist Bones | BB38: =T38 -> Wrist Bones | BD38: =V38 -> Metacarpals | BF38: =X38 -> Metacarpals | BH38: =Z38 -> Thumb | BJ38: =AB38 -> Phalanges | BL38: =AD38 -> Phalanges | BN38: =AF38 -> Hand Weight | BP38: =AH38 -> Individual points | BT38: Scapula | BV38: Ulna | BX38: Humerus | BZ38: Weight | CB38: Weight | CD38: Thumb | CG38: =J38 -> Spine of scapula
B39: Arrows | C39: Total Length | D39: 0.2 | E39: Axis Limits | G39: Coord Num | J39: X | K39: Y | L39: X | M39: Y | N39: X | O39: Y | P39: X | Q39: Y | R39: X | S39: Y | T39: X | U39: Y | V39: X | W39: Y | X39: X | Y39: Y | Z39: X | AA39: Y | AB39: X | AC39: Y | AD39: X | AE39: Y | AF39: X | AG39: Y | AH39: X | AI39: Y | AL39: X | AM39: Y | AN39: X | AO39: Y | AP39: X | AQ39: Y | AS39: Coord Number | AT39: X | AU39: Y | AV39: X | AW39: Y | AX39: X | AY39: Y | AZ39: X | BA39: Y | BB39: X | BC39: Y | BD39: X | BE39: Y | BF39: X | BG39: Y | BH39: X | BI39: Y | BJ39: X | BK39: Y | BL39: X | BM39: Y | BN39: X | BO39: Y | BP39: X | BQ39: Y | BT39: X | BU39: Y | BV39: X | BW39: Y | BX39: X | BY39: Y | BZ39: X | CA39: Y | CB39: X | CC39: Y | CD39: X | CE39: Y | CG39: X | CH39: Y
B40: Arm | C40: =C56 -> 0.09 | D40: =D56 -> -0.11 | E40: Range | F40: =K8+K9+0.12+0.2 -> 0.91 | G40: 1 | J40: -0.02742847395 | K40: -0.008713429189 | L40: 0.001924937915 | M40: -0.1169215327 | N40: 0.009335741451 | O40: -0.3655322307 | P40: -0.008893330309 | Q40: -0.5797571258 | R40: 0.01541955561 | S40: -0.5938527019 | T40: -0.002664106591 | U40: -0.6166331947 | V40: -0.01121073169 | W40: -0.6199745641 | X40: -0.001497779525 | Y40: -0.6171761926 | Z40: 0.02232193409 | AA40: -0.6325001236 | AB40: 0.02335505379 | AC40: -0.6677238111 | AD40: -0.0249188879 | AE40: -0.6644983626 | AF40: 0.02460882997 | AG40: -0.6647139348 | AH40: -0.01480427995 | AI40: -0.638525063 | AL40: =L40 -> 0.001924937915 | AM40: =IF(M40>AM$33,M40,IF(M40<AM$34,M40+AM$37,(M40-AM$33)*AM$38+AM$33)) -> -0.1169215327 | AN40: =N40 -> 0.009335741451 | AO40: =IF(O40>AO$33,O40,IF(O40<AO$34,O40+AO$37,(O40-AO$33)*AO$38+AO$33)) -> -0.3655322307 | AP40: =P40 -> -0.008893330309 | AQ40: =IF(Q40>AQ$33,Q40,IF(Q40<AQ$34,Q40+AQ$37,(Q40-AQ$33)*AQ$38+AQ$33)) -> -0.5797571258 | AS40: 1 | AT40: =IMREAL(IMPRODUCT(COMPLEX((AL40-AT$35),(AM40-AU$35)),AT$36))+AT$37 -> 0.0766 | AU40: =IMAGINARY(IMPRODUCT(COMPLEX((AL40-AT$35),(AM40-AU$35)),AT$36))+AU$37 -> -0.0883 | AV40: =IMREAL(IMPRODUCT(COMPLEX((AN40-AV$35),(AO40-AW$35)),AV$36))+AV$37 -> 0.2455 | AW40: =IMAGINARY(IMPRODUCT(COMPLEX((AN40-AV$35),(AO40-AW$35)),AV$36))+AW$37 -> -0.2374 | AX40: =IMREAL(IMPRODUCT(COMPLEX((AP40-AX$35),(AQ40-AY$35)),AX$36))+AX$37 -> 0.4596 | AY40: =IMAGINARY(IMPRODUCT(COMPLEX((AP40-AX$35),(AQ40-AY$35)),AX$36))+AY$37 -> -0.2182 | AZ40: =IMREAL(IMPRODUCT(COMPLEX(R40-AZ$35,S40-BA$35),AZ$36))+AZ$37 -> 0.47 | BA40: =IMAGINARY(IMPRODUCT(COMPLEX(R40-AZ$35,S40-BA$35),AZ$36))+BA$37 -> -0.19 | BB40: =IMREAL(IMPRODUCT(COMPLEX(T40-BB$35,U40-BC$35),BB$36))+BB$37 -> 0.49 | BC40: =IMAGINARY(IMPRODUCT(COMPLEX(T40-BB$35,U40-BC$35),BB$36))+BC$37 -> -0.21 | BD40: =IMREAL(IMPRODUCT(COMPLEX(V40-BD$35,W40-BE$35),BD$36))+BD$37 -> 0.50 | BE40: =IMAGINARY(IMPRODUCT(COMPLEX(V40-BD$35,W40-BE$35),BD$36))+BE$37 -> -0.21 | BF40: =IMREAL(IMPRODUCT(COMPLEX(X40-BF$35,Y40-BG$35),BF$36))+BF$37 -> 0.50 | BG40: =IMAGINARY(IMPRODUCT(COMPLEX(X40-BF$35,Y40-BG$35),BF$36))+BG$37 -> -0.20 | BH40: =IMREAL(IMPRODUCT(COMPLEX(Z40-BH$35,AA40-BI$35),BH$36))+BH$37 -> 0.51 | BI40: =IMAGINARY(IMPRODUCT(COMPLEX(Z40-BH$35,AA40-BI$35),BH$36))+BI$37 -> -0.18 | BJ40: =IMREAL(IMPRODUCT(COMPLEX(AB40-BJ$35,AC40-BK$35),BJ$36))+BJ$37 -> 0.54 | BK40: =IMAGINARY(IMPRODUCT(COMPLEX(AB40-BJ$35,AC40-BK$35),BJ$36))+BK$37 -> -0.17 | BL40: =IMREAL(IMPRODUCT(COMPLEX(AD40-BL$35,AE40-BM$35),BL$36))+BL$37 -> 0.55 | BM40: =IMAGINARY(IMPRODUCT(COMPLEX(AD40-BL$35,AE40-BM$35),BL$36))+BM$37 -> -0.22 | BN40: =IMREAL(IMPRODUCT(COMPLEX(AF40-BN$35,AG40-BO$35),BN$36))+BN$37 -> 0.54 | BO40: =IMAGINARY(IMPRODUCT(COMPLEX(AF40-BN$35,AG40-BO$35),BN$36))+BO$37 -> -0.17 | BP40: =IMREAL(IMPRODUCT(COMPLEX(AH40-BP$35,AI40-BQ$35),BP$36))+BP$37 -> 0.52 | BQ40: =IMAGINARY(IMPRODUCT(COMPLEX(AH40-BP$35,AI40-BQ$35),BP$36))+BQ$37 -> -0.21 | BS40: 1 | BT40: =IF(ISERROR(MATCH($BS40,$CI$218:$CI$403,0)),CG40,IF(ISNA(INDEX($CJ$218:$CJ$403,MATCH($BS40,$CI$218:$CI$403,0),1)),NA(),CG40)) -> -0.02742847395 | BU40: =IF(ISERROR(MATCH($BS40,$CI$218:$CI$403,0)),CH40,IF(ISNA(INDEX($CJ$218:$CJ$403,MATCH($BS40,$CI$218:$CI$403,0),1)),NA(),CH40)) -> -0.008713429189 | BV40: =IF(ISERROR(MATCH($BS40,$DO$218:$DO$403)),AX40,IF(ISNA(INDEX($DP$218:$DP$403,MATCH($BS40,$DO$218:$DO$403),1)),NA(),AX40)) -> 0.4596269756 | BW40: =IF(ISERROR(MATCH($BS40,$DO$218:$DO$403)),AY40,IF(ISNA(INDEX($DP$218:$DP$403,MATCH($BS40,$DO$218:$DO$403),1)),NA(),AY40)) -> -0.2181830171 | BX40: =IF(ISERROR(MATCH($AS40,$ER$218:$ER$247,0)),AT40,IF(ISNA(INDEX($ES$218:$ES$247,MATCH($AS40,$ER$218:$ER$247,0),1)),NA(),AT40)) -> 0.07663030051 | BY40: =IF(ISERROR(MATCH($AS40,$ER$218:$ER$247,0)),AU40,IF(ISNA(INDEX($ES$218:$ES$247,MATCH($AS40,$ER$218:$ER$247,0),1)),NA(),AU40)) -> -0.08832976415 | BZ40: =IF($K$11=0,NA(),BN40) ->  | CA40: =IF($K$11=0,NA(),BO40) ->  | CB40: =IF($K$11=0,NA(),BP40) ->  | CC40: =IF($K$11=0,NA(),BQ40) ->  | CD40: =IF($K$11=0,BH145,NA()) -> 0.5349068698 | CE40: =IF($K$11=0,BI145,NA()) -> -0.1703687246 | CG40: =IMREAL(IMPRODUCT(COMPLEX((J40-CG$35),(K40-CH$35)),CG$36))+CG$37 -> -0.0274 | CH40: =IMAGINARY(IMPRODUCT(COMPLEX((J40-CG$35),(K40-CH$35)),CG$36))+CH$37 -> -0.0087
C41: =C40 -> 0.09 | D41: =D40-(U17/$U$15)*$D$39 -> -0.2222184745 | G41: 2 | J41: -0.02895198385 | K41: -0.003666094411 | L41: 0.002530638914 | M41: -0.1012257355 | N41: 0.01021620348 | O41: -0.3655858065 | P41: -0.009539477538 | Q41: -0.578230484 | R41: 0.01561989948 | S41: -0.5941624588 | T41: -0.00119514053 | U41: -0.6172136941 | V41: -0.01155955195 | W41: -0.6191312456 | X41: -0.001485357684 | Y41: -0.6172308748 | Z41: 0.02242609208 | AA41: -0.6326669521 | AB41: 0.02338948841 | AC41: -0.6684348253 | AD41: -0.02477680547 | AE41: -0.6650259207 | AF41: 0.02604367867 | AG41: -0.6650392293 | AH41: -0.01950822851 | AI41: -0.6374634715 | AL41: =L41 -> 0.002530638914 | AM41: =IF(M41>AM$33,M41,IF(M41<AM$34,M41+AM$37,(M41-AM$33)*AM$38+AM$33)) -> -0.1012257355 | AN41: =N41 -> 0.01021620348 | AO41: =IF(O41>AO$33,O41,IF(O41<AO$34,O41+AO$37,(O41-AO$33)*AO$38+AO$33)) -> -0.3655858065 | AP41: =P41 -> -0.009539477538 | AQ41: =IF(Q41>AQ$33,Q41,IF(Q41<AQ$34,Q41+AQ$37,(Q41-AQ$33)*AQ$38+AQ$33)) -> -0.578230484 | AS41: 2 | AT41: 0.0670 | AU41: -0.0759 | AV41: 0.2454 | AW41: -0.2366 | AX41: 0.4582 | AY41: -0.2191 | AZ41: 0.47 | BA41: -0.19 | BB41: 0.50 | BC41: -0.20 | BD41: 0.50 | BE41: -0.21 | BF41: 0.50 | BG41: -0.20 | BH41: 0.51 | BI41: -0.18 | BJ41: 0.54 | BK41: -0.17 | BL41: 0.55 | BM41: -0.22 | BN41: 0.54 | BO41: -0.17 | BP41: 0.52 | BQ41: -0.22 | BS41: 2 | BT41: =IF(ISERROR(MATCH($BS41,$CI$218:$CI$403,0)),CG41,IF(ISNA(INDEX($CJ$218:$CJ$403,MATCH($BS41,$CI$218:$CI$403,0),1)),NA(),CG41)) -> -0.02895198385 | BU41: =IF(ISERROR(MATCH($BS41,$CI$218:$CI$403,0)),CH41,IF(ISNA(INDEX($CJ$218:$CJ$403,MATCH($BS41,$CI$218:$CI$403,0),1)),NA(),CH41)) -> -0.003666094411 | BV41: 0.4582357292 | BW41: -0.2190844465 | BX41: =IF(ISERROR(MATCH($AS41,$ER$218:$ER$247,0)),AT41,IF(ISNA(INDEX($ES$218:$ES$247,MATCH($AS41,$ER$218:$ER$247,0),1)),NA(),AT41)) -> 0.06700523045 | BY41: =IF(ISERROR(MATCH($AS41,$ER$218:$ER$247,0)),AU41,IF(ISNA(INDEX($ES$218:$ES$247,MATCH($AS41,$ER$218:$ER$247,0),1)),NA(),AU41)) -> -0.07591674885 | CD41: 0.5337142808 | CE41: -0.1696961913 | CG41: =IMREAL(IMPRODUCT(COMPLEX((J41-CG$35),(K41-CH$35)),CG$36))+CG$37 -> -0.0290 | CH41: =IMAGINARY(IMPRODUCT(COMPLEX((J41-CG$35),(K41-CH$35)),CG$36))+CH$37 -> -0.0037
E42: X Max | F42: =F43+F40 -> 0.7100 | G42: 3 | J42: -0.02888642549 | K42: 0.001835259871 | L42: 0.003197741389 | M42: -0.08552954787 | N42: 0.01120521629 | O42: -0.3654922726 | P42: -0.0105455897 | Q42: -0.5762241492 | R42: 0.01581624103 | S42: -0.5944760228 | T42: 0.0003615837611 | U42: -0.6172675464 | V42: -0.01192862786 | W42: -0.6183651426 | X42: -0.001472594181 | Y42: -0.6172851664 | Z42: 0.02252702869 | AA42: -0.6328351473 | AB42: 0.02329374993 | AC42: -0.6691606773 | AD42: -0.02457878815 | AE42: -0.6660655808 | AF42: 0.02946524097 | AG42: -0.6658149313 | AL42: 0.003197741389 | AM42: -0.08552954787 | AN42: 0.01120521629 | AO42: -0.3654922726 | AP42: -0.0105455897 | AQ42: -0.5762241492 | AS42: 3 | AT42: 0.0574 | AU42: -0.0635 | AV42: 0.2451 | AW42: -0.2356 | AX42: 0.4564 | AY42: -0.2204 | AZ42: 0.47 | BA42: -0.19 | BB42: 0.49 | BC42: -0.20 | BD42: 0.50 | BE42: -0.21 | BF42: 0.50 | BG42: -0.20 | BH42: 0.51 | BI42: -0.18 | BJ42: 0.54 | BK42: -0.17 | BL42: 0.55 | BM42: -0.22 | BN42: 0.54 | BO42: -0.17 | BS42: 3 | BT42: -0.02888642549 | BU42: 0.001835259871 | BV42: 0.4564345848 | BW42: -0.2204236699 | BX42: 0.05742694566 | BY42: -0.06346396633 | CD42: 0.5327047861 | CE42: -0.1690895059 | CG42: -0.0289 | CH42: 0.0018
B43: Forearm | C43: =C57 -> 0.39 | D43: =D57 -> -0.2220033714 | E43: X Min | F43: =MIN(G23:G25,V19)-0.2 -> -0.2000 | G43: 4 | J43: -0.02759532685 | K43: 0.007375612388 | L43: 0.004134073231 | M43: -0.06985649561 | N43: 0.01220364921 | O43: -0.3652289816 | P43: -0.01165712888 | Q43: -0.5741135589 | R43: 0.01601287544 | S43: -0.5947923202 | T43: 0.001936904207 | U43: -0.6169392259 | V43: -0.01229209076 | W43: -0.6177339471 | X43: -0.001459635444 | Y43: -0.6173391652 | Z43: 0.02262591533 | AA43: -0.6330041234 | AB43: 0.02312069832 | AC43: -0.6698918006 | AD43: -0.02434138212 | AE43: -0.6673299566 | AF43: 0.03354904113 | AG43: -0.6667407693 | AH43: -0.008809013099 | AI43: -0.6396678398 | AL43: 0.004134073231 | AM43: -0.06985649561 | AN43: 0.01220364921 | AO43: -0.3652289816 | AP43: -0.01165712888 | AQ43: -0.5741135589 | AS43: 4 | AT43: 0.0481 | AU43: -0.0509 | AV43: 0.2447 | AW43: -0.2347 | AX43: 0.4545 | AY43: -0.2219 | AZ43: 0.47 | BA43: -0.19 | BB43: 0.49 | BC43: -0.20 | BD43: 0.50 | BE43: -0.21 | BF43: 0.50 | BG43: -0.20 | BH43: 0.51 | BI43: -0.18 | BJ43: 0.54 | BK43: -0.17 | BL43: 0.55 | BM43: -0.22 | BN43: 0.54 | BO43: -0.16 | BP43: 0.52 | BQ43: -0.21 | BS43: 4 | BT43: -0.02759532685 | BU43: 0.007375612388 | BV43: 0.4545490758 | BW43: -0.2218848225 | BX43: 0.04806977366 | BY43: -0.05085584922 | CD43: 0.5319680664 | CE43: -0.1683826831 | CG43: -0.0276 | CH43: 0.0074
C44: =C57 -> 0.39 | D44: =D43-(U18/$U$15)*$D$39 -> -0.3100033714 | E44: Y Max | F44: =MAX(H23:H25,W19)+0.15 -> 0.1500 | G44: 5 | J44: -0.02544221591 | K44: 0.01253994187 | L44: 0.005547462333 | M44: -0.05423010455 | N44: 0.01311237154 | O44: -0.3647732864 | P44: -0.01261955717 | Q44: -0.5722741503 | R44: 0.01621409787 | S44: -0.595110277 | T44: 0.003461658731 | U44: -0.6163732064 | V44: -0.01262407198 | W44: -0.6172953512 | X44: -0.001446627897 | Y44: -0.6173929688 | Z44: 0.02272392341 | AA44: -0.6331732947 | AB44: 0.02292319349 | AC44: -0.6706186288 | AD44: -0.02408113357 | AE44: -0.6685316619 | AF44: 0.03697060343 | AG44: -0.6675164713 | AH44: -0.001249505404 | AI44: -0.6415837481 | AL44: 0.005547462333 | AM44: -0.05423010455 | AN44: 0.01311237154 | AO44: -0.3647732864 | AP44: -0.01261955717 | AQ44: -0.5722741503 | AS44: 5 | AT44: 0.0391 | AU44: -0.0380 | AV44: 0.2441 | AW44: -0.2338 | AX44: 0.4529 | AY44: -0.2232 | AZ44: 0.47 | BA44: -0.19 | BB44: 0.49 | BC44: -0.20 | BD44: 0.50 | BE44: -0.22 | BF44: 0.50 | BG44: -0.20 | BH44: 0.51 | BI44: -0.18 | BJ44: 0.54 | BK44: -0.17 | BL44: 0.55 | BM44: -0.22 | BN44: 0.54 | BO44: -0.16 | BP44: 0.52 | BQ44: -0.20 | BS44: 5 | BT44: -0.02544221591 | BU44: 0.01253994187 | BV44: 0.4529047358 | BW44: -0.2231520393 | BX44: 0.03910804197 | BY44: -0.03797683019 | CD44: 0.5315938023 | CE44: -0.1674097376 | CG44: -0.0254 | CH44: 0.0125
E45: Y Min | F45: =F44-F40 -> -0.7600 | G45: 6 | J45: -0.02279062064 | K45: 0.01691322706 | L45: 0.007645736583 | M45: -0.03867390057 | N45: 0.0138322526 | O45: -0.3641025395 | P45: -0.01317833663 | Q45: -0.5710813607 | R45: 0.01642420351 | S45: -0.5954288195 | T45: 0.004866685257 | U45: -0.6157139622 | V45: -0.01289870286 | W45: -0.6171070468 | X45: -0.001433717968 | Y45: -0.6174466748 | Z45: 0.02282222434 | AA45: -0.6333420755 | AB45: 0.02275409538 | AC45: -0.6713315953 | AD45: -0.02381458869 | AE45: -0.6693833105 | AF45: 0.03840545214 | AG45: -0.6678417658 | AL45: 0.007645736583 | AM45: -0.03867390057 | AN45: 0.0138322526 | AO45: -0.3641025395 | AP45: -0.01317833663 | AQ45: -0.5710813607 | AS45: 6 | AT45: 0.0307 | AU45: -0.0247 | AV45: 0.2433 | AW45: -0.2333 | AX45: 0.4518 | AY45: -0.2239 | AZ45: 0.47 | BA45: -0.19 | BB45: 0.49 | BC45: -0.20 | BD45: 0.50 | BE45: -0.22 | BF45: 0.50 | BG45: -0.20 | BH45: 0.51 | BI45: -0.18 | BJ45: 0.54 | BK45: -0.17 | BL45: 0.55 | BM45: -0.22 | BN45: 0.54 | BO45: -0.16 | BS45: 6 | BT45: -0.02279062064 | BU45: 0.01691322706 | BV45: 0.4518270985 | BW45: -0.2239094554 | BX45: 0.03071607812 | BY45: -0.02471134188 | CD45: 0.5316716742 | CE45: -0.1660046842 | CG45: -0.0228 | CH45: 0.0169
B46: Weight | C46: =C58 ->  | D46: =D58 ->  | G46: 7 | J46: -0.01615301365 | K46: 0.02231995733 | L46: 0.008873017712 | M46: -0.03307479852 | N46: 0.0145113051 | O46: -0.3623109472 | P46: -0.01383300913 | Q46: -0.5675683958 | R46: 0.01682685174 | S46: -0.5961153154 | T46: 0.006235821042 | U46: -0.6148435548 | V46: -0.01368175878 | W46: -0.6169427564 | X46: -0.001211597232 | Y46: -0.6184208009 | Z46: 0.02335915373 | AA46: -0.6346859446 | AB46: 0.0224269625 | AC46: -0.6731340719 | AD46: -0.02349442734 | AE46: -0.6700856367 | AF46: 0.03822852836 | AG46: -0.6686234876 | AH46: 0.00610175139 | AI46: -0.6432497553 | AL46: 0.008873017712 | AM46: -0.03307479852 | AN46: 0.0145113051 | AO46: -0.3623109472 | AP46: -0.01383300913 | AQ46: -0.5675683958 | AS46: 7 | AT46: 0.0281 | AU46: -0.0196 | AV46: 0.2414 | AW46: -0.2329 | AX46: 0.4485 | AY46: -0.2252 | AZ46: 0.47 | BA46: -0.19 | BB46: 0.49 | BC46: -0.20 | BD46: 0.50 | BE46: -0.22 | BF46: 0.50 | BG46: -0.20 | BH46: 0.51 | BI46: -0.18 | BJ46: 0.55 | BK46: -0.17 | BL46: 0.55 | BM46: -0.22 | BN46: 0.54 | BO46: -0.16 | BP46: 0.52 | BQ46: -0.19 | BS46: 7 | BT46: -0.01615301365 | BU46: 0.02231995733 | BV46: 0.4484811861 | BW46: -0.2251642019 | BX46: 0.02805719659 | BY46: -0.01963329977 | CD46: 0.5318980948 | CE46: -0.1652303457 | CG46: -0.0162 | CH46: 0.0223
C47: =C58 ->  | D47: =D46-(U19/$U$15)*$D$39 ->  | E47: X Offset | F47: =MIN(G23:G25,V19) -> 0.0000 | G47: 8 | J47: -0.008595995205 | K47: 0.02356095374 | L47: 0.01067590108 | M47: -0.02732756175 | N47: 0.01511860865 | O47: -0.3592201622 | P47: -0.01397899627 | Q47: -0.5628115873 | R47: 0.01735820879 | S47: -0.5971259017 | T47: 0.007526179416 | U47: -0.6138019261 | V47: -0.01444187457 | W47: -0.6167640185 | X47: -0.001001434653 | Y47: -0.6194163053 | Z47: 0.02414227474 | AA47: -0.6370674889 | AB47: 0.0219622376 | AC47: -0.6758373639 | AD47: -0.02318124564 | AE47: -0.6708014341 | AF47: 0.03780663318 | AG47: -0.6704875935 | AH47: 0.01528561611 | AI47: -0.6453322643 | AL47: 0.01067590108 | AM47: -0.02732756175 | AN47: 0.01511860865 | AO47: -0.3592201622 | AP47: -0.01397899627 | AQ47: -0.5628115873 | AS47: 8 | AT47: 0.0257 | AU47: -0.0141 | AV47: 0.2383 | AW47: -0.2328 | AX47: 0.4438 | AY47: -0.2261 | AZ47: 0.47 | BA47: -0.19 | BB47: 0.49 | BC47: -0.20 | BD47: 0.50 | BE47: -0.22 | BF47: 0.50 | BG47: -0.20 | BH47: 0.51 | BI47: -0.18 | BJ47: 0.55 | BK47: -0.17 | BL47: 0.55 | BM47: -0.22 | BN47: 0.54 | BO47: -0.16 | BP47: 0.52 | BQ47: -0.18 | BS47: 8 | BT47: -0.008595995205 | BU47: 0.02356095374 | BV47: 0.4438219946 | BW47: -0.2261339823 | BX47: 0.02574403279 | BY47: -0.01407178989 | CD47: 0.5322358026 | CE47: -0.1647189359 | CG47: -0.0086 | CH47: 0.0236
E48: Y Offset | F48: =-MAX(H23:H25,W19) -> 0.00 | G48: 9 | J48: -0.00149758429 | K48: 0.02185189717 | L48: 0.01283318517 | M48: -0.02193150433 | N48: 0.01544404136 | O48: -0.3556863885 | P48: -0.01383608409 | Q48: -0.5574159691 | R48: 0.01789293366 | S48: -0.598186761 | T48: 0.008839087458 | U48: -0.6127946588 | V48: -0.01519686543 | W48: -0.616573469 | X48: -0.0008139681688 | Y48: -0.6204238166 | Z48: 0.0249916781 | AA48: -0.6398346228 | AB48: 0.02144855747 | AC48: -0.6788555702 | AD48: -0.02289788612 | AE48: -0.6715305075 | AF48: 0.03730308088 | AG48: -0.672712494 | AL48: 0.01283318517 | AM48: -0.02193150433 | AN48: 0.01544404136 | AO48: -0.3556863885 | AP48: -0.01383608409 | AQ48: -0.5574159691 | AS48: 9 | AT48: 0.0239 | AU48: -0.0086 | AV48: 0.2347 | AW48: -0.2331 | AX48: 0.4385 | AY48: -0.2269 | AZ48: 0.47 | BA48: -0.19 | BB48: 0.49 | BC48: -0.19 | BD48: 0.50 | BE48: -0.22 | BF48: 0.50 | BG48: -0.20 | BH48: 0.51 | BI48: -0.17 | BJ48: 0.55 | BK48: -0.17 | BL48: 0.55 | BM48: -0.22 | BN48: 0.54 | BO48: -0.16 | BS48: 9 | BT48: -0.00149758429 | BU48: 0.02185189717 | BV48: 0.4384835315 | BW48: -0.2269301805 | BX48: 0.02392808943 | BY48: -0.008551494597 | CD48: 0.5327265337 | CE48: -0.1644063969 | CG48: -0.0015 | CH48: 0.0219
B49: System | C49: =C59 ->  | D49: =D59 ->  | G49: 10 | J49: 0.003764200108 | K49: 0.01840846852 | L49: 0.0151236685 | M49: -0.01738594033 | N49: 0.01527748131 | O49: -0.3525658301 | P49: -0.01362405864 | Q49: -0.5519865753 | R49: 0.01830568531 | S49: -0.5990240761 | T49: 0.01027587225 | U49: -0.6120273355 | V49: -0.01596454659 | W49: -0.6163737433 | X49: -0.0006599357156 | Y49: -0.6214339636 | Z49: 0.02572745456 | AA49: -0.6423352605 | AB49: 0.0209745589 | AC49: -0.68160279 | AD49: -0.02266719131 | AE49: -0.6722726616 | AF49: 0.0368811857 | AG49: -0.6745765999 | AH49: 0.01478581395 | AI49: -0.6632210167 | AL49: 0.0151236685 | AM49: -0.01738594033 | AN49: 0.01527748131 | AO49: -0.3525658301 | AP49: -0.01362405864 | AQ49: -0.5519865753 | AS49: 10 | AT49: 0.0228 | AU49: -0.0036 | AV49: 0.2317 | AW49: -0.2338 | AX49: 0.4331 | AY49: -0.2277 | AZ49: 0.47 | BA49: -0.19 | BB49: 0.49 | BC49: -0.19 | BD49: 0.50 | BE49: -0.22 | BF49: 0.50 | BG49: -0.20 | BH49: 0.52 | BI49: -0.17 | BJ49: 0.55 | BK49: -0.17 | BL49: 0.55 | BM49: -0.22 | BN49: 0.55 | BO49: -0.16 | BP49: 0.54 | BQ49: -0.18 | BS49: 10 | BV49: 0.4330998046 | BW49: -0.2276641805 | BX49: 0.02276086924 | BY49: -0.003597096257 | CD49: 0.5334120241 | CE49: -0.1642286708 | CG49: 0.0038 | CH49: 0.0184
C50: =C59 ->  | D50: =D49-(U15/$U$15)*$D$39 ->  | G50: 11 | J50: 0.005811339001 | K50: 0.01444634871 | L50: 0.01732614954 | M50: -0.01419018383 | N50: 0.01440880661 | O50: -0.3507146911 | P50: -0.01356270597 | Q50: -0.5471284397 | R50: 0.01847112276 | S50: -0.5993640294 | T50: 0.01193786086 | U50: -0.6117055391 | V50: -0.01676273324 | W50: -0.6161674773 | X50: -0.0005500752306 | Y50: -0.622437375 | Z50: 0.02616969487 | AA50: -0.6439173166 | AB50: 0.02062887867 | AC50: -0.6834931225 | AD50: -0.02251200371 | AE50: -0.6730277013 | AF50: 0.03670426192 | AG50: -0.6753583217 | AH50: 0.005539473958 | AI50: -0.6611176826 | AL50: 0.01732614954 | AM50: -0.01419018383 | AN50: 0.01440880661 | AO50: -0.3507146911 | AP50: -0.01356270597 | AQ50: -0.5471284397 | AS50: 11 | AT50: 0.0224 | AU50: 0.0003 | AV50: 0.2300 | AW50: -0.2350 | AX50: 0.4283 | AY50: -0.2284 | AZ50: 0.47 | BA50: -0.19 | BB50: 0.49 | BC50: -0.19 | BD50: 0.50 | BE50: -0.22 | BF50: 0.50 | BG50: -0.20 | BH50: 0.52 | BI50: -0.17 | BJ50: 0.56 | BK50: -0.17 | BL50: 0.55 | BM50: -0.22 | BN50: 0.55 | BO50: -0.16 | BP50: 0.54 | BQ50: -0.19 | BS50: 11 | BV50: 0.4283048212 | BW50: -0.2284473663 | BX50: 0.02239387493 | BY50: 0.0002667227786 | CD50: 0.5343340096 | CE50: -0.1641216999 | CG50: 0.0058 | CH50: 0.0144
B51: Location of Joint Centers | G51: 12 | J51: 0.005784559237 | K51: 0.0128874687 | L51: 0.01890875064 | M51: -0.01247394423 | N51: 0.01234372234 | O51: -0.3500347519 | P51: -0.01345025049 | Q51: -0.5355726216 | R51: 0.01862546433 | S51: -0.5999888797 | T51: -0.2816188563 | V51: -0.0181413542 | W51: -0.6164459804 | X51: -0.0004519776677 | Y51: -0.6235799566 | Z51: 0.02632303587 | AA51: -0.6445527747 | AB51: 0.02054777471 | AC51: -0.6853713504 | AD51: -0.02244529021 | AE51: -0.6742076379 | AF51: 0.03662181571 | AG51: -0.6778529723 | AL51: 0.01890875064 | AM51: -0.01247394423 | AN51: 0.01234372234 | AO51: -0.3500347519 | AP51: -0.01345025049 | AQ51: -0.5355726216 | AS51: 12 | AT51: 0.0225 | AU51: 0.0026 | AV51: 0.2297 | AW51: -0.2372 | AX51: 0.4169 | AY51: -0.2303 | AZ51: 0.47 | BA51: -0.19 | BD51: 0.50 | BE51: -0.22 | BF51: 0.50 | BG51: -0.20 | BH51: 0.52 | BI51: -0.17 | BJ51: 0.56 | BK51: -0.17 | BL51: 0.55 | BM51: -0.22 | BN51: 0.55 | BO51: -0.16 | BS51: 12 | BV51: 0.4169050343 | BW51: -0.2303432661 | BX51: 0.02250304015 | BY51: 0.002598714961 | CD51: 0.5350708901 | CE51: -0.1640491605 | CG51: 0.0058 | CH51: 0.0129
B52: Shoulder | C52: =IF($H$9="Yes",G23-F47,NA()) -> 0 | D52: =IF($H$9="Yes",H23+F48,NA()) -> 0 | G52: 13 | J52: 0.005717902679 | K52: 0.01129046901 | L52: 0.02014466279 | M52: -0.01115305595 | N52: 0.009241792637 | O52: -0.349829039 | P52: -0.01297787887 | Q52: -0.517238676 | R52: 0.01874944683 | S52: -0.6012922701 | T52: -0.4295048656 | V52: -0.01978046776 | W52: -0.6176292034 | X52: -0.000297554744 | Y52: -0.6255901635 | Z52: 0.02645782952 | AA52: -0.6452026802 | AB52: 0.02057844291 | AC52: -0.6887230185 | AD52: -0.02244759236 | AE52: -0.6758682436 | AF52: 0.03743135042 | AG52: -0.6802189628 | AH52: -0.005497823778 | AI52: -0.6586186718 | AL52: 0.02014466279 | AM52: -0.01115305595 | AN52: 0.009241792637 | AO52: -0.349829039 | AP52: -0.01297787887 | AQ52: -0.517238676 | AS52: 13 | AT52: 0.0226 | AU52: 0.0044 | AV52: 0.2300 | AW52: -0.2403 | AX52: 0.3988 | AY52: -0.2331 | AZ52: 0.48 | BA52: -0.19 | BD52: 0.50 | BE52: -0.22 | BF52: 0.50 | BG52: -0.20 | BH52: 0.52 | BI52: -0.17 | BJ52: 0.56 | BK52: -0.17 | BL52: 0.56 | BM52: -0.21 | BN52: 0.55 | BO52: -0.16 | BP52: 0.54 | BQ52: -0.20 | BS52: 13 | BV52: 0.398767596 | BW52: -0.2330617271 | BX52: 0.02260075316 | BY52: 0.004405003107 | CD52: 0.5358950003 | CE52: -0.1639693187 | CG52: 0.0057 | CH52: 0.0113
B53: Elbow | C53: =IF($H$9="Yes",G24-F47,NA()) -> 0.2121199112 | D53: =IF($H$9="Yes",H24+F48,NA()) -> -0.2527946662 | G53: 14 | J53: 0.005611759798 | K53: 0.00968434207 | L53: 0.02110329212 | M53: -0.009938326821 | N53: 0.005758373313 | O53: -0.3499641093 | P53: -0.01234575604 | Q53: -0.4965078764 | R53: 0.01884516903 | S53: -0.6029189699 | T53: -0.4327426139 | V53: -0.02143271088 | W53: -0.6193601589 | X53: -0.0001629970038 | Y53: -0.6279230942 | Z53: 0.02657676031 | AA53: -0.6458639093 | AB53: 0.0206523069 | AC53: -0.6925323179 | AD53: -0.02244735645 | AE53: -0.6777678172 | AF53: 0.03901230828 | AG53: -0.682298348 | AH53: -0.01232845332 | AI53: -0.6570776151 | AL53: 0.02110329212 | AM53: -0.009938326821 | AN53: 0.005758373313 | AO53: -0.3499641093 | AP53: -0.01234575604 | AQ53: -0.4965078764 | AS53: 14 | AT53: 0.0226 | AU53: 0.0060 | AV53: 0.2308 | AW53: -0.2437 | AX53: 0.3782 | AY53: -0.2360 | AZ53: 0.48 | BA53: -0.19 | BD53: 0.50 | BE53: -0.22 | BF53: 0.51 | BG53: -0.20 | BH53: 0.52 | BI53: -0.17 | BJ53: 0.57 | BK53: -0.17 | BL53: 0.56 | BM53: -0.21 | BN53: 0.55 | BO53: -0.15 | BP53: 0.54 | BQ53: -0.21 | BS53: 14 | BV53: 0.3782419769 | BW53: -0.2360390732 | BX53: 0.022554293 | BY53: 0.005951734664 | CD53: 0.5367359081 | CE53: -0.1639110977 | CG53: 0.0056 | CH53: 0.0097
B54: Wrist | C54: =IF($H$9="Yes",G25-F47,NA()) -> 0.468169927 | D54: =IF($H$9="Yes",H25+F48,NA()) -> -0.20764614 | G54: 15 | J54: 0.005466521065 | K54: 0.008098080317 | L54: 0.02185404475 | M54: -0.008540564672 | N54: 0.002548820194 | O54: -0.3503065193 | P54: -0.0117540469 | Q54: -0.4777614964 | R54: 0.01891472972 | S54: -0.6045137488 | T54: -0.2923545481 | V54: -0.02285072055 | W54: -0.6212818591 | X54: -0.0001244949916 | Y54: -0.6300338473 | Z54: 0.02668251272 | AA54: -0.6465333384 | AB54: 0.02070079031 | AC54: -0.6957834399 | AD54: -0.02237302878 | AE54: -0.6796646575 | AF54: 0.04124413155 | AG54: -0.6839331827 | AL54: 0.02185404475 | AM54: -0.008540564672 | AN54: 0.002548820194 | AO54: -0.3503065193 | AP54: -0.0117540469 | AQ54: -0.4777614964 | AS54: 15 | AT54: 0.0222 | AU54: 0.0075 | AV54: 0.2317 | AW54: -0.2468 | AX54: 0.3597 | AY54: -0.2387 | AZ54: 0.48 | BA54: -0.19 | BD54: 0.50 | BE54: -0.22 | BF54: 0.51 | BG54: -0.20 | BH54: 0.52 | BI54: -0.17 | BJ54: 0.57 | BK54: -0.17 | BL54: 0.56 | BM54: -0.21 | BN54: 0.55 | BO54: -0.15 | BS54: 15 | BV54: 0.3596776473 | BW54: -0.2387116282 | BX54: 0.02223093869 | BY54: 0.007505057081 | CD54: 0.5375231811 | CE54: -0.1639034207 | CG54: 0.0055 | CH54: 0.0081
B55: Center of Mass Locations | G55: 16 | J55: 0.005282576949 | K55: 0.006560676178 | L55: 0.02246632681 | M55: -0.006670577337 | N55: 0.0002684891007 | O55: -0.3507228259 | P55: -0.01140291636 | Q55: -0.4653808095 | R55: 0.01896022766 | S55: -0.6057213762 | T55: -0.009363115056 | U55: -0.6045845378 | V55: -0.02378713374 | W55: -0.6230373166 | X55: -0.0002582392517 | Y55: -0.6313775211 | Z55: 0.02677777123 | AA55: -0.6472078435 | AB55: 0.02065531678 | AC55: -0.6974605755 | AD55: -0.02215305563 | AE55: -0.6813170633 | AF55: 0.0440062625 | AG55: -0.6849655215 | AH55: -0.02017951228 | AI55: -0.6557864595 | AL55: 0.02246632681 | AM55: -0.006670577337 | AN55: 0.0002684891007 | AO55: -0.3507228259 | AP55: -0.01140291636 | AQ55: -0.4653808095 | AS55: 16 | AT55: 0.0215 | AU55: 0.0093 | AV55: 0.2325 | AW55: -0.2489 | AX55: 0.3474 | AY55: -0.2405 | AZ55: 0.48 | BA55: -0.19 | BB55: 0.48 | BC55: -0.21 | BD55: 0.50 | BE55: -0.23 | BF55: 0.51 | BG55: -0.20 | BH55: 0.52 | BI55: -0.17 | BJ55: 0.57 | BK55: -0.17 | BL55: 0.56 | BM55: -0.21 | BN55: 0.55 | BO55: -0.15 | BP55: 0.54 | BQ55: -0.22 | BS55: 16 | BV55: 0.3474240777 | BW55: -0.2405157158 | BX55: 0.02149796927 | BY55: 0.009331117805 | CD55: 0.5381863873 | CE55: -0.1639752107 | CG55: 0.0053 | CH55: 0.0066
B56: Arm | C56: =IF($H$11="Yes",V17-F47,NA()) -> 0.09 | D56: =IF($H$11="Yes",W17+F48,NA()) -> -0.1102184745 | G56: 17 | J56: 0.003518398967 | K56: -0.002720155368 | L56: 0.02268503906 | M56: -0.004428731986 | N56: -0.002618616785 | O56: -0.3509296288 | P56: -0.01149020277 | Q56: -0.4582045486 | R56: 0.01902620089 | S56: -0.6065407378 | T56: -0.008768493656 | U56: -0.6039445242 | V56: -0.02427153672 | W56: -0.6246625034 | X56: -0.0004049503842 | Y56: -0.6326879725 | Z56: -0.2736702448 | AB56: 0.02037080212 | AC56: -0.6992060109 | AD56: -0.02206336945 | AE56: -0.6820794894 | AF56: 0.0440062625 | AG56: -0.6849655215 | AH56: -0.02573981132 | AI56: -0.654037152 | AL56: 0.02268503906 | AM56: -0.004428731986 | AN56: -0.002618616785 | AO56: -0.3509296288 | AP56: -0.01149020277 | AQ56: -0.4582045486 | AS56: 17 | AT56: 0.0202 | AU56: 0.0112 | AV56: 0.2332 | AW56: -0.2517 | AX56: 0.3404 | AY56: -0.2418 | AZ56: 0.48 | BA56: -0.19 | BB56: 0.48 | BC56: -0.21 | BD56: 0.51 | BE56: -0.23 | BF56: 0.51 | BG56: -0.20 | BJ56: 0.57 | BK56: -0.17 | BL56: 0.56 | BM56: -0.21 | BN56: 0.55 | BO56: -0.15 | BP56: 0.54 | BQ56: -0.22 | BS56: 17 | BV56: 0.3403719974 | BW56: -0.2418478208 | BX56: 0.02022448216 | BY56: 0.0111890565 | CG56: 0.0035 | CH56: -0.0027
B57: Forearm | C57: =IF($H$11="Yes",V18-F47,NA()) -> 0.39 | D57: =IF($H$11="Yes",W18+F48,NA()) -> -0.2220033714 | G57: 18 | J57: 0.001130298033 | K57: -0.009009739309 | L57: 0.02235860577 | M57: -0.002003023868 | N57: -0.005824346548 | O57: -0.350613787 | P57: -0.01185789577 | Q57: -0.448948154 | R57: 0.01911779875 | S57: -0.6073529244 | T57: -0.007829477329 | U57: -0.6028869025 | V57: -0.02490246374 | W57: -0.6272136908 | X57: -0.0007322540947 | Y57: -0.6358381253 | Z57: -0.4234948259 | AB57: 0.02011947745 | AC57: -0.7011195438 | AD57: -0.02203298597 | AE57: -0.6830998212 | AF57: 0.0440062625 | AG57: -0.6849655215 | AH57: =NA() ->  | AI57: =NA() ->  | AL57: 0.02235860577 | AM57: -0.002003023868 | AN57: -0.005824346548 | AO57: -0.350613787 | AP57: -0.01185789577 | AQ57: -0.448948154 | AS57: 18 | AT57: 0.0184 | AU57: 0.0128 | AV57: 0.2334 | AW57: -0.2550 | AX57: 0.3313 | AY57: -0.2438 | AZ57: 0.48 | BA57: -0.19 | BB57: 0.48 | BC57: -0.21 | BD57: 0.51 | BE57: -0.23 | BF57: 0.51 | BG57: -0.20 | BJ57: 0.57 | BK57: -0.17 | BL57: 0.56 | BM57: -0.21 | BN57: 0.55 | BO57: -0.15 | BS57: 18 | BV57: 0.3313200774 | BW57: -0.2438172837 | BX57: 0.01841520463 | BY57: 0.01283742946 | CG57: 0.0011 | CH57: -0.0090
B58: Hand Mass | C58: =IF(AND($H$11="Yes",K11>0),V19-F47,NA()) ->  | D58: =IF($H$11="Yes",W19+F48,NA()) ->  | G58: 19 | J58: -0.001963627028 | K58: -0.01302532103 | L58: 0.0216403354 | M58: 0.0004604622649 | N58: -0.008874669076 | O58: -0.3503440207 | P58: -0.01230417094 | Q58: -0.4391555459 | R58: 0.01917254596 | S58: -0.6081636956 | T58: -0.006813977605 | U58: -0.6017279049 | V58: -0.02555384164 | W58: -0.6300193673 | X58: -0.001131306748 | Y58: -0.6396561778 | Z58: -0.4223272705 | AB58: 0.01979615979 | AC58: -0.7029905155 | AD58: -0.02204653041 | AE58: -0.6841761855 | AF58: 0.0440062625 | AG58: -0.6849655215 | AH58: -0.0269078467 | AI58: -0.6350503837 | AL58: 0.0216403354 | AM58: 0.0004604622649 | AN58: -0.008874669076 | AO58: -0.3503440207 | AP58: -0.01230417094 | AQ58: -0.4391555459 | AS58: 19 | AT58: 0.0163 | AU58: 0.0143 | AV58: 0.2337 | AW58: -0.2580 | AX58: 0.3218 | AY58: -0.2460 | AZ58: 0.48 | BA58: -0.19 | BB58: 0.48 | BC58: -0.21 | BD58: 0.51 | BE58: -0.23 | BF58: 0.52 | BG58: -0.20 | BJ58: 0.58 | BK58: -0.17 | BL58: 0.56 | BM58: -0.21 | BN58: 0.55 | BO58: -0.15 | BP58: 0.52 | BQ58: -0.23 | BS58: 19 | BV58: 0.3217537359 | BW58: -0.2459572475 | BX58: 0.01628147924 | BY58: 0.01426287402 | CG58: -0.0020 | CH58: -0.0130
B59: System | C59: =IF($H$10="Yes",V15-F47,NA()) ->  | D59: =IF($H$10="Yes",W15+F48,NA()) ->  | G59: 20 | J59: -0.00584527739 | K59: -0.01548414592 | L59: 0.0206835364 | M59: 0.00281564166 | N59: -0.01129555326 | O59: -0.3506890502 | P59: -0.01262720388 | Q59: -0.4303706443 | R59: 0.01912796725 | S59: -0.6089788108 | T59: -0.005989906014 | U59: -0.6007837637 | V59: -0.02609959729 | W59: -0.6324080214 | X59: -0.00149326471 | Y59: -0.6429703282 | Z59: -0.2697988768 | AB59: 0.01929566617 | AC59: -0.704608267 | AD59: -0.022088628 | AE59: -0.6851067091 | AF59: 0.0440062625 | AG59: -0.6849655215 | AH59: -0.02811405869 | AI59: -0.6347775425 | AL59: 0.0206835364 | AM59: 0.00281564166 | AN59: -0.01129555326 | AO59: -0.3506890502 | AP59: -0.01262720388 | AQ59: -0.4303706443 | AS59: 20 | AT59: 0.0140 | AU59: 0.0155 | AV59: 0.2345 | AW59: -0.2603 | AX59: 0.3132 | AY59: -0.2478 | AZ59: 0.48 | BA59: -0.19 | BB59: 0.48 | BC59: -0.21 | BD59: 0.51 | BE59: -0.23 | BF59: 0.52 | BG59: -0.20 | BJ59: 0.58 | BK59: -0.17 | BL59: 0.57 | BM59: -0.21 | BN59: 0.55 | BO59: -0.15 | BP59: 0.52 | BQ59: -0.23 | BS59: 20 | BV59: 0.3131583908 | BW59: -0.247800855 | BX59: 0.01403464855 | BY59: 0.01545202757 | CG59: -0.0058 | CH59: -0.0155
G60: 21 | J60: -0.01059655423 | K60: -0.01710345937 | L60: 0.01964151722 | M60: 0.004916429564 | N60: -0.01261296798 | O60: -0.3522175955 | P60: -0.01262517018 | Q60: -0.4241373695 | R60: 0.01892158735 | S60: -0.6098040294 | T60: -0.005625174085 | U60: -0.600370711 | V60: -0.02641365755 | W60: -0.6337081416 | X60: -0.001709284346 | Y60: -0.6446087747 | Z60: 0.0344590569 | AA60: -0.6489486909 | AB60: 0.01851281361 | AC60: -0.7057621397 | AD60: -0.02214390398 | AE60: -0.6856895187 | AF60: 0.0440062625 | AG60: -0.6849655215 | AH60: -0.03099041037 | AI60: -0.6341269211 | AL60: 0.01964151722 | AM60: 0.004916429564 | AN60: -0.01261296798 | AO60: -0.3522175955 | AP60: -0.01262517018 | AQ60: -0.4241373695 | AS60: 21 | AT60: 0.0119 | AU60: 0.0164 | AV60: 0.2362 | AW60: -0.2614 | AX60: 0.3070 | AY60: -0.2489 | AZ60: 0.48 | BA60: -0.19 | BB60: 0.48 | BC60: -0.21 | BD60: 0.52 | BE60: -0.23 | BF60: 0.52 | BG60: -0.20 | BH60: 0.52 | BI60: -0.16 | BJ60: 0.58 | BK60: -0.17 | BL60: 0.57 | BM60: -0.21 | BN60: 0.55 | BO60: -0.15 | BP60: 0.52 | BQ60: -0.23 | BS60: 21 | BV60: 0.3070194603 | BW60: -0.248881249 | BX60: 0.01188605512 | BY60: 0.01639152746 | CD60: 0.5313483393 | CE60: -0.1681763319 | CG60: -0.0106 | CH60: -0.0171
G61: 22 | J61: -0.01178870929 | K61: -0.01739711755 | L61: 0.01824241283 | M61: 0.007335629842 | N61: -0.0126705705 | O61: -0.3561752575 | P61: -0.01178020029 | Q61: -0.4119387964 | R61: 0.01855295072 | S61: -0.6104553992 | T61: -0.005001609064 | U61: -0.6002053468 | V61: -0.02769118734 | W61: -0.6372994609 | X61: -0.002339365342 | Y61: -0.6467409059 | Z61: 0.03428348349 | AA61: -0.6478530959 | AB61: 0.01804912997 | AC61: -0.7060765335 | AD61: -0.0221397715 | AE61: -0.6859735209 | AF61: 0.04694382041 | AG61: -0.6852238827 | AH61: -0.03442347528 | AI61: -0.633350373 | AL61: 0.01824241283 | AM61: 0.007335629842 | AN61: -0.0126705705 | AO61: -0.3561752575 | AP61: -0.01178020029 | AQ61: -0.4119387964 | AS61: 22 | AT61: 0.0093 | AU61: 0.0173 | AV61: 0.2401 | AW61: -0.2607 | AX61: 0.2949 | AY61: -0.2502 | AZ61: 0.49 | BA61: -0.19 | BB61: 0.48 | BC61: -0.21 | BD61: 0.52 | BE61: -0.23 | BF61: 0.52 | BG61: -0.20 | BH61: 0.52 | BI61: -0.16 | BJ61: 0.58 | BK61: -0.17 | BL61: 0.57 | BM61: -0.21 | BN61: 0.55 | BO61: -0.14 | BP61: 0.52 | BQ61: -0.23 | BS61: 22 | BV61: 0.2948594834 | BW61: -0.2501673761 | BX61: 0.009259247009 | BY61: 0.01734541542 | CD61: 0.530116956 | CE61: -0.1684287129 | CG61: -0.0118 | CH61: -0.0174
G62: 23 | J62: -0.01361611094 | K62: -0.01781762981 | L62: 0.01603942743 | M62: 0.01062382208 | N62: -0.01128567761 | O62: -0.3600831344 | P62: -0.01071969071 | Q62: -0.4013941584 | R62: 0.01803759482 | S62: -0.6109238335 | T62: -0.0045435547 | U62: -0.6008010094 | V62: -0.02956589286 | W62: -0.6418823799 | X62: -0.003065599684 | Y62: -0.6488388711 | Z62: 0.03412582292 | AA62: -0.6468326665 | AB62: 0.01750369157 | AC62: -0.7062917478 | AD62: -0.02208229099 | AE62: -0.6865470569 | AF62: 0.04968077415 | AG62: -0.6847149696 | AH62: -0.03729982696 | AI62: -0.6326997517 | AL62: 0.01603942743 | AM62: 0.01062382208 | AN62: -0.01128567761 | AO62: -0.3600831344 | AP62: -0.01071969071 | AQ62: -0.4013941584 | AS62: 23 | AT62: 0.0055 | AU62: 0.0184 | AV62: 0.2437 | AW62: -0.2587 | AX62: 0.2843 | AY62: -0.2510 | AZ62: 0.49 | BA62: -0.19 | BB62: 0.48 | BC62: -0.21 | BD62: 0.52 | BE62: -0.23 | BF62: 0.53 | BG62: -0.20 | BH62: 0.52 | BI62: -0.16 | BJ62: 0.58 | BK62: -0.17 | BL62: 0.57 | BM62: -0.21 | BN62: 0.55 | BO62: -0.14 | BP62: 0.52 | BQ62: -0.24 | BS62: 23 | BT62: -0.01361611094 | BU62: -0.01781762981 | BV62: 0.2842908867 | BW62: -0.2509540352 | BX62: 0.00545805305 | BY62: 0.01844826509 | CD62: 0.5289456885 | CE62: -0.1687268952 | CG62: -0.0136 | CH62: -0.0178
G63: 24 | J63: -0.01563142649 | K63: -0.01827831171 | L63: 0.01320168351 | M63: 0.014085432 | N63: -0.009172899009 | O63: -0.3636015171 | P63: -0.009618084118 | Q63: -0.3927551139 | R63: 0.01741573811 | S63: -0.6112577508 | T63: -0.004219334079 | U63: -0.6018185754 | V63: -0.0315316268 | W63: -0.6464287899 | X63: -0.003820387177 | Y63: -0.6509270744 | Z63: 0.0339978869 | AA63: -0.645955735 | AB63: 0.01693140834 | AC63: -0.7063847448 | AD63: -0.02194959612 | AE63: -0.6872486672 | AF63: 0.0520575189 | AG63: -0.6835334711 | AH63: -0.03850603895 | AI63: -0.6324269104 | AL63: 0.01320168351 | AM63: 0.014085432 | AN63: -0.009172899009 | AO63: -0.3636015171 | AP63: -0.009618084118 | AQ63: -0.3927551139 | AS63: 24 | AT63: 0.0011 | AU63: 0.0193 | AV63: 0.2468 | AW63: -0.2560 | AX63: 0.2756 | AY63: -0.2514 | AZ63: 0.49 | BA63: -0.19 | BB63: 0.48 | BC63: -0.21 | BD63: 0.53 | BE63: -0.23 | BF63: 0.53 | BG63: -0.20 | BH63: 0.52 | BI63: -0.16 | BJ63: 0.58 | BK63: -0.17 | BL63: 0.57 | BM63: -0.21 | BN63: 0.55 | BO63: -0.14 | BP63: 0.52 | BQ63: -0.24 | BS63: 24 | BT63: -0.01563142649 | BU63: -0.01827831171 | BV63: 0.2755917966 | BW63: -0.2513693189 | BX63: 0.001059135126 | BY63: 0.0192759455 | CD63: 0.5278011161 | CE63: -0.1690556088 | CG63: -0.0156 | CH63: -0.0183
G64: 25 | J64: -0.01738732325 | K64: -0.01869247882 | L64: 0.009898303601 | M64: 0.01702488533 | N64: -0.007046844413 | O64: -0.3663906963 | P64: -0.008649823182 | Q64: -0.3862733208 | R64: 0.01672759904 | S64: -0.6115055694 | T64: -0.003997270286 | U64: -0.6029189211 | V64: -0.03308224186 | W64: -0.6499105823 | X64: -0.004536127627 | Y64: -0.6530299204 | Z64: 0.03391148718 | AA64: -0.6452906337 | AB64: 0.01638719016 | AC64: -0.7063324869 | AD64: -0.02171982054 | AE64: -0.6879168923 | AF64: 0.05391444988 | AG64: -0.6817740764 | AH64: -0.03835798558 | AI64: -0.6317716685 | AL64: 0.009898303601 | AM64: 0.01702488533 | AN64: -0.007046844413 | AO64: -0.3663906963 | AP64: -0.008649823182 | AQ64: -0.3862733208 | AS64: 25 | AT64: -0.0034 | AU64: 0.0194 | AV64: 0.2492 | AW64: -0.2534 | AX64: 0.2690 | AY64: -0.2515 | AZ64: 0.49 | BA64: -0.19 | BB64: 0.48 | BC64: -0.21 | BD64: 0.53 | BE64: -0.23 | BF64: 0.53 | BG64: -0.20 | BH64: 0.52 | BI64: -0.16 | BJ64: 0.58 | BK64: -0.17 | BL64: 0.57 | BM64: -0.21 | BN64: 0.55 | BO64: -0.14 | BP64: 0.52 | BQ64: -0.24 | BS64: 25 | BT64: -0.01738732325 | BU64: -0.01869247882 | BV64: 0.2690403399 | BW64: -0.2515413195 | BX64: -0.003360844878 | BY64: 0.01940432571 | CD64: 0.5266498179 | CE64: -0.1693995839 | CG64: -0.0174 | CH64: -0.0187
G65: 26 | J65: -0.01843646851 | K65: -0.01897344671 | L65: 0.0062984102 | M65: 0.01874660779 | N65: -0.005622123534 | O65: -0.3681109626 | P65: -0.00798935057 | Q65: -0.3822004376 | R65: 0.01601339606 | S65: -0.6117157076 | T65: -0.003845686408 | U65: -0.6037629229 | V65: -0.03371159072 | W65: -0.6512996483 | X65: -0.005145220837 | Y65: -0.6551718135 | Z65: 0.03387843549 | AA65: -0.6449056949 | AB65: 0.01592594696 | AC65: -0.7061119362 | AD65: -0.0213710979 | AE65: -0.6883902726 | AF65: 0.0550919623 | AG65: -0.6795314745 | AH65: -0.03800493522 | AI65: -0.6302091685 | AL65: 0.0062984102 | AM65: 0.01874660779 | AN65: -0.005622123534 | AO65: -0.3681109626 | AP65: -0.00798935057 | AQ65: -0.3822004376 | AS65: 26 | AT65: -0.0072 | AU65: 0.0184 | AV65: 0.2506 | AW65: -0.2517 | AX65: 0.2649 | AY65: -0.2516 | AZ65: 0.49 | BA65: -0.19 | BB65: 0.48 | BC65: -0.21 | BD65: 0.53 | BE65: -0.23 | BF65: 0.53 | BG65: -0.20 | BH65: 0.52 | BI65: -0.16 | BJ65: 0.58 | BK65: -0.17 | BL65: 0.57 | BM65: -0.21 | BN65: 0.55 | BO65: -0.14 | BP65: 0.51 | BQ65: -0.24 | BS65: 26 | BT65: -0.01843646851 | BU65: -0.01897344671 | BV65: 0.264914643 | BW65: -0.2515981298 | BX65: -0.007225225076 | BY65: 0.01840927476 | CD65: 0.5254583733 | CE65: -0.1697435506 | CG65: -0.0184 | CH65: -0.0190
G66: 27 | J66: -0.02015908579 | K66: -0.02003084066 | L66: 0.001563370424 | M66: 0.01949914194 | N66: -0.004265051659 | O66: -0.3701748754 | P66: -0.00751252952 | Q66: -0.3796505366 | R66: 0.01549532314 | S66: -0.6118958446 | T66: -0.003707598164 | U66: -0.6049836067 | V66: -0.03482003055 | W66: -0.6531265619 | X66: -0.005375866844 | Y66: -0.6566808191 | Z66: 0.03366827291 | AA66: -0.6435939745 | AB66: 0.01476358967 | AC66: -0.7055951811 | AD66: -0.02052947954 | AE66: -0.6888716901 | AF66: 0.05584957257 | AG66: -0.6761871603 | AH66: -0.03758355254 | AI66: -0.6283442492 | AL66: 0.001563370424 | AM66: 0.01949914194 | AN66: -0.004265051659 | AO66: -0.3701748754 | AP66: -0.00751252952 | AQ66: -0.3796505366 | AS66: 27 | AT66: -0.0113 | AU66: 0.0159 | AV66: 0.2524 | AW66: -0.2500 | AX66: 0.2623 | AY66: -0.2516 | AZ66: 0.49 | BA66: -0.19 | BB66: 0.48 | BC66: -0.21 | BD66: 0.54 | BE66: -0.23 | BF66: 0.53 | BG66: -0.20 | BH66: 0.52 | BI66: -0.17 | BJ66: 0.58 | BK66: -0.17 | BL66: 0.57 | BM66: -0.21 | BN66: 0.54 | BO66: -0.14 | BP66: 0.51 | BQ66: -0.24 | BS66: 27 | BT66: -0.02015908579 | BU66: -0.02003084066 | BV66: 0.2623206816 | BW66: -0.2515713384 | BX66: -0.01133619561 | BY66: 0.01594212447 | CD66: 0.5242735124 | CE66: -0.1700395948 | CG66: -0.0202 | CH66: -0.0200
G67: 28 | J67: -0.02233996894 | K67: -0.02194453628 | L67: -0.003999320256 | M67: 0.0195848502 | N67: -0.003230459558 | O67: -0.3724473971 | P67: -0.006980798303 | Q67: -0.3774727529 | R67: 0.01503162322 | S67: -0.6120849625 | T67: -0.003555599411 | U67: -0.6069870374 | V67: -0.03549743982 | W67: -0.6550901401 | X67: -0.00558982024 | Y67: -0.6589912652 | Z67: 0.03315451957 | AA67: -0.6410138109 | AB67: 0.01358014699 | AC67: -0.7055663188 | AD67: -0.01947290721 | AE67: -0.689249633 | AF67: 0.05765618167 | AG67: -0.6682122571 | AH67: -0.03723050218 | AI67: -0.6267817492 | AL67: -0.003999320256 | AM67: 0.0195848502 | AN67: -0.003230459558 | AO67: -0.3724473971 | AP67: -0.006980798303 | AQ67: -0.3774727529 | AS67: 28 | AT67: -0.0157 | AU67: 0.0124 | AV67: 0.2545 | AW67: -0.2486 | AX67: 0.2601 | AY67: -0.2514 | AZ67: 0.49 | BA67: -0.19 | BB67: 0.49 | BC67: -0.21 | BD67: 0.54 | BE67: -0.23 | BF67: 0.54 | BG67: -0.20 | BH67: 0.51 | BI67: -0.17 | BJ67: 0.58 | BK67: -0.17 | BL67: 0.57 | BM67: -0.21 | BN67: 0.54 | BO67: -0.14 | BP67: 0.51 | BQ67: -0.24 | BS67: 28 | BT67: -0.02233996894 | BU67: -0.02194453628 | BV67: 0.2600836492 | BW67: -0.2514258535 | BX67: -0.01565255611 | BY67: 0.01243215216 | CD67: 0.5230176873 | CE67: -0.1703266918 | CG67: -0.0223 | CH67: -0.0219
G68: 29 | J68: -0.02461324717 | K68: -0.02422883715 | L68: -0.009702043397 | M68: 0.01867441957 | N68: -0.002556027627 | O68: -0.3748701523 | P68: -0.006358526602 | Q68: -0.375294383 | R68: 0.01458149216 | S68: -0.6122393284 | T68: -0.003365773834 | U68: -0.6093096287 | V68: -0.03586091085 | W68: -0.6569151013 | X68: -0.005738174603 | Y68: -0.6615311127 | Z68: 0.03250312539 | AA68: -0.637887184 | AB68: 0.01248338874 | AC68: -0.7057010636 | AD68: -0.01832271959 | AE68: -0.6895280058 | AF68: 0.05981245705 | AG68: -0.6586938243 | AH68: -0.03708244881 | AI68: -0.6261265072 | AL68: -0.009702043397 | AM68: 0.01867441957 | AN68: -0.002556027627 | AO68: -0.3748701523 | AP68: -0.006358526602 | AQ68: -0.375294383 | AS68: 29 | AT68: -0.0194 | AU68: 0.0081 | AV68: 0.2568 | AW68: -0.2475 | AX68: 0.2578 | AY68: -0.2512 | AZ68: 0.49 | BA68: -0.19 | BB68: 0.49 | BC68: -0.21 | BD68: 0.54 | BE68: -0.23 | BF68: 0.54 | BG68: -0.20 | BH68: 0.51 | BI68: -0.17 | BJ68: 0.58 | BK68: -0.18 | BL68: 0.57 | BM68: -0.21 | BN68: 0.53 | BO68: -0.14 | BP68: 0.51 | BQ68: -0.24 | BS68: 29 | BT68: -0.02461324717 | BU68: -0.02422883715 | BV68: 0.2578303173 | BW68: -0.2511913055 | BX68: -0.01943588195 | BY68: 0.008069082053 | CD68: 0.5217510915 | CE68: -0.1706426495 | CG68: -0.0246 | CH68: -0.0242
G69: 30 | J69: -0.02661304965 | K69: -0.02639804687 | L69: -0.01485718056 | M69: 0.01643853702 | N69: -0.002279436265 | O69: -0.3773847657 | P69: -0.005610084104 | Q69: -0.3727427232 | R69: 0.01410412578 | S69: -0.6123152099 | T69: -0.003114205119 | U69: -0.6114877949 | V69: -0.03602753598 | W69: -0.6583261639 | X69: -0.005772023509 | Y69: -0.6637283224 | Z69: 0.03188004032 | AA69: -0.6349360735 | AB69: 0.01158108477 | AC69: -0.7056751299 | AD69: -0.01720025537 | AE69: -0.6897107135 | AF69: 0.06161906615 | AG69: -0.6507189212 | AH69: -0.0370005639 | AI69: -0.623631092 | AL69: -0.01485718056 | AM69: 0.01643853702 | AN69: -0.002279436265 | AO69: -0.3773847657 | AP69: -0.005610084104 | AQ69: -0.3727427232 | AS69: 30 | AT69: -0.0219 | AU69: 0.0030 | AV69: 0.2592 | AW69: -0.2468 | AX69: 0.2552 | AY69: -0.2509 | AZ69: 0.49 | BA69: -0.19 | BB69: 0.49 | BC69: -0.21 | BD69: 0.54 | BE69: -0.23 | BF69: 0.54 | BG69: -0.20 | BH69: 0.51 | BI69: -0.17 | BJ69: 0.58 | BK69: -0.18 | BL69: 0.57 | BM69: -0.21 | BN69: 0.52 | BO69: -0.14 | BP69: 0.51 | BQ69: -0.24 | BS69: 30 | BT69: -0.02661304965 | BU69: -0.02639804687 | BV69: 0.2551874573 | BW69: -0.2508973246 | BX69: -0.02194774853 | BY69: 0.003042638364 | CD69: 0.5205339181 | CE69: -0.1710252761 | CG69: -0.0266 | CH69: -0.0264
G70: 31 | J70: -0.0279735056 | K70: -0.027966469 | L70: -0.01877711329 | M70: 0.01254788957 | N70: -0.002438365868 | O70: -0.3799328619 | P70: -0.004699840493 | Q70: -0.3694450699 | R70: 0.01355871992 | S70: -0.612268874 | T70: -0.002776976952 | U70: -0.6130579497 | V70: -0.03611440751 | W70: -0.6590480461 | X70: -0.005642460536 | Y70: -0.6650108551 | Z70: 0.0314512143 | AA70: -0.6328824593 | AB70: 0.01098100491 | AC70: -0.7051642319 | AD70: -0.01622685324 | AE70: -0.6898016605 | AF70: 0.06237667642 | AG70: -0.6473746069 | AH70: -0.03780963492 | AI70: -0.6212651177 | AL70: -0.01877711329 | AM70: 0.01254788957 | AN70: -0.002438365868 | AO70: -0.3799328619 | AP70: -0.004699840493 | AQ70: -0.3694450699 | AS70: 31 | AT70: -0.0224 | AU70: -0.0025 | AV70: 0.2617 | AW70: -0.2465 | AX70: 0.2518 | AY70: -0.2506 | AZ70: 0.49 | BA70: -0.19 | BB70: 0.49 | BC70: -0.21 | BD70: 0.54 | BE70: -0.23 | BF70: 0.54 | BG70: -0.20 | BH70: 0.50 | BI70: -0.17 | BJ70: 0.58 | BK70: -0.18 | BL70: 0.57 | BM70: -0.21 | BN70: 0.51 | BO70: -0.14 | BP70: 0.51 | BQ70: -0.24 | BS70: 31 | BT70: -0.0279735056 | BU70: -0.027966469 | BV70: =NA() ->  | BW70: =NA() ->  | BX70: -0.02244973124 | BY70: -0.002457454689 | CD70: 0.5194263604 | CE70: -0.1715123797 | CG70: -0.0280 | CH70: -0.0280
G71: 32 | J71: -0.03087959811 | K71: -0.03292919372 | L71: -0.02060184673 | M71: 0.008842276299 | N71: -0.002862652674 | O71: -0.3856483729 | P71: -0.003133012779 | Q71: -0.367385013 | R71: 0.01315291538 | S71: -0.6121781222 | T71: -0.002489501226 | U71: -0.6141218515 | V71: -0.03631408433 | W71: -0.6596916715 | X71: -0.005468367664 | Y71: -0.6655676008 | Z71: 0.03123401512 | AA71: -0.6312057304 | AB71: 0.0106549621 | AC71: -0.7028730489 | AD71: -0.01531356729 | AE71: -0.6896346693 | AF71: 0.06228161314 | AG71: -0.6448382737 | AH71: -0.0393895434 | AI71: -0.6191863344 | AL71: -0.02060184673 | AM71: 0.008842276299 | AN71: -0.002862652674 | AO71: -0.3856483729 | AP71: -0.003133012779 | AQ71: -0.367385013 | AS71: 32 | AT71: -0.0215 | AU71: -0.0065 | AV71: 0.2674 | AW71: -0.2460 | AX71: 0.2495 | AY71: -0.2494 | AZ71: 0.49 | BA71: -0.19 | BB71: 0.49 | BC71: -0.21 | BD71: 0.54 | BE71: -0.23 | BF71: 0.54 | BG71: -0.20 | BH71: 0.50 | BI71: -0.17 | BJ71: 0.58 | BK71: -0.18 | BL71: 0.57 | BM71: -0.21 | BN71: 0.51 | BO71: -0.14 | BP71: 0.50 | BQ71: -0.24 | BS71: 32 | BT71: -0.03087959811 | BU71: -0.03292919372 | BV71: =NA() ->  | BW71: =NA() ->  | BX71: -0.02146563585 | BY71: -0.006469035191 | CG71: -0.0309 | CH71: -0.0329
G72: 33 | J72: -0.03619791938 | K72: -0.04292025032 | L72: -0.02171724181 | M72: 0.004718810848 | N72: -0.002989303388 | O72: -0.3926812336 | P72: 0.0006032686931 | Q72: -0.3624725695 | R72: 0.01273368842 | S72: -0.6120553518 | T72: -0.002373637258 | U72: -0.6152747806 | V72: -0.0365001435 | W72: -0.660335297 | X72: -0.005374516467 | Y72: -0.6660804187 | Z72: 0.03093018031 | AA72: -0.6284328534 | AB72: 0.01093585677 | AC72: -0.6994713681 | AD72: -0.01449843584 | AE72: -0.6891119596 | AF72: 0.06136480482 | AG72: -0.6424470001 | AH72: -0.04162017086 | AI72: -0.6175524922 | AL72: -0.02171724181 | AM72: 0.004718810848 | AN72: -0.002989303388 | AO72: -0.3926812336 | AP72: 0.0006032686931 | AQ72: -0.3624725695 | AS72: 33 | AT72: =IMREAL(IMPRODUCT(COMPLEX((AL72-AT$35),(AM72-AU$35)),AT$36))+AT$37 -> -0.0197 | AU72: =IMAGINARY(IMPRODUCT(COMPLEX((AL72-AT$35),(AM72-AU$35)),AT$36))+AU$37 -> -0.0103 | AV72: =IMREAL(IMPRODUCT(COMPLEX((AN72-AV$35),(AO72-AW$35)),AV$36))+AV$37 -> 0.2744 | AW72: =IMAGINARY(IMPRODUCT(COMPLEX((AN72-AV$35),(AO72-AW$35)),AV$36))+AW$37 -> -0.2449 | AX72: =IMREAL(IMPRODUCT(COMPLEX((AP72-AX$35),(AQ72-AY$35)),AX$36))+AX$37 -> 0.2440 | AY72: =IMAGINARY(IMPRODUCT(COMPLEX((AP72-AX$35),(AQ72-AY$35)),AX$36))+AY$37 -> -0.2466 | AZ72: =IMREAL(IMPRODUCT(COMPLEX(R72-AZ$35,S72-BA$35),AZ$36))+AZ$37 -> 0.49 | BA72: =IMAGINARY(IMPRODUCT(COMPLEX(R72-AZ$35,S72-BA$35),AZ$36))+BA$37 -> -0.19 | BB72: =IMREAL(IMPRODUCT(COMPLEX(T72-BB$35,U72-BC$35),BB$36))+BB$37 -> 0.49 | BC72: =IMAGINARY(IMPRODUCT(COMPLEX(T72-BB$35,U72-BC$35),BB$36))+BC$37 -> -0.21 | BD72: =IMREAL(IMPRODUCT(COMPLEX(V72-BD$35,W72-BE$35),BD$36))+BD$37 -> 0.54 | BE72: =IMAGINARY(IMPRODUCT(COMPLEX(V72-BD$35,W72-BE$35),BD$36))+BE$37 -> -0.23 | BF72: =IMREAL(IMPRODUCT(COMPLEX(X72-BF$35,Y72-BG$35),BF$36))+BF$37 -> 0.54 | BG72: =IMAGINARY(IMPRODUCT(COMPLEX(X72-BF$35,Y72-BG$35),BF$36))+BG$37 -> -0.20 | BH72: =IMREAL(IMPRODUCT(COMPLEX(Z72-BH$35,AA72-BI$35),BH$36))+BH$37 -> 0.50 | BI72: =IMAGINARY(IMPRODUCT(COMPLEX(Z72-BH$35,AA72-BI$35),BH$36))+BI$37 -> -0.17 | BJ72: =IMREAL(IMPRODUCT(COMPLEX(AB72-BJ$35,AC72-BK$35),BJ$36))+BJ$37 -> 0.57 | BK72: =IMAGINARY(IMPRODUCT(COMPLEX(AB72-BJ$35,AC72-BK$35),BJ$36))+BK$37 -> -0.18 | BL72: =IMREAL(IMPRODUCT(COMPLEX(AD72-BL$35,AE72-BM$35),BL$36))+BL$37 -> 0.57 | BM72: =IMAGINARY(IMPRODUCT(COMPLEX(AD72-BL$35,AE72-BM$35),BL$36))+BM$37 -> -0.20 | BN72: =IMREAL(IMPRODUCT(COMPLEX(AF72-BN$35,AG72-BO$35),BN$36))+BN$37 -> 0.51 | BO72: =IMAGINARY(IMPRODUCT(COMPLEX(AF72-BN$35,AG72-BO$35),BN$36))+BO$37 -> -0.14 | BP72: =IMREAL(IMPRODUCT(COMPLEX(AH72-BP$35,AI72-BQ$35),BP$36))+BP$37 -> 0.50 | BQ72: =IMAGINARY(IMPRODUCT(COMPLEX(AH72-BP$35,AI72-BQ$35),BP$36))+BQ$37 -> -0.24 | BS72: 33 | BT72: -0.03619791938 | BU72: -0.04292025032 | BV72: =NA() ->  | BW72: =NA() ->  | BX72: -0.01966956555 | BY72: -0.01034475512 | BZ72: =IF($K$11=0,NA(),BN72) ->  | CA72: =IF($K$11=0,NA(),BO72) ->  | CB72: =IF($K$11=0,NA(),BP72) ->  | CC72: =IF($K$11=0,NA(),BQ72) ->  | CG72: -0.0362 | CH72: -0.0429
G73: 34 | J73: -0.04237937555 | K73: -0.05486229246 | L73: -0.02211753909 | M73: 0.000408554101 | N73: -0.002938485287 | O73: -0.3998849251 | P73: 0.005062701418 | Q73: -0.3566093304 | R73: 0.01233422903 | S73: -0.6118831869 | T73: -0.002540717932 | U73: -0.6163504941 | V73: -0.03662602141 | W73: -0.6609808748 | X73: -0.005368423502 | Y73: -0.6665776177 | Z73: 0.03053238855 | AA73: -0.6253360812 | AB73: 0.01158721027 | AC73: -0.6957375922 | AD73: -0.01390474994 | AE73: -0.6883473534 | AF73: 0.05972943327 | AG73: -0.6403546318 | AH73: -0.04438139883 | AI73: -0.6165213412 | AL73: -0.02211753909 | AM73: 0.000408554101 | AN73: -0.002938485287 | AO73: -0.3998849251 | AP73: 0.005062701418 | AQ73: -0.3566093304 | AS73: 34 | AT73: -0.0172 | AU73: -0.0139 | AV73: 0.2815 | AW73: -0.2436 | AX73: 0.2374 | AY73: -0.2432 | AZ73: 0.49 | BA73: -0.19 | BB73: 0.49 | BC73: -0.21 | BD73: 0.54 | BE73: -0.23 | BF73: 0.54 | BG73: -0.20 | BH73: 0.50 | BI73: -0.17 | BJ73: 0.57 | BK73: -0.18 | BL73: 0.57 | BM73: -0.20 | BN73: 0.51 | BO73: -0.14 | BP73: 0.50 | BQ73: -0.25 | BS73: 34 | BT73: -0.04237937555 | BU73: -0.05486229246 | BV73: =NA() ->  | BW73: =NA() ->  | BX73: -0.01720563143 | BY73: -0.01390390948 | CG73: -0.0424 | CH73: -0.0549
G74: 35 | J74: -0.04787487277 | K74: -0.06567797382 | L74: -0.02179697913 | M74: -0.00385743306 | N74: -0.00283036565 | O74: -0.4061129286 | P74: 0.00879898289 | Q74: -0.3516968869 | R74: 0.01198772719 | S74: -0.6116442515 | T74: -0.003102076131 | U74: -0.6171827493 | V74: -0.03664515446 | W74: -0.6616303573 | X74: -0.005457605323 | Y74: -0.667087507 | Z74: 0.03003331852 | AA74: -0.6226876666 | AB74: 0.01237254394 | AC74: -0.6924501239 | AD74: -0.01365580063 | AE74: -0.6874546729 | AF74: 0.05747868031 | AG74: -0.6387150138 | AH74: -0.04438139883 | AI74: -0.6165213412 | AL74: -0.02179697913 | AM74: -0.00385743306 | AN74: -0.00283036565 | AO74: -0.4061129286 | AP74: 0.00879898289 | AQ74: -0.3516968869 | AS74: 35 | AT74: -0.0142 | AU74: -0.0170 | AV74: 0.2876 | AW74: -0.2424 | AX74: 0.2320 | AY74: -0.2404 | AZ74: 0.49 | BA74: -0.19 | BB74: 0.50 | BC74: -0.21 | BD74: 0.55 | BE74: -0.23 | BF74: 0.55 | BG74: -0.20 | BH74: 0.50 | BI74: -0.17 | BJ74: 0.57 | BK74: -0.18 | BL74: 0.57 | BM74: -0.20 | BN74: 0.51 | BO74: -0.14 | BP74: 0.50 | BQ74: -0.25 | BS74: 35 | BT74: -0.04787487277 | BU74: -0.06567797382 | BV74: =NA() ->  | BW74: =NA() ->  | BX74: -0.01421794456 | BY74: -0.01696579327 | CG74: -0.0479 | CH74: -0.0657
G75: 36 | J75: -0.05113531721 | K75: -0.07228994805 | L75: -0.02074980249 | M75: -0.007848089754 | N75: -0.002785111753 | O75: -0.4102187253 | P75: 0.0103658106 | Q75: -0.34963683 | R75: 0.01172737289 | S75: -0.6113211697 | T75: -0.00416904474 | U75: -0.6176053034 | V75: -0.03651097905 | W75: -0.6622856968 | X75: -0.005649578487 | Y75: -0.6676383957 | Z75: 0.0294256489 | AA75: -0.6212598626 | AB75: 0.01305537912 | AC75: -0.6903873662 | AD75: -0.01387487895 | AE75: -0.6865477402 | AF75: 0.05471572776 | AG75: -0.6376819918 | AH75: -0.04438139883 | AI75: -0.6165213412 | AL75: -0.02074980249 | AM75: -0.007848089754 | AN75: -0.002785111753 | AO75: -0.4102187253 | AP75: 0.0103658106 | AQ75: -0.34963683 | AS75: 36 | AT75: -0.0109 | AU75: -0.0193 | AV75: 0.2916 | AW75: -0.2416 | AX75: 0.2297 | AY75: -0.2392 | AZ75: 0.49 | BA75: -0.19 | BB75: 0.50 | BC75: -0.21 | BD75: 0.55 | BE75: -0.23 | BF75: 0.55 | BG75: -0.20 | BH75: 0.49 | BI75: -0.17 | BJ75: 0.56 | BK75: -0.18 | BL75: 0.57 | BM75: -0.20 | BN75: 0.51 | BO75: -0.15 | BP75: 0.50 | BQ75: -0.25 | BS75: 36 | BT75: -0.05113531721 | BU75: -0.07228994805 | BV75: =IF(ISERROR(MATCH($BS75,$DO$218:$DO$403)),AX75,IF(ISNA(INDEX($DP$218:$DP$403,MATCH($BS75,$DO$218:$DO$403),1)),NA(),AX75)) -> 0.2296584095 | BW75: =IF(ISERROR(MATCH($BS75,$DO$218:$DO$403)),AY75,IF(ISNA(INDEX($DP$218:$DP$403,MATCH($BS75,$DO$218:$DO$403),1)),NA(),AY75)) -> -0.2391764358 | BX75: -0.01085061604 | BY75: -0.01934970149 | CD75: 0.5332790862 | CE75: -0.1641352778 | CG75: -0.0511 | CH75: -0.0723
G76: 37 | J76: -0.05296549283 | K76: -0.07610701623 | L76: -0.01993406907 | M76: -0.009514259655 | N76: -0.0029500123 | O76: -0.4203274843 | P76: 0.01049569083 | Q76: -0.3481095862 | R76: 0.01153334162 | S76: -0.6105356327 | T76: -0.005239478774 | U76: -0.6176035463 | V76: -0.03634720111 | W76: -0.6628045019 | X76: -0.005894118734 | Y76: -0.6680859074 | Z76: 0.0288567172 | AA76: -0.6209067635 | AB76: 0.01348529521 | AC76: -0.689101547 | AD76: -0.01422345517 | AE76: -0.6858528981 | AF76: 0.05471572776 | AG76: -0.6376819918 | AH76: -0.04438139883 | AI76: -0.6165213412 | AL76: -0.01993406907 | AM76: -0.009514259655 | AN76: -0.0029500123 | AO76: -0.4203274843 | AP76: 0.01049569083 | AQ76: -0.3481095862 | AS76: 37 | AT76: -0.0092 | AU76: -0.0201 | AV76: 0.3016 | AW76: -0.2400 | AX76: 0.2281 | AY76: -0.2393 | AZ76: 0.49 | BA76: -0.19 | BB76: 0.50 | BC76: -0.21 | BD76: 0.55 | BE76: -0.23 | BF76: 0.55 | BG76: -0.20 | BH76: 0.49 | BI76: -0.17 | BJ76: 0.56 | BK76: -0.18 | BL76: 0.57 | BM76: -0.21 | BN76: 0.51 | BO76: -0.15 | BP76: 0.50 | BQ76: -0.25 | BS76: 37 | BT76: -0.05296549283 | BU76: -0.07610701623 | BV76: 0.2281318145 | BW76: -0.2393137319 | BX76: -0.009154734615 | BY76: -0.02010171835 | CD76: 0.5319453517 | CE76: -0.1638739993 | CG76: -0.0530 | CH76: -0.0761
G77: 38 | J77: -0.05495410183 | K77: -0.08009135219 | L77: -0.01891592553 | M77: -0.01103278292 | N77: -0.003209162649 | O77: -0.4311149786 | P77: 0.01038255202 | Q77: -0.3465466144 | R77: 0.01125794607 | S77: -0.6089830653 | T77: -0.006336611224 | U77: -0.6174067492 | V77: -0.03608809957 | W77: -0.6635095613 | X77: -0.006200450928 | Y77: -0.6685144812 | Z77: 0.02824541946 | AA77: -0.6207041907 | AB77: 0.01367014229 | AC77: -0.6878038185 | AD77: -0.01445830687 | AE77: -0.6852051076 | AF77: 0.05471572776 | AG77: -0.6376819918 | AH77: -0.04438139883 | AI77: -0.6165213412 | AL77: -0.01891592553 | AM77: -0.01103278292 | AN77: -0.003209162649 | AO77: -0.4311149786 | AP77: 0.01038255202 | AQ77: -0.3465466144 | AS77: 38 | AT77: -0.0074 | AU77: -0.0206 | AV77: 0.3123 | AW77: -0.2384 | AX77: 0.2266 | AY77: -0.2397 | AZ77: 0.48 | BA77: -0.19 | BB77: 0.50 | BC77: -0.21 | BD77: 0.55 | BE77: -0.23 | BF77: 0.55 | BG77: -0.20 | BH77: 0.49 | BI77: -0.17 | BJ77: 0.56 | BK77: -0.18 | BL77: 0.56 | BM77: -0.21 | BN77: 0.51 | BO77: -0.15 | BP77: 0.50 | BQ77: -0.25 | BS77: 38 | BT77: -0.05495410183 | BU77: -0.08009135219 | BV77: 0.2266122341 | BW77: -0.2396965591 | BX77: -0.007398703478 | BY77: -0.02061052461 | CD77: 0.5305954295 | CE77: -0.1637193574 | CG77: -0.0550 | CH77: -0.0801
G78: 39 | J78: -0.0570262715 | K78: -0.0841381146 | L78: -0.0178512184 | M78: -0.01249712842 | N78: -0.00349110671 | O78: -0.4415150286 | P78: 0.01012698912 | Q78: -0.3449697808 | R78: 0.01096039133 | S78: -0.607137401 | T78: -0.007441016186 | U78: -0.6171010108 | V78: -0.03567935023 | W78: -0.6642806103 | X78: -0.006511517576 | Y78: -0.6689442265 | Z78: 0.02762065048 | AA78: -0.6205644836 | AB78: 0.01373531018 | AC78: -0.6864900807 | AD78: -0.01460774316 | AE78: -0.6845557553 | AF78: 0.05471572776 | AG78: -0.6376819918 | AH78: -0.04438139883 | AI78: -0.6165213412 | AL78: -0.0178512184 | AM78: -0.01249712842 | AN78: -0.00349110671 | AO78: -0.4415150286 | AP78: 0.01012698912 | AQ78: -0.3449697808 | AS78: 39 | AT78: -0.0056 | AU78: -0.0210 | AV78: 0.3225 | AW78: -0.2369 | AX78: 0.2251 | AY78: -0.2402 | AZ78: 0.48 | BA78: -0.19 | BB78: 0.50 | BC78: -0.21 | BD78: 0.55 | BE78: -0.23 | BF78: 0.55 | BG78: -0.20 | BH78: 0.49 | BI78: -0.18 | BJ78: 0.56 | BK78: -0.18 | BL78: 0.56 | BM78: -0.21 | BN78: 0.51 | BO78: -0.15 | BP78: 0.50 | BQ78: -0.25 | BS78: 39 | BT78: -0.0570262715 | BU78: -0.0841381146 | BV78: 0.2251037342 | BW78: -0.2402220537 | BX78: -0.005641827355 | BY78: -0.02104789778 | CD78: 0.5292342446 | CE78: -0.1636335107 | CG78: -0.0570 | CH78: -0.0841
G79: 40 | J79: -0.05910712914 | K79: -0.08814246216 | L79: -0.01689579418 | M79: -0.014000765 | N79: -0.003724388393 | O79: -0.4504614547 | P79: 0.009829597074 | Q79: -0.343400952 | R79: 0.01069988247 | S79: -0.6054725734 | T79: -0.008533267756 | U79: -0.6167724299 | V79: -0.0350666289 | W79: -0.6649973838 | X79: -0.006770261186 | Y79: -0.6693952524 | Z79: 0.0270113051 | AA79: -0.6203999816 | AB79: 0.0138061887 | AC79: -0.6851562337 | AD79: -0.01470007315 | AE79: -0.6838562275 | AF79: 0.05471572776 | AG79: -0.6376819918 | AH79: -0.04731736233 | AI79: -0.6162621176 | AL79: -0.01689579418 | AM79: -0.014000765 | AN79: -0.003724388393 | AO79: -0.4504614547 | AP79: 0.009829597074 | AQ79: -0.343400952 | AS79: 40 | AT79: -0.0039 | AU79: -0.0216 | AV79: 0.3314 | AW79: -0.2355 | AX79: 0.2236 | AY79: -0.2408 | AZ79: 0.48 | BA79: -0.19 | BB79: 0.50 | BC79: -0.21 | BD79: 0.55 | BE79: -0.23 | BF79: 0.55 | BG79: -0.20 | BH79: 0.49 | BI79: -0.18 | BJ79: 0.56 | BK79: -0.18 | BL79: 0.56 | BM79: -0.21 | BN79: 0.51 | BO79: -0.15 | BP79: 0.50 | BQ79: -0.25 | BS79: 40 | BT79: -0.05910712914 | BU79: -0.08814246216 | BV79: 0.223610381 | BW79: -0.2407873519 | BX79: -0.003943410976 | BY79: -0.02158561538 | CD79: 0.5278667219 | CE79: -0.1635786177 | CG79: -0.0591 | CH79: -0.0881
G80: 41 | J80: -0.06112180205 | K80: -0.09199955356 | L80: -0.01620549939 | M80: -0.01563716153 | N80: -0.003837551607 | O80: -0.4568880775 | P80: 0.009590970827 | Q80: -0.3418619941 | R80: 0.01053562457 | S80: -0.6044625158 | T80: -0.009593940029 | U80: -0.6165071053 | V80: -0.03419561137 | W80: -0.6655396171 | X80: -0.006919624263 | Y80: -0.6698876682 | Z80: 0.0264462781 | AA80: -0.6201230242 | AB80: 0.01400816767 | AC80: -0.6837981775 | AD80: -0.01476360594 | AE80: -0.6830579107 | AF80: 0.05471572776 | AG80: -0.6376819918 | AH80: -0.05003534571 | AI80: -0.6167757327 | AL80: -0.01620549939 | AM80: -0.01563716153 | AN80: -0.003837551607 | AO80: -0.4568880775 | AP80: 0.009590970827 | AQ80: -0.3418619941 | AS80: 41 | AT80: -0.0024 | AU80: -0.0224 | AV80: 0.3377 | AW80: -0.2345 | AX80: 0.2221 | AY80: -0.2413 | AZ80: 0.48 | BA80: -0.19 | BB80: 0.50 | BC80: -0.21 | BD80: 0.55 | BE80: -0.23 | BF80: 0.55 | BG80: -0.20 | BH80: 0.49 | BI80: -0.18 | BJ80: 0.56 | BK80: -0.18 | BL80: 0.56 | BM80: -0.21 | BN80: 0.51 | BO80: -0.15 | BP80: 0.50 | BQ80: -0.25 | BS80: 41 | BT80: -0.06112180205 | BU80: -0.09199955356 | BV80: 0.2221362403 | BW80: -0.2412895901 | BX80: -0.002362759072 | BY80: -0.02239545491 | CD80: 0.5264977866 | CE80: -0.163516837 | CG80: -0.0611 | CH80: -0.0920
G81: 42 | J81: -0.06270836479 | K81: -0.09459425403 | L81: -0.01479591737 | M81: -0.02204360188 | N81: -0.004055954739 | O81: -0.4599957341 | P81: 0.008645625625 | Q81: -0.3371176806 | R81: 0.01001573759 | S81: -0.6028877973 | T81: -0.01049094824 | U81: -0.6163697247 | V81: -0.0328304047 | W81: -0.6658560609 | X81: -0.006678020679 | Y81: -0.6713819985 | Z81: -0.2739510662 | AB81: 0.01441552595 | AC81: -0.6808890426 | AD81: -0.01480729796 | AE81: -0.6821237101 | AF81: 0.05177906467 | AG81: -0.637422394 | AH81: -0.05235812419 | AI81: -0.6179711091 | AL81: -0.01479591737 | AM81: -0.02204360188 | AN81: -0.004055954739 | AO81: -0.4599957341 | AP81: 0.008645625625 | AQ81: -0.3371176806 | AS81: 42 | AT81: 0.0028 | AU81: -0.0264 | AV81: 0.3408 | AW81: -0.2342 | AX81: 0.2176 | AY81: -0.2430 | AZ81: 0.48 | BA81: -0.20 | BB81: 0.50 | BC81: -0.21 | BD81: 0.55 | BE81: -0.23 | BF81: 0.55 | BG81: -0.20 | BJ81: 0.56 | BK81: -0.18 | BL81: 0.56 | BM81: -0.21 | BN81: 0.51 | BO81: -0.15 | BP81: 0.50 | BQ81: -0.25 | BS81: 42 | BT81: -0.06270836479 | BU81: -0.09459425403 | BX81: 0.002835023879 | BY81: -0.02639701109 | CD81: 0.5253178337 | CE81: -0.1633789038 | CG81: -0.0627 | CH81: -0.0946
G82: 43 | J82: -0.06465777218 | K82: -0.09704413878 | L82: -0.0141693262 | M82: -0.02842807827 | N82: -0.00455783941 | O82: -0.4633674463 | P82: 0.006937886891 | Q82: -0.3306722827 | R82: 0.009155213952 | S82: -0.6014391032 | T82: -0.01139249568 | U82: -0.616283203 | V82: -0.03133790466 | W82: -0.6658620806 | X82: -0.005714778916 | Y82: -0.6726428276 | Z82: -0.4244552043 | AB82: 0.01445027782 | AC82: -0.678091387 | AD82: -0.01483224739 | AE82: -0.6805657331 | AF82: 0.04906106502 | AG82: -0.637935342 | AH82: -0.05410847301 | AI82: -0.6197571697 | AL82: -0.0141693262 | AM82: -0.02842807827 | AN82: -0.00455783941 | AO82: -0.4633674463 | AP82: 0.006937886891 | AQ82: -0.3306722827 | AS82: 43 | AT82: 0.0074 | AU82: -0.0309 | AV82: 0.3443 | AW82: -0.2341 | AX82: 0.2116 | AY82: -0.2458 | AZ82: 0.48 | BA82: -0.20 | BB82: 0.50 | BC82: -0.21 | BD82: 0.55 | BE82: -0.23 | BF82: 0.55 | BG82: -0.20 | BJ82: 0.55 | BK82: -0.18 | BL82: 0.56 | BM82: -0.21 | BN82: 0.51 | BO82: -0.15 | BP82: 0.51 | BQ82: -0.26 | BS82: 43 | BT82: -0.06465777218 | BU82: -0.09704413878 | BX82: 0.00741888288 | BY82: -0.03088503871 | CD82: 0.5239421286 | CE82: -0.1631713579 | CG82: -0.0647 | CH82: -0.0970
G83: 44 | J83: -0.06690213119 | K83: -0.09930249777 | L83: -0.0140952019 | M83: -0.03482085216 | N83: -0.005164467776 | O83: -0.4668289668 | P83: 0.004977806636 | Q83: -0.3239645863 | R83: 0.008127861823 | S83: -0.600204875 | T83: -0.01229580023 | U83: -0.6162124953 | V83: -0.02993467592 | W83: -0.6656435799 | X83: -0.004369608254 | Y83: -0.6736396986 | Z83: -0.4253481044 | AB83: 0.01433015935 | AC83: -0.6754922856 | AD83: -0.01477993249 | AE83: -0.6786621897 | AF83: 0.04673841669 | AG83: -0.6391304419 | AH83: -0.0551091674 | AI83: -0.6220428372 | AL83: -0.0140952019 | AM83: -0.03482085216 | AN83: -0.005164467776 | AO83: -0.4668289668 | AP83: 0.004977806636 | AQ83: -0.3239645863 | AS83: 44 | AT83: 0.0116 | AU83: -0.0357 | AV83: 0.3478 | AW83: -0.2341 | AX83: 0.2053 | AY83: -0.2489 | AZ83: 0.48 | BA83: -0.20 | BB83: 0.50 | BC83: -0.22 | BD83: 0.55 | BE83: -0.22 | BF83: 0.55 | BG83: -0.20 | BJ83: 0.55 | BK83: -0.18 | BL83: 0.56 | BM83: -0.21 | BN83: 0.51 | BO83: -0.15 | BP83: 0.51 | BQ83: -0.26 | BS83: 44 | BT83: -0.06690213119 | BU83: -0.09930249777 | BX83: 0.01158486124 | BY83: -0.03573454144 | CD83: 0.5225305514 | CE83: -0.1630285209 | CG83: -0.0669 | CH83: -0.0993
G84: 45 | J84: -0.06937354875 | K84: -0.101322621 | L84: -0.01434302047 | M84: -0.04125218501 | N84: -0.005697101993 | O84: -0.470206048 | P84: 0.003275436871 | Q84: -0.3184333773 | R84: 0.007107489353 | S84: -0.5992735542 | T84: -0.0131980798 | U84: -0.616122557 | V84: -0.02883728316 | W84: -0.6652864621 | X84: -0.002982217976 | Y84: -0.6743421549 | Z84: -0.2769117351 | AB84: 0.01427290662 | AC84: -0.6731788133 | AD84: -0.01459183149 | AE84: -0.6766912902 | AF84: 0.04498780756 | AG84: -0.6409172997 | AH84: -0.0560831471 | AI84: -0.6253867284 | AL84: -0.01434302047 | AM84: -0.04125218501 | AN84: -0.005697101993 | AO84: -0.470206048 | AP84: 0.003275436871 | AQ84: -0.3184333773 | AS84: 45 | AT84: 0.0155 | AU84: -0.0408 | AV84: 0.3512 | AW84: -0.2341 | AX84: 0.2002 | AY84: -0.2516 | AZ84: 0.48 | BA84: -0.20 | BB84: 0.50 | BC84: -0.22 | BD84: 0.55 | BE84: -0.22 | BF84: 0.55 | BG84: -0.20 | BJ84: 0.55 | BK84: -0.18 | BL84: 0.56 | BM84: -0.21 | BN84: 0.51 | BO84: -0.15 | BP84: 0.51 | BQ84: -0.26 | BS84: 45 | BT84: -0.06937354875 | BU84: -0.101322621 | BX84: 0.01552900227 | BY84: -0.04082052294 | CD84: 0.5212429826 | CE84: -0.1630847146 | CG84: -0.0694 | CH84: -0.1013
G85: 46 | J85: -0.07200413183 | K85: -0.1030577984 | L85: -0.01468225793 | M85: -0.04775233827 | N85: -0.00597700422 | O85: -0.4733244425 | P85: 0.002340829607 | Q85: -0.3155174417 | R85: 0.006267904697 | S85: -0.5987335823 | T85: -0.01409655228 | U85: -0.6159783432 | V85: -0.02826229103 | W85: -0.6648766309 | X85: -0.001892317364 | Y85: -0.6747197398 | Z85: 0.02057193507 | AA85: -0.688353666 | AB85: 0.01449625571 | AC85: -0.6712380451 | AD85: -0.01420942264 | AE85: -0.6749312447 | AF85: 0.04398592549 | AG85: -0.6432055215 | AH85: -0.05840571408 | AI85: -0.6333606229 | AL85: -0.01468225793 | AM85: -0.04775233827 | AN85: -0.00597700422 | AO85: -0.4733244425 | AP85: 0.002340829607 | AQ85: -0.3155174417 | AS85: 46 | AT85: 0.0194 | AU85: -0.0460 | AV85: 0.3543 | AW85: -0.2338 | AX85: 0.1975 | AY85: -0.2530 | AZ85: 0.48 | BA85: -0.20 | BB85: 0.50 | BC85: -0.22 | BD85: 0.55 | BE85: -0.22 | BF85: 0.55 | BG85: -0.19 | BH85: 0.56 | BI85: -0.17 | BJ85: 0.55 | BK85: -0.18 | BL85: 0.55 | BM85: -0.21 | BN85: 0.51 | BO85: -0.16 | BP85: 0.52 | BQ85: -0.26 | BS85: 46 | BT85: -0.07200413183 | BU85: -0.1030577984 | BX85: 0.01944734927 | BY85: -0.04601798686 | CD85: 0.5202393024 | CE85: -0.1634742609 | CG85: -0.0720 | CH85: -0.1031
G86: 47 | J86: -0.0766478422 | K86: -0.1034830939 | L86: -0.01557676063 | M86: -0.06240634404 | N86: -0.005850028114 | O86: -0.4848815947 | P86: 0.001992513706 | Q86: -0.3145445032 | R86: 0.006295986029 | S86: -0.5987395533 | T86: -0.01507104447 | U86: -0.6157175415 | V86: -0.02808716504 | W86: -0.664405333 | X86: -1.326786012e-05 | Y86: -0.6748428031 | Z86: 0.02111621019 | AA86: -0.687676395 | AB86: 0.01465660891 | AC86: -0.6706177177 | AD86: -0.01387483015 | AE86: -0.6741570719 | AF86: 0.04380868445 | AG86: -0.6439872433 | AH86: -0.06117781015 | AI86: -0.6428778517 | AL86: -0.01557676063 | AM86: -0.06240634404 | AN86: -0.005850028114 | AO86: -0.4848815947 | AP86: 0.001992513706 | AQ86: -0.3145445032 | AS86: 47 | AT86: 0.0282 | AU86: -0.0578 | AV86: 0.3657 | AW86: -0.2317 | AX86: 0.1966 | AY86: -0.2535 | AZ86: 0.48 | BA86: -0.20 | BB86: 0.50 | BC86: -0.22 | BD86: 0.55 | BE86: -0.22 | BF86: 0.55 | BG86: -0.19 | BH86: 0.56 | BI86: -0.17 | BJ86: 0.55 | BK86: -0.18 | BL86: 0.55 | BM86: -0.21 | BN86: 0.51 | BO86: -0.16 | BP86: 0.53 | BQ86: -0.26 | BS86: 47 | BT86: -0.0766478422 | BU86: -0.1034830939 | BX86: 0.02818153379 | BY86: -0.0578185818 | CD86: =NA() ->  | CE86: =NA() ->  | CG86: -0.0766 | CH86: -0.1035
G87: 48 | J87: -0.08000446438 | K87: -0.0999861627 | L87: -0.01674630094 | M87: -0.07694525865 | N87: -0.005394373516 | O87: -0.5072398914 | P87: 0.001571326259 | Q87: -0.3134948373 | R87: 0.006324897111 | S87: -0.5987457195 | T87: -0.01636855333 | U87: -0.615136554 | V87: -0.02804416448 | W87: -0.6639147069 | X87: 0.001640724245 | Y87: -0.6744088603 | Z87: 0.0216022564 | AA87: -0.6870491043 | AB87: 0.0149117488 | AC87: -0.6697086375 | AD87: -0.01332274562 | AE87: -0.6730652515 | AF87: 0.04338603274 | AG87: -0.6458513492 | AH87: -0.06350037713 | AI87: -0.6508517462 | AL87: -0.01674630094 | AM87: -0.07694525865 | AN87: -0.005394373516 | AO87: -0.5072398914 | AP87: 0.001571326259 | AQ87: -0.3134948373 | AS87: 48 | AT87: 0.0366 | AU87: -0.0697 | AV87: 0.3876 | AW87: -0.2273 | AX87: 0.1956 | AY87: -0.2541 | AZ87: 0.48 | BA87: -0.20 | BB87: 0.50 | BC87: -0.22 | BD87: 0.55 | BE87: -0.22 | BF87: 0.55 | BG87: -0.19 | BH87: 0.56 | BI87: -0.17 | BJ87: 0.54 | BK87: -0.18 | BL87: 0.55 | BM87: -0.21 | BN87: 0.52 | BO87: -0.16 | BP87: 0.54 | BQ87: -0.26 | BS87: 48 | BT87: -0.08000446438 | BU87: -0.0999861627 | BX87: 0.0366310481 | BY87: -0.06970780257 | CD87: =IF($K$11=0,BL165,NA()) -> 0.528309821 | CE87: =IF($K$11=0,BM165,NA()) -> -0.1909157728 | CG87: -0.0800 | CH87: -0.1000
G88: 49 | J88: -0.08222579376 | K88: -0.09481201452 | L88: -0.01800101262 | M88: -0.09143873226 | N88: -0.004847544071 | O88: -0.5330506788 | P88: 0.00109225157 | Q88: -0.3124376549 | R88: 0.006354003428 | S88: -0.5987527642 | T88: -0.01729809262 | U88: -0.6141860839 | V88: -0.02804967988 | W88: -0.6634205666 | X88: 0.003006890827 | Y88: -0.6736701553 | Z88: 0.02200845141 | AA88: -0.6864993219 | AB88: 0.01525225529 | AC88: -0.668657426 | AD88: -0.01270174306 | AE88: -0.6718691755 | AF88: 0.04288157747 | AG88: -0.6480762498 | AH88: -0.06447435683 | AI88: -0.6541956374 | AL88: -0.01800101262 | AM88: -0.09143873226 | AN88: -0.004847544071 | AO88: -0.5330506788 | AP88: 0.00109225157 | AQ88: -0.3124376549 | AS88: 49 | AT88: 0.0450 | AU88: -0.0816 | AV88: 0.4129 | AW88: -0.2223 | AX88: 0.1946 | AY88: -0.2548 | AZ88: 0.48 | BA88: -0.20 | BB88: 0.49 | BC88: -0.22 | BD88: 0.55 | BE88: -0.22 | BF88: 0.55 | BG88: -0.19 | BH88: 0.56 | BI88: -0.17 | BJ88: 0.54 | BK88: -0.18 | BL88: 0.55 | BM88: -0.21 | BN88: 0.52 | BO88: -0.16 | BP88: 0.54 | BQ88: -0.26 | BS88: 49 | BT88: -0.08222579376 | BU88: -0.09481201452 | BX88: 0.04498610845 | BY88: -0.08161696061 | CD88: 0.5288975235 | CE88: -0.1902898054 | CG88: -0.0822 | CH88: -0.0948
G89: 50 | J89: -0.08346362573 | K89: -0.09020565915 | L89: -0.01915102941 | M89: -0.105956415 | N89: -0.004447043423 | O89: -0.5549653034 | P89: 0.000570273941 | Q89: -0.3114421668 | R89: 0.006382670466 | S89: -0.5987613708 | T89: -0.01716867607 | U89: -0.6128168342 | V89: -0.02802010174 | W89: -0.6629387261 | X89: 0.004022463764 | Y89: -0.672878932 | Z89: 0.02231317291 | AA89: -0.6860545761 | AB89: 0.01566870828 | AC89: -0.6676107049 | AD89: -0.01216039647 | AE89: -0.6707822359 | AF89: 0.04245892576 | AG89: -0.6499403556 | AH89: -0.06434053936 | AI89: -0.6566918498 | AL89: -0.01915102941 | AM89: -0.105956415 | AN89: -0.004447043423 | AO89: -0.5549653034 | AP89: 0.000570273941 | AQ89: -0.3114421668 | AS89: 50 | AT89: 0.0534 | AU89: -0.0935 | AV89: 0.4344 | AW89: -0.2181 | AX89: 0.1937 | AY89: -0.2555 | AZ89: 0.48 | BA89: -0.20 | BB89: 0.49 | BC89: -0.22 | BD89: 0.54 | BE89: -0.22 | BF89: 0.55 | BG89: -0.19 | BH89: 0.56 | BI89: -0.17 | BJ89: 0.54 | BK89: -0.18 | BL89: 0.55 | BM89: -0.21 | BN89: 0.52 | BO89: -0.16 | BP89: 0.55 | BQ89: -0.26 | BS89: 50 | BT89: -0.08346362573 | BU89: -0.09020565915 | BX89: 0.05343693109 | BY89: -0.09347736737 | CD89: 0.529733173 | CE89: -0.1895859206 | CG89: -0.0835 | CH89: -0.0902
G90: 51 | J90: -0.08386975566 | K90: -0.08841210641 | L90: -0.02000648506 | M90: -0.1205679571 | N90: -0.004430375216 | O90: -0.5656351116 | P90: 2.037767602e-05 | Q90: -0.3105775839 | R90: 0.006410263711 | S90: -0.5987722226 | T90: -0.01528931744 | U90: -0.6109795081 | V90: -0.02787182059 | W90: -0.6624849994 | X90: 0.004624674933 | Y90: -0.6722874344 | Z90: 0.02249479861 | AA90: -0.6857423949 | AB90: 0.01615168768 | AC90: -0.6667150958 | AD90: -0.01184727985 | AE90: -0.670017825 | AF90: 0.04228168472 | AG90: -0.6507220775 | AH90: -0.06301529896 | AI90: -0.6590580356 | AL90: -0.02000648506 | AM90: -0.1205679571 | AN90: -0.004430375216 | AO90: -0.5656351116 | AP90: 2.037767602e-05 | AQ90: -0.3105775839 | AS90: 51 | AT90: 0.0622 | AU90: -0.1052 | AV90: 0.4449 | AW90: -0.2162 | AX90: 0.1930 | AY90: -0.2561 | AZ90: 0.48 | BA90: -0.20 | BB90: 0.49 | BC90: -0.22 | BD90: 0.54 | BE90: -0.22 | BF90: 0.55 | BG90: -0.19 | BH90: 0.56 | BI90: -0.17 | BJ90: 0.54 | BK90: -0.18 | BL90: 0.55 | BM90: -0.21 | BN90: 0.52 | BO90: -0.16 | BP90: 0.55 | BQ90: -0.26 | BS90: 51 | BT90: -0.08386975566 | BU90: -0.08841210641 | BX90: 0.06217373227 | BY90: -0.1052203343 | CD90: 0.5307542497 | CE90: -0.1888458706 | CG90: -0.0839 | CH90: -0.0884
G91: 52 | J91: -0.08444414581 | K91: -0.08183571379 | L91: -0.0205194412 | M91: -0.1405390233 | N91: -0.005860847399 | O91: -0.5732524577 | P91: -0.0005620333878 | Q91: -0.3098310044 | R91: 0.005922574267 | S91: -0.598328697 | T91: -0.01434636387 | U91: -0.6101147056 | V91: -0.02752569295 | W91: -0.6619809021 | X91: 0.004962976895 | Y91: -0.6718209849 | Z91: 0.02282720284 | AA91: -0.6850272158 | AB91: -0.2793453991 | AD91: -0.0117009836 | AE91: -0.6694120752 | AF91: 0.04035931741 | AG91: -0.6502863775 | AH91: -0.06081882139 | AI91: -0.6611368352 | AL91: -0.0205194412 | AM91: -0.1405390233 | AN91: -0.005860847399 | AO91: -0.5732524577 | AP91: -0.0005620333878 | AQ91: -0.3098310044 | AS91: 52 | AT91: 0.0746 | AU91: -0.1208 | AV91: 0.4527 | AW91: -0.2163 | AX91: 0.1924 | AY91: -0.2569 | AZ91: 0.48 | BA91: -0.20 | BB91: 0.49 | BC91: -0.22 | BD91: 0.54 | BE91: -0.22 | BF91: 0.55 | BG91: -0.19 | BH91: 0.56 | BI91: -0.17 | BL91: 0.55 | BM91: -0.21 | BN91: 0.52 | BO91: -0.16 | BP91: 0.55 | BQ91: -0.26 | BS91: 52 | BT91: -0.08444414581 | BU91: -0.08183571379 | BV91: 0.192354924 | BW91: -0.2568504704 | BX91: 0.07461793894 | BY91: -0.1208487804 | CD91: 0.5318982335 | CE91: -0.1881114078 | CG91: -0.0844 | CH91: -0.0818
G92: 53 | J92: -0.08474613402 | K92: -0.07534561515 | L92: -0.02100052518 | M92: -0.1731933502 | N92: -0.007845348326 | O92: -0.5786250869 | P92: -0.001040969785 | Q92: -0.3093818658 | R92: 0.005458508286 | S92: -0.597803075 | T92: -0.01303607524 | U92: -0.6086989004 | V92: -0.02710274026 | W92: -0.661502771 | X92: 0.005189360266 | Y92: -0.6713086552 | Z92: 0.02338861798 | AA92: -0.6838143821 | AB92: -0.4276668562 | AD92: -0.01159231893 | AE92: -0.6685415864 | AF92: 0.03577521072 | AG92: -0.6492474008 | AH92: -0.05807129242 | AI92: -0.6627708889 | AL92: -0.02100052518 | AM92: -0.1731933502 | AN92: -0.007845348326 | AO92: -0.5786250869 | AP92: -0.001040969785 | AQ92: -0.3093818658 | AS92: 53 | AT92: 0.0952 | AU92: -0.1462 | AV92: 0.4583 | AW92: -0.2173 | AX92: 0.1920 | AY92: -0.2574 | AZ92: 0.47 | BA92: -0.20 | BB92: 0.49 | BC92: -0.22 | BD92: 0.54 | BE92: -0.22 | BF92: 0.55 | BG92: -0.19 | BH92: 0.56 | BI92: -0.17 | BL92: 0.55 | BM92: -0.21 | BN92: 0.52 | BO92: -0.16 | BP92: 0.55 | BQ92: -0.25 | BS92: 53 | BT92: -0.08474613402 | BU92: -0.07534561515 | BV92: 0.1919957753 | BW92: -0.2574001228 | BX92: 0.09523920398 | BY92: -0.1461726809 | CD92: 0.5331026044 | CE92: -0.1874242844 | CG92: -0.0847 | CH92: -0.0753
G93: 54 | J93: -0.08479641522 | K93: -0.06893951645 | L93: -0.02125777199 | M93: -0.2093549314 | N93: -0.009557349695 | O93: -0.5824177751 | P93: -0.001551143818 | Q93: -0.3090936986 | R93: 0.005017528869 | S93: -0.5972313775 | T93: -0.01160464315 | U93: -0.6070759995 | V93: -0.02666768297 | W93: -0.6610277637 | X93: 0.005332719861 | Y93: -0.6707631354 | Z93: 0.02402685818 | AA93: -0.6824340365 | AB93: -0.4293415269 | AD93: -0.01163774365 | AE93: -0.6675233046 | AF93: 0.03030385759 | AG93: -0.6480073317 | AH93: -0.0550928978 | AI93: -0.6638028372 | AL93: -0.02125777199 | AM93: -0.2093549314 | AN93: -0.009557349695 | AO93: -0.5824177751 | AP93: -0.001551143818 | AQ93: -0.3090936986 | AS93: 54 | AT93: 0.1183 | AU93: -0.1740 | AV93: 0.4624 | AW93: -0.2184 | AX93: 0.1918 | AY93: -0.2580 | AZ93: 0.47 | BA93: -0.20 | BB93: 0.49 | BC93: -0.22 | BD93: 0.54 | BE93: -0.22 | BF93: 0.55 | BG93: -0.19 | BH93: 0.56 | BI93: -0.17 | BL93: 0.55 | BM93: -0.21 | BN93: 0.52 | BO93: -0.17 | BP93: 0.55 | BQ93: -0.25 | BS93: 54 | BT93: -0.08479641522 | BU93: -0.06893951645 | BV93: 0.1918005768 | BW93: -0.2579525858 | BX93: 0.1182863579 | BY93: -0.1740394143 | CD93: 0.5340790555 | CE93: -0.186931189 | CG93: -0.0848 | CH93: -0.0689
G94: 55 | J94: -0.08461568435 | K94: -0.0626151237 | L94: -0.02109921659 | M94: -0.2398477605 | N94: -0.01017032321 | O94: -0.5852952982 | P94: -0.002227267787 | Q94: -0.3088300334 | R94: 0.00459909912 | S94: -0.5966496253 | T94: -0.01029825922 | U94: -0.6055899097 | V94: -0.02628524158 | W94: -0.6605330377 | X94: 0.005421950491 | Y94: -0.670197116 | Z94: 0.02458973759 | AA94: -0.6812163219 | AB94: -0.2848982548 | AD94: -0.01195371559 | AE94: -0.6664741756 | AF94: 0.02571975091 | AG94: -0.646968355 | AH94: -0.0550928978 | AI94: -0.6638028372 | AL94: -0.02109921659 | AM94: -0.2398477605 | AN94: -0.01017032321 | AO94: -0.5852952982 | AP94: -0.002227267787 | AQ94: -0.3088300334 | AS94: 55 | AT94: 0.1380 | AU94: -0.1973 | AV94: 0.4653 | AW94: -0.2185 | AX94: 0.1917 | AY94: -0.2587 | AZ94: 0.47 | BA94: -0.20 | BB94: 0.49 | BC94: -0.22 | BD94: 0.54 | BE94: -0.22 | BF94: 0.55 | BG94: -0.19 | BH94: 0.55 | BI94: -0.17 | BL94: 0.55 | BM94: -0.21 | BN94: 0.52 | BO94: -0.17 | BP94: 0.55 | BQ94: -0.25 | BS94: 55 | BT94: -0.08461568435 | BU94: -0.0626151237 | BV94: 0.191658325 | BW94: -0.2586642229 | BX94: 0.138008231 | BY94: -0.1972963591 | CD94: 0.5350208709 | CE94: -0.1865182462 | CG94: -0.0846 | CH94: -0.0626
G95: 56 | J95: -0.08422463634 | K95: -0.05637014287 | L95: -0.02033289395 | M95: -0.2554958308 | N95: -0.008857740556 | O95: -0.5879224321 | P95: -0.003204053994 | Q95: -0.3084544009 | R95: 0.004202682141 | S95: -0.5960938395 | T95: -0.009363115056 | U95: -0.6045845378 | V95: -0.02602013656 | W95: -0.6599957504 | X95: 0.005485946969 | Y95: -0.6696232871 | Z95: 0.02492507035 | AA95: -0.680491381 | AB95: 0.005134116834 | AC95: -0.6714658195 | AD95: -0.01265669253 | AE95: -0.6655111453 | AF95: 0.02379738359 | AG95: -0.646532655 | AH95: -0.0550928978 | AI95: -0.6638028372 | AL95: -0.02033289395 | AM95: -0.2554958308 | AN95: -0.008857740556 | AO95: -0.5879224321 | AP95: -0.003204053994 | AQ95: -0.3084544009 | AS95: 56 | AT95: 0.1487 | AU95: -0.2088 | AV95: 0.4677 | AW95: -0.2167 | AX95: 0.1915 | AY95: -0.2597 | AZ95: 0.47 | BA95: -0.20 | BB95: 0.48 | BC95: -0.21 | BD95: 0.54 | BE95: -0.22 | BF95: 0.55 | BG95: -0.19 | BH95: 0.55 | BI95: -0.17 | BJ95: 0.55 | BK95: -0.19 | BL95: 0.54 | BM95: -0.21 | BN95: 0.52 | BO95: -0.17 | BP95: 0.55 | BQ95: -0.25 | BS95: 56 | BT95: -0.08422463634 | BU95: -0.05637014287 | BV95: 0.1914580163 | BW95: -0.2596913975 | BX95: 0.1486536539 | BY95: -0.2087908937 | CD95: 0.5358950769 | CE95: -0.1862075758 | CG95: -0.0842 | CH95: -0.0564
G96: 57 | J96: -0.08364096438 | K96: -0.04709876397 | L96: -0.0198000889 | M96: -0.2603648995 | N96: -0.006223187697 | O96: -0.5891283838 | P96: -0.004878236675 | Q96: -0.3076224548 | R96: 0.003922446388 | S96: -0.5955030089 | T96: -0.2924847049 | V96: -0.02590339403 | W96: -0.659199028 | X96: 0.005507016103 | Y96: -0.6686171099 | Z96: 0.02561286776 | AA96: -0.6792217664 | AB96: 0.005409186988 | AC96: -0.6718702818 | AD96: -0.01288624034 | AE96: -0.6653453255 | AF96: -0.2748729832 | AH96: -0.0550928978 | AI96: -0.6638028372 | AL96: -0.0198000889 | AM96: -0.2603648995 | AN96: -0.006223187697 | AO96: -0.5891283838 | AP96: -0.004878236675 | AQ96: -0.3076224548 | AS96: 57 | AT96: 0.1522 | AU96: -0.2122 | AV96: 0.4684 | AW96: -0.2139 | AX96: 0.1909 | AY96: -0.2615 | AZ96: 0.47 | BA96: -0.20 | BD96: 0.54 | BE96: -0.22 | BF96: 0.54 | BG96: -0.19 | BH96: 0.55 | BI96: -0.17 | BJ96: 0.55 | BK96: -0.19 | BL96: 0.54 | BM96: -0.21 | BP96: 0.55 | BQ96: -0.25 | BS96: 57 | BT96: -0.08364096438 | BU96: -0.04709876397 | BV96: 0.1909294281 | BW96: -0.2614846115 | BX96: 0.1521915833 | BY96: -0.2121783363 | CD96: 0.5366687 | CE96: -0.1860212978 | CG96: -0.0836 | CH96: -0.0471
G97: 58 | J97: -0.08300238252 | K97: -0.03464051176 | L97: -0.01948951034 | M97: -0.2676003655 | N97: -0.002116707709 | O97: -0.5896283649 | P97: -0.006465295638 | Q97: -0.3066675105 | R97: 0.003838714884 | S97: -0.594877036 | T97: -0.4337838684 | V97: -0.02593132081 | W97: -0.6582256177 | X97: 0.005459996954 | Y97: -0.66714393 | Z97: 0.02662621989 | AA97: -0.6775200962 | AB97: 0.005643208938 | AC97: -0.6722981723 | AD97: -0.01315424949 | AE97: -0.6652290955 | AF97: -0.4215528293 | AH97: -0.0550928978 | AI97: -0.6638028372 | AL97: -0.01948951034 | AM97: -0.2676003655 | AN97: -0.002116707709 | AO97: -0.5896283649 | AP97: -0.006465295638 | AQ97: -0.3066675105 | AS97: 58 | AT97: 0.1571 | AU97: -0.2175 | AV97: 0.4682 | AW97: -0.2098 | AX97: 0.1903 | AY97: -0.2632 | AZ97: 0.47 | BA97: -0.20 | BD97: 0.54 | BE97: -0.22 | BF97: 0.54 | BG97: -0.19 | BH97: 0.55 | BI97: -0.17 | BJ97: 0.55 | BK97: -0.19 | BL97: 0.54 | BM97: -0.21 | BP97: 0.55 | BQ97: -0.25 | BS97: 58 | BT97: -0.08300238252 | BU97: -0.03464051176 | BV97: 0.1902645815 | BW97: -0.2632133838 | BX97: 0.1570803682 | BY97: -0.2175213888 | CD97: 0.5373087666 | CE97: -0.1859815321 | CG97: -0.0830 | CH97: -0.0346
G98: 59 | J98: -0.08236136022 | K98: -0.02148009609 | L98: -0.01934151391 | M98: -0.2752212259 | N98: 0.002431443153 | O98: -0.5897277233 | P98: -0.00805772357 | Q98: -0.3057594227 | R98: 0.003858799707 | S98: -0.5942261706 | T98: -0.4330190995 | V98: -0.02602504185 | W98: -0.6571799704 | X98: 0.005393698328 | Y98: -0.6655157334 | Z98: 0.02778477823 | AA98: -0.675508783 | AB98: 0.005818806748 | AC98: -0.6727426579 | AD98: -0.01344842016 | AE98: -0.6651485935 | AF98: -0.4137910742 | AH98: -0.0550928978 | AI98: -0.6638028372 | AL98: -0.01934151391 | AM98: -0.2752212259 | AN98: 0.002431443153 | AO98: -0.5897277233 | AP98: -0.00805772357 | AQ98: -0.3057594227 | AS98: 59 | AT98: 0.1621 | AU98: -0.2233 | AV98: 0.4675 | AW98: -0.2053 | AX98: 0.1896 | AY98: -0.2649 | AZ98: 0.47 | BA98: -0.20 | BD98: 0.54 | BE98: -0.22 | BF98: 0.54 | BG98: -0.19 | BH98: 0.55 | BI98: -0.17 | BJ98: 0.55 | BK98: -0.19 | BL98: 0.54 | BM98: -0.21 | BP98: 0.55 | BQ98: -0.25 | BS98: 59 | BT98: -0.08236136022 | BU98: -0.02148009609 | BV98: 0.1896468118 | BW98: -0.2649393069 | BX98: 0.1620923347 | BY98: -0.2232641762 | CG98: -0.0824 | CH98: -0.0215
G99: 60 | J99: -0.08177036694 | K99: -0.01010222679 | L99: -0.01929645524 | M99: -0.2812464776 | N99: 0.006391008637 | O99: -0.589731807 | P99: -0.009748013156 | Q99: -0.305068046 | R99: 0.003890012938 | S99: -0.5935606625 | T99: -0.2899488923 | V99: -0.02610568213 | W99: -0.6561665369 | X99: 0.005356929028 | Y99: -0.6640445058 | Z99: 0.02890819422 | AA99: -0.6733102392 | AB99: 0.005918604485 | AC99: -0.6731969051 | AD99: -0.01375645252 | AE99: -0.6650899579 | AF99: -0.2491366373 | AH99: -0.05215595812 | AI99: -0.6640639968 | AL99: -0.01929645524 | AM99: -0.2812464776 | AN99: 0.006391008637 | AO99: -0.589731807 | AP99: -0.009748013156 | AQ99: -0.305068046 | AS99: 60 | AT99: 0.1660 | AU99: -0.2279 | AV99: 0.4668 | AW99: -0.2014 | AX99: 0.1893 | AY99: -0.2667 | AZ99: 0.47 | BA99: -0.20 | BD99: 0.54 | BE99: -0.22 | BF99: 0.54 | BG99: -0.19 | BH99: 0.55 | BI99: -0.16 | BJ99: 0.55 | BK99: -0.19 | BL99: 0.54 | BM99: -0.21 | BP99: 0.55 | BQ99: -0.25 | BS99: 60 | BT99: -0.08177036694 | BU99: -0.01010222679 | BV99: 0.1892594543 | BW99: -0.2667239735 | BX99: 0.1659998088 | BY99: -0.2278508237 | CG99: -0.0818 | CH99: -0.0101
G100: 61 | J100: -0.08128187215 | K100: -0.002991613671 | L100: -0.01929468999 | M100: -0.2836951178 | N100: 0.008731732491 | O100: -0.5899459638 | P100: -0.01162865708 | Q100: -0.304763235 | R100: 0.003839666655 | S100: -0.5928907617 | T100: -0.004331740756 | U100: -0.600736777 | V100: -0.02609436662 | W100: -0.6552897681 | X100: 0.00539849786 | Y100: -0.6630422333 | Z100: 0.02981611934 | AA100: -0.6710468773 | AB100: 0.005925226213 | AC100: -0.6736540809 | AD100: -0.01406604677 | AE100: -0.6650393269 | AF100: 0.07486156196 | AG100: -0.6572421203 | AH100: -0.04943821879 | AI100: -0.663551244 | AL100: -0.01929468999 | AM100: -0.2836951178 | AN100: 0.008731732491 | AO100: -0.5899459638 | AP100: -0.01162865708 | AQ100: -0.304763235 | AS100: 61 | AT100: 0.1676 | AU100: -0.2297 | AV100: 0.4666 | AW100: -0.1991 | AX100: 0.1893 | AY100: -0.2686 | AZ100: 0.47 | BA100: -0.20 | BB100: 0.48 | BC100: -0.21 | BD100: 0.54 | BE100: -0.22 | BF100: 0.54 | BG100: -0.19 | BH100: 0.54 | BI100: -0.16 | BJ100: 0.55 | BK100: -0.19 | BL100: 0.54 | BM100: -0.21 | BN100: 0.52 | BO100: -0.12 | BP100: 0.55 | BQ100: -0.24 | BS100: 61 | BT100: -0.08128187215 | BU100: -0.002991613671 | BV100: 0.1892858445 | BW100: -0.2686289761 | BX100: 0.1675751166 | BY100: -0.2297254562 | CG100: -0.0813 | CH100: -0.0030
G101: 62 | J101: -0.07930717366 | K101: 0.005913894435 | L101: -0.01907001493 | M101: -0.2880808004 | N101: 0.01172625029 | O101: -0.5914141652 | P101: -0.01427952022 | Q101: -0.304783572 | R101: 0.003762060656 | S101: -0.5922148899 | T101: -0.005060277247 | U101: -0.6003582322 | V101: -0.02560112111 | W101: -0.6527081728 | X101: 0.005511986466 | Y101: -0.6615004933 | Z101: 0.02996422965 | AA101: -0.6704669961 | AB101: 0.005543972503 | AC101: -0.6746270031 | AD101: -0.2949037019 | AF101: 0.07491150964 | AG101: -0.6557647429 | AH101: -0.04711617244 | AI101: -0.6623555585 | AL101: -0.01907001493 | AM101: -0.2880808004 | AN101: 0.01172625029 | AO101: -0.5914141652 | AP101: -0.01427952022 | AQ101: -0.304783572 | AS101: 62 | AT101: 0.1706 | AU101: -0.2329 | AV101: 0.4675 | AW101: -0.1959 | AX101: 0.1898 | AY101: -0.2712 | AZ101: 0.47 | BA101: -0.20 | BB101: 0.48 | BC101: -0.21 | BD101: 0.53 | BE101: -0.22 | BF101: 0.54 | BG101: -0.19 | BH101: 0.54 | BI101: -0.16 | BJ101: 0.55 | BK101: -0.19 | BN101: 0.52 | BO101: -0.12 | BP101: 0.55 | BQ101: -0.24 | BS101: 62 | BT101: -0.07930717366 | BU101: 0.005913894435 | BV101: 0.1897661901 | BW101: -0.2712360352 | BX101: 0.1705662901 | BY101: -0.2329406656 | CG101: -0.0793 | CH101: 0.0059
G102: 63 | J102: -0.07586372061 | K102: 0.01327640979 | L102: -0.01862550501 | M102: -0.2949633462 | N102: 0.01453246371 | O102: -0.5932554611 | P102: -0.01674915626 | Q102: -0.3050176916 | R102: 0.003779387781 | S102: -0.5915417514 | T102: -0.005783347152 | U102: -0.5999995038 | V102: -0.02477041152 | W102: -0.6497238072 | X102: 0.005525709875 | Y102: -0.6593923759 | Z102: 0.03015660956 | AA102: -0.6695403772 | AB102: 0.004735788178 | AC102: -0.6758537311 | AD102: -0.4348884686 | AF102: 0.07443285796 | AG102: -0.6543629214 | AH102: -0.04536631171 | AI102: -0.6605679197 | AL102: -0.01862550501 | AM102: -0.2949633462 | AN102: 0.01453246371 | AO102: -0.5932554611 | AP102: -0.01674915626 | AQ102: -0.3050176916 | AS102: 63 | AT102: 0.1753 | AU102: -0.2379 | AV102: 0.4689 | AW102: -0.1928 | AX102: 0.1904 | AY102: -0.2736 | AZ102: 0.47 | BA102: -0.20 | BB102: 0.48 | BC102: -0.21 | BD102: 0.53 | BE102: -0.22 | BF102: 0.54 | BG102: -0.19 | BH102: 0.54 | BI102: -0.16 | BJ102: 0.55 | BK102: -0.19 | BN102: 0.52 | BO102: -0.12 | BP102: 0.55 | BQ102: -0.24 | BS102: 63 | BT102: -0.07586372061 | BU102: 0.01327640979 | BV102: 0.1904256006 | BW102: -0.2736274975 | BX102: 0.1753308196 | BY102: -0.2379272761 | CG102: -0.0759 | CH102: 0.0133
G103: 64 | J103: -0.07172747539 | K103: 0.01916533852 | L103: -0.01811324847 | M103: -0.3030686502 | N103: 0.01704333506 | O103: -0.5948535915 | P103: -0.01910819155 | Q103: -0.3054982956 | R103: 0.003895308693 | S103: -0.5908896983 | T103: -0.006503537337 | U103: -0.5996325755 | V103: -0.0238436462 | W103: -0.6468515067 | X103: 0.005482180556 | Y103: -0.6568914453 | Z103: 0.03037041653 | AA103: -0.6684103233 | AB103: 0.003762434857 | AC103: -0.6771390296 | AD103: -0.4336196756 | AF103: 0.07349686778 | AG103: -0.6531307594 | AH103: -0.04436512923 | AI103: -0.6582793074 | AL103: -0.01811324847 | AM103: -0.3030686502 | AN103: 0.01704333506 | AO103: -0.5948535915 | AP103: -0.01910819155 | AQ103: -0.3054982956 | AS103: 64 | AT103: 0.1809 | AU103: -0.2438 | AV103: 0.4700 | AW103: -0.1900 | AX103: 0.1913 | AY103: -0.2759 | AZ103: 0.47 | BA103: -0.20 | BB103: 0.48 | BC103: -0.21 | BD103: 0.53 | BE103: -0.22 | BF103: 0.53 | BG103: -0.19 | BH103: 0.54 | BI103: -0.16 | BJ103: 0.55 | BK103: -0.19 | BN103: 0.52 | BO103: -0.12 | BP103: 0.54 | BQ103: -0.24 | BS103: 64 | BT103: -0.07172747539 | BU103: 0.01916533852 | BV103: 0.1913085454 | BW103: -0.2758672377 | BX103: 0.1809332199 | BY103: -0.2438070271 | CG103: -0.0717 | CH103: 0.0192
G104: 65 | J104: -0.06767440037 | K104: 0.02365008675 | L104: -0.01768533354 | M104: -0.3111226074 | N104: 0.01915182662 | O104: -0.5955922965 | P104: -0.02142725243 | Q104: -0.306258086 | R104: 0.004113484051 | S104: -0.5902770827 | T104: -0.007223434669 | U104: -0.599229431 | V104: -0.0230622335 | W104: -0.6446061064 | X104: 0.005423910978 | Y104: -0.6541712655 | Z104: 0.03058280804 | AA104: -0.6672201368 | AB104: 0.00288567416 | AC104: -0.6782876635 | AD104: -0.2906966513 | AF104: 0.07217479995 | AG104: -0.6521623602 | AH104: -0.04415922929 | AI104: -0.6573706827 | AL104: -0.01768533354 | AM104: -0.3111226074 | AN104: 0.01915182662 | AO104: -0.5955922965 | AP104: -0.02142725243 | AQ104: -0.306258086 | AS104: 65 | AT104: =IMREAL(IMPRODUCT(COMPLEX((AL104-AT$35),(AM104-AU$35)),AT$36))+AT$37 -> 0.1864 | AU104: =IMAGINARY(IMPRODUCT(COMPLEX((AL104-AT$35),(AM104-AU$35)),AT$36))+AU$37 -> -0.2497 | AV104: =IMREAL(IMPRODUCT(COMPLEX((AN104-AV$35),(AO104-AW$35)),AV$36))+AV$37 -> 0.4704 | AW104: =IMAGINARY(IMPRODUCT(COMPLEX((AN104-AV$35),(AO104-AW$35)),AV$36))+AW$37 -> -0.1878 | AX104: =IMREAL(IMPRODUCT(COMPLEX((AP104-AX$35),(AQ104-AY$35)),AX$36))+AX$37 -> 0.1925 | AY104: =IMAGINARY(IMPRODUCT(COMPLEX((AP104-AX$35),(AQ104-AY$35)),AX$36))+AY$37 -> -0.2780 | AZ104: =IMREAL(IMPRODUCT(COMPLEX(R104-AZ$35,S104-BA$35),AZ$36))+AZ$37 -> 0.47 | BA104: =IMAGINARY(IMPRODUCT(COMPLEX(R104-AZ$35,S104-BA$35),AZ$36))+BA$37 -> -0.20 | BB104: =IMREAL(IMPRODUCT(COMPLEX(T104-BB$35,U104-BC$35),BB$36))+BB$37 -> 0.48 | BC104: =IMAGINARY(IMPRODUCT(COMPLEX(T104-BB$35,U104-BC$35),BB$36))+BC$37 -> -0.21 | BD104: =IMREAL(IMPRODUCT(COMPLEX(V104-BD$35,W104-BE$35),BD$36))+BD$37 -> 0.53 | BE104: =IMAGINARY(IMPRODUCT(COMPLEX(V104-BD$35,W104-BE$35),BD$36))+BE$37 -> -0.22 | BF104: =IMREAL(IMPRODUCT(COMPLEX(X104-BF$35,Y104-BG$35),BF$36))+BF$37 -> 0.53 | BG104: =IMAGINARY(IMPRODUCT(COMPLEX(X104-BF$35,Y104-BG$35),BF$36))+BG$37 -> -0.19 | BH104: =IMREAL(IMPRODUCT(COMPLEX(Z104-BH$35,AA104-BI$35),BH$36))+BH$37 -> 0.54 | BI104: =IMAGINARY(IMPRODUCT(COMPLEX(Z104-BH$35,AA104-BI$35),BH$36))+BI$37 -> -0.16 | BJ104: =IMREAL(IMPRODUCT(COMPLEX(AB104-BJ$35,AC104-BK$35),BJ$36))+BJ$37 -> 0.55 | BK104: =IMAGINARY(IMPRODUCT(COMPLEX(AB104-BJ$35,AC104-BK$35),BJ$36))+BK$37 -> -0.19 | BL104: =IMREAL(IMPRODUCT(COMPLEX(AD104-BL$35,AE104-BM$35),BL$36))+BL$37 ->  | BM104: =IMAGINARY(IMPRODUCT(COMPLEX(AD104-BL$35,AE104-BM$35),BL$36))+BM$37 ->  | BN104: =IMREAL(IMPRODUCT(COMPLEX(AF104-BN$35,AG104-BO$35),BN$36))+BN$37 -> 0.52 | BO104: =IMAGINARY(IMPRODUCT(COMPLEX(AF104-BN$35,AG104-BO$35),BN$36))+BO$37 -> -0.13 | BP104: =IMREAL(IMPRODUCT(COMPLEX(AH104-BP$35,AI104-BQ$35),BP$36))+BP$37 -> 0.54 | BQ104: =IMAGINARY(IMPRODUCT(COMPLEX(AH104-BP$35,AI104-BQ$35),BP$36))+BQ$37 -> -0.24 | BS104: 65 | BT104: -0.06767440037 | BU104: 0.02365008675 | BV104: 0.1924594935 | BW104: -0.2780191306 | BX104: 0.1864380056 | BY104: -0.2497016578 | BZ104: =IF($K$11=0,NA(),BN104) ->  | CA104: =IF($K$11=0,NA(),BO104) ->  | CB104: =IF($K$11=0,NA(),BP104) ->  | CC104: =IF($K$11=0,NA(),BQ104) ->  | CG104: -0.0677 | CH104: 0.0237
G105: 66 | J105: -0.06448045793 | K105: 0.02680006059 | L105: -0.01749384846 | M105: -0.3178511126 | N105: 0.02075090069 | O105: -0.5948553161 | P105: -0.02377696524 | Q105: -0.3073297647 | R105: 0.004437574515 | S105: -0.5897222567 | T105: -0.007945626015 | U105: -0.5987620541 | V105: -0.02266758178 | W105: -0.6435024417 | X105: 0.00539341361 | Y105: -0.6514054007 | Z105: 0.03077094158 | AA105: -0.6661131206 | AB105: 0.002367267709 | AC105: -0.6791043975 | AD105: -0.005718724294 | AE105: -0.664624452 | AF105: 0.07053791533 | AG105: -0.6515518271 | AH105: -0.04366823712 | AI105: -0.6552039622 | AL105: =L105 -> -0.01749384846 | AM105: =IF(M105>AM$33,M105,IF(M105<AM$34,M105+AM$37,(M105-AM$33)*AM$38+AM$33)) -> -0.3178511126 | AN105: =N105 -> 0.02075090069 | AO105: =IF(O105>AO$33,O105,IF(O105<AO$34,O105+AO$37,(O105-AO$33)*AO$38+AO$33)) -> -0.5948553161 | AP105: =P105 -> -0.02377696524 | AQ105: =IF(Q105>AQ$33,Q105,IF(Q105<AQ$34,Q105+AQ$37,(Q105-AQ$33)*AQ$38+AQ$33)) -> -0.3073297647 | AS105: 66 | AT105: 0.1909 | AU105: -0.2547 | AV105: 0.4693 | AW105: -0.1864 | AX105: 0.1939 | AY105: -0.2801 | AZ105: 0.47 | BA105: -0.20 | BB105: 0.48 | BC105: -0.21 | BD105: 0.52 | BE105: -0.22 | BF105: 0.53 | BG105: -0.19 | BH105: 0.54 | BI105: -0.16 | BJ105: 0.56 | BK105: -0.19 | BL105: 0.54 | BM105: -0.20 | BN105: 0.52 | BO105: -0.13 | BP105: 0.54 | BQ105: -0.24 | BS105: 66 | BT105: =IF(ISERROR(MATCH($BS105,$CI$218:$CI$403,0)),CG105,IF(ISNA(INDEX($CJ$218:$CJ$403,MATCH($BS105,$CI$218:$CI$403,0),1)),NA(),CG105)) -> -0.06448045793 | BU105: =IF(ISERROR(MATCH($BS105,$CI$218:$CI$403,0)),CH105,IF(ISNA(INDEX($CJ$218:$CJ$403,MATCH($BS105,$CI$218:$CI$403,0),1)),NA(),CH105)) -> 0.02680006059 | BV105: 0.1939229143 | BW105: -0.280147051 | BX105: =IF(ISERROR(MATCH($AS105,$ER$218:$ER$247,0)),AT105,IF(ISNA(INDEX($ES$218:$ES$247,MATCH($AS105,$ER$218:$ER$247,0),1)),NA(),AT105)) -> 0.1909096915 | BY105: =IF(ISERROR(MATCH($AS105,$ER$218:$ER$247,0)),AU105,IF(ISNA(INDEX($ES$218:$ES$247,MATCH($AS105,$ER$218:$ER$247,0),1)),NA(),AU105)) -> -0.2547329076 | CG105: =IMREAL(IMPRODUCT(COMPLEX((J105-CG$35),(K105-CH$35)),CG$36))+CG$37 -> -0.0645 | CH105: =IMAGINARY(IMPRODUCT(COMPLEX((J105-CG$35),(K105-CH$35)),CG$36))+CH$37 -> 0.0268
G106: 67 | J106: -0.05860856347 | K106: 0.03109865203 | L106: -0.01752611922 | M106: -0.3198222725 | N106: 0.02114194056 | O106: -0.593302952 | P106: -0.02803560667 | Q106: -0.3102320013 | R106: -0.2852451552 | T106: -0.008572290395 | U106: -0.5982784565 | V106: -0.02208516258 | W106: -0.6421749073 | X106: 0.005401288097 | Y106: -0.6501031167 | Z106: -0.2718930186 | AB106: 0.002077579318 | AC106: -0.6801536241 | AD106: -0.00612523656 | AE106: -0.6657283445 | AF106: 0.07053791533 | AG106: -0.6515518271 | AH106: -0.0430822142 | AI106: -0.6526178765 | AL106: -0.01752611922 | AM106: -0.3198222725 | AN106: 0.02114194056 | AO106: -0.593302952 | AP106: -0.02803560667 | AQ106: -0.3102320013 | AS106: 67 | AT106: 0.1922 | AU106: -0.2563 | AV106: 0.4678 | AW106: -0.1863 | AX106: 0.1975 | AY106: -0.2838 | BB106: 0.48 | BC106: -0.21 | BD106: 0.52 | BE106: -0.22 | BF106: 0.53 | BG106: -0.19 | BJ106: 0.56 | BK106: -0.19 | BL106: 0.54 | BM106: -0.20 | BN106: 0.52 | BO106: -0.13 | BP106: 0.54 | BQ106: -0.24 | BS106: 67 | BT106: -0.05860856347 | BU106: 0.03109865203 | BV106: 0.1975205648 | BW106: -0.283837026 | BX106: 0.1921520078 | BY106: -0.2562636469 | CG106: -0.0586 | CH106: 0.0311
G107: 68 | J107: -0.04895769611 | K107: 0.03679659191 | L107: -0.01760949279 | M107: -0.3216895672 | N107: 0.02126599627 | O107: -0.5903722273 | P107: -0.03106934234 | Q107: -0.3137994043 | R107: -0.4294141463 | T107: -0.00929925687 | U107: -0.5975889833 | V107: -0.0208581743 | W107: -0.6395455445 | X107: 0.005430540841 | Y107: -0.6488502273 | Z107: -0.4247705173 | AB107: 0.001842263935 | AC107: -0.6816167494 | AD107: -0.00661897016 | AE107: -0.6669230214 | AF107: 0.07053791533 | AG107: -0.6515518271 | AH107: -0.04259122203 | AI107: -0.6504511561 | AL107: -0.01760949279 | AM107: -0.3216895672 | AN107: 0.02126599627 | AO107: -0.5903722273 | AP107: -0.03106934234 | AQ107: -0.3137994043 | AS107: 68 | AT107: 0.1933 | AU107: -0.2577 | AV107: 0.4648 | AW107: -0.1866 | AX107: 0.2016 | AY107: -0.2862 | BB107: 0.48 | BC107: -0.22 | BD107: 0.52 | BE107: -0.22 | BF107: 0.53 | BG107: -0.19 | BJ107: 0.56 | BK107: -0.19 | BL107: 0.55 | BM107: -0.20 | BN107: 0.52 | BO107: -0.13 | BP107: 0.54 | BQ107: -0.24 | BS107: 68 | BT107: -0.04895769611 | BU107: 0.03679659191 | BV107: =IF(ISERROR(MATCH($BS107,$DO$218:$DO$403)),AX107,IF(ISNA(INDEX($DP$218:$DP$403,MATCH($BS107,$DO$218:$DO$403),1)),NA(),AX107)) -> 0.2015605736 | BW107: =IF(ISERROR(MATCH($BS107,$DO$218:$DO$403)),AY107,IF(ISNA(INDEX($DP$218:$DP$403,MATCH($BS107,$DO$218:$DO$403),1)),NA(),AY107)) -> -0.2862051994 | BX107: 0.1932884139 | BY107: -0.2577476692 | CG107: -0.0490 | CH107: 0.0368
G108: 69 | J108: -0.03782923979 | K108: 0.0427429686 | L108: -0.01769818653 | M108: -0.3233725599 | N108: 0.02101739676 | O108: -0.5867601317 | P108: -0.03297525296 | Q108: -0.3179518296 | R108: -0.4274487459 | T108: -0.01003696128 | U108: -0.5966898275 | V108: -0.01934970565 | W108: -0.6363995892 | X108: 0.005485955104 | Y108: -0.6476668415 | Z108: -0.429288187 | AB108: 0.001654683563 | AC108: -0.6831853017 | AD108: -0.00724053402 | AE108: -0.6683422187 | AF108: 0.07053791533 | AG108: -0.6515518271 | AH108: -0.04238532209 | AI108: -0.6495425313 | AL108: -0.01769818653 | AM108: -0.3233725599 | AN108: 0.02101739676 | AO108: -0.5867601317 | AP108: -0.03297525296 | AQ108: -0.3179518296 | AS108: 69 | AT108: 0.1943 | AU108: -0.2591 | AV108: 0.4613 | AW108: -0.1875 | AX108: 0.2060 | AY108: -0.2874 | BB108: 0.48 | BC108: -0.22 | BD108: 0.52 | BE108: -0.22 | BF108: 0.52 | BG108: -0.19 | BJ108: 0.56 | BK108: -0.19 | BL108: 0.55 | BM108: -0.20 | BN108: 0.52 | BO108: -0.13 | BP108: 0.53 | BQ108: -0.24 | BS108: 69 | BT108: -0.03782923979 | BU108: 0.0427429686 | BV108: 0.2059808722 | BW108: -0.2873610938 | BX108: 0.1943022774 | BY108: -0.2590939276 | CG108: -0.0378 | CH108: 0.0427
G109: 70 | J109: -0.02752457849 | K109: 0.0477868705 | L109: -0.01774641776 | M109: -0.3247908136 | N109: 0.02029047096 | O109: -0.5831636549 | P109: -0.03385041924 | Q109: -0.3226091332 | R109: -0.2787283012 | T109: -0.01069583947 | U109: -0.595577182 | V109: -0.01792284532 | W109: -0.6335222776 | X109: 0.005572314149 | Y109: -0.6465730687 | Z109: -0.2868726604 | AB109: 0.001508200205 | AC109: -0.6845508093 | AD109: -0.008030537066 | AE109: -0.6701196727 | AF109: 0.07053791533 | AG109: -0.6515518271 | AH109: -0.0414975306 | AI109: -0.6497434609 | AL109: -0.01774641776 | AM109: -0.3247908136 | AN109: 0.02029047096 | AO109: -0.5831636549 | AP109: -0.03385041924 | AQ109: -0.3226091332 | AS109: 70 | AT109: 0.1952 | AU109: -0.2602 | AV109: 0.4579 | AW109: -0.1889 | AX109: 0.2107 | AY109: -0.2874 | BB109: 0.48 | BC109: -0.22 | BD109: 0.51 | BE109: -0.22 | BF109: 0.52 | BG109: -0.19 | BJ109: 0.56 | BK109: -0.19 | BL109: 0.55 | BM109: -0.20 | BN109: 0.52 | BO109: -0.13 | BP109: 0.53 | BQ109: -0.24 | BS109: 70 | BT109: -0.02752457849 | BU109: 0.0477868705 | BV109: 0.2107193919 | BW109: -0.2874142321 | BX109: 0.195176966 | BY109: -0.2602113754 | CG109: -0.0275 | CH109: 0.0478
G110: 71 | J110: -0.02034509615 | K110: 0.05077738597 | L110: -0.01770840383 | M110: -0.3258638914 | N110: 0.01897954781 | O110: -0.5802797867 | P110: -0.03379192188 | Q110: -0.3276911711 | R110: 0.0173678404 | S110: -0.6112418554 | T110: -0.01118632729 | U110: -0.5942472397 | V110: -0.01694068201 | W110: -0.6316988458 | X110: 0.00569440124 | Y110: -0.6455890181 | Z110: 0.001049429978 | AA110: -0.6971717901 | AB110: 0.001396175863 | AC110: -0.6854048007 | AD110: -0.009029588223 | AE110: -0.6723891194 | AF110: 0.07053791533 | AG110: -0.6515518271 | AH110: -0.03938048936 | AI110: -0.6502226007 | AL110: -0.01770840383 | AM110: -0.3258638914 | AN110: 0.01897954781 | AO110: -0.5802797867 | AP110: -0.03379192188 | AQ110: -0.3276911711 | AS110: 71 | AT110: 0.1959 | AU110: -0.2610 | AV110: 0.4553 | AW110: -0.1906 | AX110: 0.2157 | AY110: -0.2865 | AZ110: 0.49 | BA110: -0.19 | BB110: 0.47 | BC110: -0.22 | BD110: 0.51 | BE110: -0.22 | BF110: 0.52 | BG110: -0.19 | BH110: 0.57 | BI110: -0.19 | BJ110: 0.56 | BK110: -0.19 | BL110: 0.55 | BM110: -0.20 | BN110: 0.52 | BO110: -0.13 | BP110: 0.53 | BQ110: -0.24 | BS110: 71 | BT110: -0.02034509615 | BU110: 0.05077738597 | BV110: 0.2157140642 | BW110: -0.2864741368 | BX110: 0.1958958475 | BY110: -0.2610089658 | CG110: -0.0203 | CH110: 0.0508
G111: 72 | J111: -0.01747422732 | K111: 0.05141707417 | L111: -0.01702226593 | M111: -0.3284266954 | N111: 0.0176636543 | O111: -0.5780897194 | P111: -0.03361899229 | Q111: -0.3321684678 | R111: 0.01785443978 | S111: -0.6108890979 | T111: -0.01109945575 | U111: -0.5926419018 | V111: -0.01578405163 | W111: -0.6300613104 | X111: 0.005860025784 | Y111: -0.6444096022 | Z111: 0.00206135039 | AA111: -0.6965414406 | AB111: 0.001221904025 | AC111: -0.6871242373 | AD111: -0.009316242334 | AE111: -0.6733796453 | AF111: 0.06879726319 | AG111: -0.6513968104 | AH111: -0.03685369821 | AI111: -0.6507944772 | AL111: -0.01702226593 | AM111: -0.3284266954 | AN111: 0.0176636543 | AO111: -0.5780897194 | AP111: -0.03361899229 | AQ111: -0.3321684678 | AS111: 72 | AT111: 0.1981 | AU111: -0.2625 | AV111: 0.4534 | AW111: -0.1923 | AX111: 0.2201 | AY111: -0.2855 | AZ111: 0.49 | BA111: -0.19 | BB111: 0.47 | BC111: -0.22 | BD111: 0.51 | BE111: -0.22 | BF111: 0.52 | BG111: -0.19 | BH111: 0.57 | BI111: -0.19 | BJ111: 0.56 | BK111: -0.19 | BL111: 0.55 | BM111: -0.20 | BN111: 0.52 | BO111: -0.13 | BP111: 0.53 | BQ111: -0.23 | BS111: 72 | BT111: -0.01747422732 | BU111: 0.05141707417 | BV111: 0.2200933119 | BW111: -0.28552636 | BX111: 0.1980687982 | BY111: -0.2625311466 | CG111: -0.0175 | CH111: 0.0514
G112: 73 | J112: -0.0131038544 | K112: 0.05189354572 | L112: -0.01571815974 | M112: -0.3310022872 | N112: 0.01666911795 | O112: -0.5757267712 | P112: -0.03358624158 | Q112: -0.3384403667 | R112: 0.018187145 | S112: -0.6105927634 | T112: -0.0101682407 | U112: -0.5914240083 | V112: -0.01447157473 | W112: -0.6284930835 | X112: 0.006031995473 | Y112: -0.6430513508 | Z112: 0.003139846011 | AA112: -0.6959673189 | AB112: 0.001080919792 | AC112: -0.6898905251 | AD112: -0.009719695915 | AE112: -0.6751415455 | AF112: 0.06718614962 | AG112: -0.6517007916 | AH112: -0.03473665697 | AI112: -0.651273617 | AL112: -0.01571815974 | AM112: -0.3310022872 | AN112: 0.01666911795 | AO112: -0.5757267712 | AP112: -0.03358624158 | AQ112: -0.3384403667 | AS112: 73 | AT112: 0.2007 | AU112: -0.2637 | AV112: 0.4512 | AW112: -0.1937 | AX112: 0.2263 | AY112: -0.2844 | AZ112: 0.49 | BA112: -0.19 | BB112: 0.47 | BC112: -0.22 | BD112: 0.51 | BE112: -0.22 | BF112: 0.52 | BG112: -0.19 | BH112: 0.57 | BI112: -0.19 | BJ112: 0.57 | BK112: -0.19 | BL112: 0.55 | BM112: -0.20 | BN112: 0.52 | BO112: -0.13 | BP112: 0.53 | BQ112: -0.23 | BS112: 73 | BT112: -0.0131038544 | BU112: 0.05189354572 | BV112: 0.2262642394 | BW112: -0.284405003 | BX112: 0.2007233601 | BY112: -0.2636659011 | CG112: -0.0131 | CH112: 0.0519
G113: 74 | J113: -0.008443117893 | K113: 0.05172315418 | L113: -0.01410938899 | M113: -0.3333965055 | N113: 0.01591389118 | O113: -0.573198166 | P113: -0.03353684707 | Q113: -0.345269955 | R113: 0.01852395016 | S113: -0.6103389902 | T113: -0.008818099671 | U113: -0.590558319 | V113: -0.01314611469 | W113: -0.6270029507 | X113: 0.006187858257 | Y113: -0.6417678744 | Z113: 0.004259243411 | AA113: -0.6954480583 | AB113: 0.0009620947568 | AC113: -0.6930880875 | AD113: -0.01020129239 | AE113: -0.6773392108 | AF113: 0.0658092207 | AG113: -0.6524093002 | AH113: -0.03384886549 | AI113: -0.6514745465 | AL113: -0.01410938899 | AM113: -0.3333965055 | AN113: 0.01591389118 | AO113: -0.573198166 | AP113: -0.03353684707 | AQ113: -0.345269955 | AS113: 74 | AT113: 0.2035 | AU113: -0.2645 | AV113: 0.4489 | AW113: -0.1949 | AX113: 0.2330 | AY113: -0.2832 | AZ113: 0.48 | BA113: -0.19 | BB113: 0.47 | BC113: -0.22 | BD113: 0.51 | BE113: -0.21 | BF113: 0.52 | BG113: -0.19 | BH113: 0.57 | BI113: -0.19 | BJ113: 0.57 | BK113: -0.19 | BL113: 0.56 | BM113: -0.20 | BN113: 0.52 | BO113: -0.13 | BP113: 0.53 | BQ113: -0.23 | BS113: 74 | BT113: -0.008443117893 | BU113: 0.05172315418 | BV113: 0.2329814936 | BW113: -0.2831704134 | BX113: 0.2034947238 | BY113: -0.2644658808 | CG113: -0.0084 | CH113: 0.0517
G114: 75 | J114: -0.004701158331 | K114: 0.05042225311 | L114: -0.0125092574 | M114: -0.3354151888 | N114: 0.01531592638 | O114: -0.5705111274 | P114: -0.03331398607 | Q114: -0.35142032 | R114: 0.01902284935 | S114: -0.6101139165 | T114: -0.007474450218 | U114: -0.5900095942 | V114: -0.01195053488 | W114: -0.6255996975 | X114: 0.006305162084 | Y114: -0.6408127837 | Z114: 0.005393869159 | AA114: -0.6949822922 | AB114: 0.0008543005113 | AC114: -0.6961013479 | AD114: -0.01072237519 | AE114: -0.6796370317 | AF114: 0.0647711225 | AG114: -0.6534678656 | AH114: -0.3055186163 | AL114: -0.0125092574 | AM114: -0.3354151888 | AN114: 0.01531592638 | AO114: -0.5705111274 | AP114: -0.03331398607 | AQ114: -0.35142032 | AS114: 75 | AT114: 0.2060 | AU114: -0.2650 | AV114: 0.4463 | AW114: -0.1959 | AX114: 0.2390 | AY114: -0.2819 | AZ114: 0.48 | BA114: -0.19 | BB114: 0.47 | BC114: -0.22 | BD114: 0.51 | BE114: -0.21 | BF114: 0.52 | BG114: -0.19 | BH114: 0.57 | BI114: -0.18 | BJ114: 0.57 | BK114: -0.19 | BL114: 0.56 | BM114: -0.20 | BN114: 0.52 | BO114: -0.13 | BS114: 75 | BT114: -0.004701158331 | BU114: 0.05042225311 | BV114: 0.2389997213 | BW114: -0.2818829385 | BX114: 0.2060180804 | BY114: -0.2649837372 | CG114: -0.0047 | CH114: 0.0504
G115: 76 | J115: -0.003087116233 | K115: 0.04750719604 | L115: -0.01123106869 | M115: -0.3368641758 | N115: 0.01479317594 | O115: -0.5676728792 | P115: -0.03276083588 | Q115: -0.3556545489 | R115: 0.01984183669 | S115: -0.6099036807 | T115: -0.006562709878 | U115: -0.5897425938 | V115: -0.01102769867 | W115: -0.6242921096 | X115: 0.006361454906 | Y115: -0.6404396892 | Z115: 0.006518049821 | AA115: -0.6945686538 | AB115: 0.0007464086481 | AC115: -0.6983147296 | AD115: -0.01124428774 | AE115: -0.6816993989 | AF115: 0.0641765011 | AG115: -0.6548220171 | AH115: -0.4430504478 | AL115: -0.01123106869 | AM115: -0.3368641758 | AN115: 0.01479317594 | AO115: -0.5676728792 | AP115: -0.03276083588 | AQ115: -0.3556545489 | AS115: 76 | AT115: 0.2079 | AU115: -0.2653 | AV115: 0.4436 | AW115: -0.1970 | AX115: 0.2431 | AY115: -0.2806 | AZ115: 0.48 | BA115: -0.18 | BB115: 0.47 | BC115: -0.21 | BD115: 0.50 | BE115: -0.21 | BF115: 0.52 | BG115: -0.19 | BH115: 0.57 | BI115: -0.18 | BJ115: 0.57 | BK115: -0.19 | BL115: 0.56 | BM115: -0.20 | BN115: 0.52 | BO115: -0.13 | BS115: 76 | BT115: -0.003087116233 | BU115: 0.04750719604 | BV115: 0.2430735693 | BW115: -0.2806029257 | BX115: 0.2079286206 | BY115: -0.2652721218 | CG115: -0.0031 | CH115: 0.0475
G116: 77 | J116: -0.004710692317 | K116: 0.04419178476 | L116: -0.008902018277 | M116: -0.3389788987 | N116: 0.01397940301 | O116: -0.5623897572 | P116: -0.0326951799 | Q116: -0.3571954103 | R116: 0.0205405266 | S116: -0.6099402222 | T116: -0.006352449681 | U116: -0.5896781011 | V116: -0.2933899293 | X116: 0.006526859811 | Y116: -0.6384560994 | Z116: 0.007165254574 | AA116: -0.6943663576 | AB116: 0.0007036602699 | AC116: -0.698782383 | AD116: -0.01127246669 | AE116: -0.6819780647 | AF116: 0.06373487903 | AG116: -0.6567720915 | AH116: -0.4480107809 | AL116: -0.008902018277 | AM116: -0.3389788987 | AN116: 0.01397940301 | AO116: -0.5623897572 | AP116: -0.0326951799 | AQ116: -0.3571954103 | AS116: 77 | AT116: 0.2111 | AU116: -0.2654 | AV116: 0.4386 | AW116: -0.1987 | AX116: 0.2446 | AY116: -0.2803 | AZ116: 0.48 | BA116: -0.18 | BB116: 0.47 | BC116: -0.21 | BF116: 0.51 | BG116: -0.19 | BH116: 0.57 | BI116: -0.18 | BJ116: 0.58 | BK116: -0.19 | BL116: 0.56 | BM116: -0.20 | BN116: 0.52 | BO116: -0.13 | BS116: 77 | BT116: -0.004710692317 | BU116: 0.04419178476 | BV116: 0.2445796205 | BW116: -0.2802706994 | BX116: 0.2110720944 | BY116: -0.2653950087 | CG116: -0.0047 | CH116: 0.0442
G117: 78 | J117: -0.00908117913 | K117: 0.04229700255 | L117: -0.006481597779 | M117: -0.3405005945 | N117: 0.01310115364 | O117: -0.5557472124 | P117: -0.03252453619 | Q117: -0.3609754244 | R117: 0.02131311304 | S117: -0.6102433574 | T117: -0.006142579955 | U117: -0.5895946705 | V117: -0.4345670789 | X117: 0.006832248368 | Y117: -0.6357608772 | Z117: 0.007818316383 | AA117: -0.6942056465 | AB117: 0.0006260135962 | AC117: -0.6992328557 | AD117: -0.01129083507 | AE117: -0.6826684815 | AF117: 0.06268178026 | AG117: -0.661422269 | AH117: -0.3219660366 | AL117: -0.006481597779 | AM117: -0.3405005945 | AN117: 0.01310115364 | AO117: -0.5557472124 | AP117: -0.03252453619 | AQ117: -0.3609754244 | AS117: 78 | AT117: 0.2139 | AU117: -0.2650 | AV117: 0.4322 | AW117: -0.2007 | AX117: 0.2483 | AY117: -0.2794 | AZ117: 0.48 | BA117: -0.18 | BB117: 0.47 | BC117: -0.21 | BF117: 0.51 | BG117: -0.19 | BH117: 0.57 | BI117: -0.18 | BJ117: 0.58 | BK117: -0.19 | BL117: 0.56 | BM117: -0.20 | BN117: 0.53 | BO117: -0.13 | BS117: 78 | BT117: -0.00908117913 | BU117: 0.04229700255 | BV117: 0.2482725758 | BW117: -0.2794462556 | BX117: 0.2139043713 | BY117: -0.265004879 | CG117: -0.0091 | CH117: 0.0423
G118: 79 | J118: -0.01495585569 | K118: 0.04115177716 | L118: -0.004064154618 | M118: -0.3415278571 | N118: 0.01222793159 | O118: -0.5486791036 | P118: -0.03228839105 | Q118: -0.3657307361 | R118: 0.0220614415 | S118: -0.610718983 | T118: -0.005933003082 | U118: -0.5894963045 | V118: -0.4345554868 | X118: 0.007245797237 | Y118: -0.6329250856 | Z118: 0.008477235248 | AA118: -0.6940822253 | AB118: 0.0004905284887 | AC118: -0.69964311 | AD118: -0.01142527079 | AE118: -0.6835596001 | AF118: 0.06142485592 | AG118: -0.6669724809 | AH118: -0.06648263578 | AI118: -0.6422496824 | AL118: -0.004064154618 | AM118: -0.3415278571 | AN118: 0.01222793159 | AO118: -0.5486791036 | AP118: -0.03228839105 | AQ118: -0.3657307361 | AS118: 79 | AT118: 0.2164 | AU118: -0.2642 | AV118: 0.4254 | AW118: -0.2028 | AX118: 0.2529 | AY118: -0.2784 | AZ118: 0.48 | BA118: -0.18 | BB118: 0.47 | BC118: -0.21 | BF118: 0.51 | BG118: -0.19 | BH118: 0.57 | BI118: -0.18 | BJ118: 0.58 | BK118: -0.19 | BL118: 0.56 | BM118: -0.20 | BN118: 0.53 | BO118: -0.13 | BP118: 0.53 | BQ118: -0.26 | BS118: 79 | BT118: -0.01495585569 | BU118: 0.04115177716 | BV118: 0.2529146374 | BW118: -0.2783879469 | BX118: 0.2164165519 | BY118: -0.2642379054 | CG118: -0.0150 | CH118: 0.0412
G119: 80 | J119: -0.02109200102 | K119: 0.04008503633 | L119: -0.001744036215 | M119: -0.3421592804 | N119: 0.01142924057 | O119: -0.5421192897 | P119: -0.03202623083 | Q119: -0.3701974902 | R119: 0.02268735748 | S119: -0.6112729955 | T119: -0.005723621444 | U119: -0.5893870053 | V119: -0.2933514924 | X119: 0.007735683076 | Y119: -0.6305197877 | Z119: 0.00914201117 | AA119: -0.6939917988 | AB119: 0.0002742648092 | AC119: -0.6999901081 | AD119: -0.01180165176 | AE119: -0.6844403713 | AF119: 0.06037175714 | AG119: -0.6716226585 | AH119: -0.06589211432 | AI119: -0.6403397939 | AL119: -0.001744036215 | AM119: -0.3421592804 | AN119: 0.01142924057 | AO119: -0.5421192897 | AP119: -0.03202623083 | AQ119: -0.3701974902 | AS119: 80 | AT119: 0.2186 | AU119: -0.2632 | AV119: 0.4190 | AW119: -0.2047 | AX119: 0.2573 | AY119: -0.2774 | AZ119: 0.49 | BA119: -0.18 | BB119: 0.47 | BC119: -0.21 | BF119: 0.51 | BG119: -0.19 | BH119: 0.57 | BI119: -0.18 | BJ119: 0.58 | BK119: -0.19 | BL119: 0.56 | BM119: -0.20 | BN119: 0.54 | BO119: -0.13 | BP119: 0.53 | BQ119: -0.26 | BS119: 80 | BT119: -0.02109200102 | BU119: 0.04008503633 | BV119: 0.2572680078 | BW119: -0.2773541257 | BX119: 0.2185997367 | BY119: -0.2632302603 | CG119: -0.0211 | CH119: 0.0401
G120: 81 | J120: -0.02624689413 | K120: 0.03842570779 | L120: 0.0003844100122 | M120: -0.342493458 | N120: 0.01077458434 | O120: -0.5370016296 | P120: -0.03177754183 | Q120: -0.3731118314 | R120: 0.02309270647 | S120: -0.6118112915 | T120: -0.005514337424 | U120: -0.5892707753 | V120: -0.01095143491 | W120: -0.6164969368 | X120: 0.008270082545 | Y120: -0.6291160465 | Z120: 0.009812644149 | AA120: -0.693930072 | AB120: -4.571758054e-05 | AC120: -0.7002508122 | AD120: -0.01254585587 | AE120: -0.6850997457 | AF120: 0.05993013508 | AG120: -0.6735727329 | AH120: -0.06448394776 | AI120: -0.6357854443 | AL120: 0.0003844100122 | AM120: -0.342493458 | AN120: 0.01077458434 | AO120: -0.5370016296 | AP120: -0.03177754183 | AQ120: -0.3731118314 | AS120: 81 | AT120: 0.2204 | AU120: -0.2621 | AV120: 0.4141 | AW120: -0.2062 | AX120: 0.2601 | AY120: -0.2766 | AZ120: 0.49 | BA120: -0.18 | BB120: 0.47 | BC120: -0.21 | BD120: 0.50 | BE120: -0.21 | BF120: 0.51 | BG120: -0.19 | BH120: 0.57 | BI120: -0.18 | BJ120: 0.58 | BK120: -0.19 | BL120: 0.56 | BM120: -0.20 | BN120: 0.54 | BO120: -0.13 | BP120: 0.52 | BQ120: -0.26 | BS120: 81 | BT120: -0.02624689413 | BU120: 0.03842570779 | BV120: 0.2600948892 | BW120: -0.2766031448 | BX120: 0.2204450264 | BY120: -0.2621181163 | CG120: -0.0262 | CH120: 0.0384
G121: 82 | J121: -0.02951990683 | K121: 0.0362615986 | L121: 0.002154176602 | M121: -0.3425418112 | N121: 0.01066829504 | O121: -0.5362426282 | P121: -0.0312771377 | Q121: -0.3787989194 | R121: 0.02381004947 | S121: -0.6135594114 | T121: -0.2906171011 | V121: -0.01129169736 | W121: -0.6180972961 | X121: 0.008398352085 | Y121: -0.6289198026 | Z121: 0.01014101352 | AA121: -0.6938905043 | AB121: -0.0006106632271 | AC121: -0.700458575 | AD121: -0.01288199398 | AE121: -0.6852136329 | AF121: 0.05988236753 | AG121: -0.6750517048 | AH121: -0.06280323283 | AI121: -0.6303496077 | AL121: 0.002154176602 | AM121: -0.3425418112 | AN121: 0.01066829504 | AO121: -0.5362426282 | AP121: -0.0312771377 | AQ121: -0.3787989194 | AS121: 82 | AT121: 0.2218 | AU121: -0.2610 | AV121: 0.4134 | AW121: -0.2065 | AX121: 0.2656 | AY121: -0.2751 | AZ121: 0.49 | BA121: -0.18 | BD121: 0.50 | BE121: -0.21 | BF121: 0.51 | BG121: -0.19 | BH121: 0.57 | BI121: -0.18 | BJ121: 0.58 | BK121: -0.19 | BL121: 0.56 | BM121: -0.20 | BN121: 0.54 | BO121: -0.13 | BP121: 0.52 | BQ121: -0.26 | BS121: 82 | BT121: -0.02951990683 | BU121: 0.0362615986 | BV121: 0.2656086834 | BW121: -0.2751227905 | BX121: 0.2218318271 | BY121: -0.261017573 | CG121: -0.0295 | CH121: 0.0363
G122: 83 | J122: -0.03517927962 | K122: 0.03233837127 | L122: 0.003705767834 | M122: -0.3422901856 | N122: 0.01057074251 | O122: -0.5355835385 | P122: -0.031079641 | Q122: -0.3846141794 | R122: 0.02430370172 | S122: -0.6157162562 | T122: -0.4337762949 | V122: -0.01132485481 | W122: -0.6201945291 | X122: 0.00870687254 | Y122: -0.6284353915 | Z122: 0.01056973379 | AA122: -0.6938214561 | AB122: -0.001248968507 | AC122: -0.7005413873 | AD122: -0.0132542994 | AE122: -0.6852562592 | AF122: 0.06036261363 | AG122: -0.6764539492 | AH122: -0.06139506628 | AI122: -0.6257952581 | AL122: 0.003705767834 | AM122: -0.3422901856 | AN122: 0.01057074251 | AO122: -0.5355835385 | AP122: -0.031079641 | AQ122: -0.3846141794 | AS122: 83 | AT122: 0.2229 | AU122: -0.2598 | AV122: 0.4127 | AW122: -0.2067 | AX122: 0.2713 | AY122: -0.2739 | AZ122: 0.49 | BA122: -0.18 | BD122: 0.50 | BE122: -0.21 | BF122: 0.50 | BG122: -0.19 | BH122: 0.57 | BI122: -0.18 | BJ122: 0.58 | BK122: -0.19 | BL122: 0.56 | BM122: -0.20 | BN122: 0.54 | BO122: -0.13 | BP122: 0.51 | BQ122: -0.26 | BS122: 83 | BT122: -0.03517927962 | BU122: 0.03233837127 | BV122: 0.2713013015 | BW122: -0.2739184849 | BX122: 0.2228586731 | BY122: -0.259827473 | CG122: -0.0352 | CH122: 0.0323
G123: 84 | J123: -0.04188164776 | K123: 0.02799846317 | L123: 0.005133384702 | M123: -0.3417695258 | N123: 0.01048261007 | O123: -0.5350315354 | P123: -0.03090396184 | Q123: -0.3904617508 | R123: 0.02433557387 | S123: -0.6179188837 | T123: -0.4355529761 | V123: -0.01118747429 | W123: -0.6223752252 | X123: 0.009141612565 | Y123: -0.6277534023 | Z123: 0.01106224717 | AA123: -0.6937315177 | AB123: -0.001915143615 | AC123: -0.7005304866 | AD123: -0.01365305921 | AE123: -0.685240315 | AF123: 0.06129951491 | AG123: -0.6776861438 | AH123: -0.06080454482 | AI123: -0.6238853696 | AL123: 0.005133384702 | AM123: -0.3417695258 | AN123: 0.01048261007 | AO123: -0.5350315354 | AP123: -0.03090396184 | AQ123: -0.3904617508 | AS123: 84 | AT123: 0.2236 | AU123: -0.2585 | AV123: 0.4122 | AW123: -0.2069 | AX123: 0.2770 | AY123: -0.2727 | AZ123: 0.49 | BA123: -0.18 | BD123: 0.50 | BE123: -0.21 | BF123: 0.50 | BG123: -0.19 | BH123: 0.57 | BI123: -0.18 | BJ123: 0.58 | BK123: -0.19 | BL123: 0.56 | BM123: -0.20 | BN123: 0.54 | BO123: -0.13 | BP123: 0.51 | BQ123: -0.26 | BS123: 84 | BT123: -0.04188164776 | BU123: 0.02799846317 | BV123: 0.2770295288 | BW123: -0.2727300546 | BX123: 0.2236176174 | BY123: -0.25851097 | CG123: -0.0419 | CH123: 0.0280
G124: 85 | J124: -0.04828364651 | K124: 0.02458431168 | L124: 0.006531228199 | M124: -0.3410107767 | N124: 0.01040458106 | O124: -0.5345937936 | P124: -0.03046901031 | Q124: -0.3962457732 | R124: 0.02366757657 | S124: -0.6198043515 | T124: -0.2965082018 | V124: -0.01101612285 | W124: -0.6242259737 | X124: 0.009648540812 | Y124: -0.6269644242 | Z124: 0.01158199586 | AA124: -0.6936292796 | AB124: -0.002563698744 | AC124: -0.7004571107 | AD124: -0.01406856043 | AE124: -0.6851784905 | AF124: 0.06262171289 | AG124: -0.678654966 | AH124: -0.06064248331 | AI124: -0.6224136377 | AL124: 0.006531228199 | AM124: -0.3410107767 | AN124: 0.01040458106 | AO124: -0.5345937936 | AP124: -0.03046901031 | AQ124: -0.3962457732 | AS124: 85 | AT124: 0.2242 | AU124: -0.2570 | AV124: 0.4118 | AW124: -0.2070 | AX124: 0.2827 | AY124: -0.2713 | AZ124: 0.49 | BA124: -0.18 | BD124: 0.50 | BE124: -0.21 | BF124: 0.50 | BG124: -0.19 | BH124: 0.57 | BI124: -0.18 | BJ124: 0.58 | BK124: -0.19 | BL124: 0.56 | BM124: -0.20 | BN124: 0.54 | BO124: -0.13 | BP124: 0.51 | BQ124: -0.26 | BS124: 85 | BT124: -0.04828364651 | BU124: 0.02458431168 | BV124: 0.2826501503 | BW124: -0.271297326 | BX124: 0.2242007131 | BY124: -0.2570312179 | CG124: -0.0483 | CH124: 0.0246
G125: 86 | J125: -0.05304191114 | K125: 0.02343835415 | L125: 0.007993499318 | M125: -0.3400448829 | N125: 0.0103373388 | O125: -0.5342774881 | P125: -0.02949369651 | Q125: -0.4018703859 | R125: 0.02206162047 | S125: -0.6210097175 | T125: -0.01720302933 | U125: -0.6128830515 | V125: -0.01094736751 | W125: -0.6253333641 | X125: 0.01017362593 | Y125: -0.6261590464 | Z125: 0.01209242208 | AA125: -0.6935233319 | AB125: -0.003149144089 | AC125: -0.7003524972 | AD125: -0.01449109012 | AE125: -0.6850834761 | AF125: 0.06425784911 | AG125: -0.6792670935 | AH125: -0.0610130723 | AI125: -0.6209781219 | AL125: 0.007993499318 | AM125: -0.3400448829 | AN125: 0.0103373388 | AO125: -0.5342774881 | AP125: -0.02949369651 | AQ125: -0.4018703859 | AS125: 86 | AT125: 0.2247 | AU125: -0.2554 | AV125: 0.4115 | AW125: -0.2071 | AX125: 0.2880 | AY125: -0.2694 | AZ125: 0.49 | BA125: -0.18 | BB125: 0.49 | BC125: -0.22 | BD125: 0.50 | BE125: -0.21 | BF125: 0.50 | BG125: -0.19 | BH125: 0.57 | BI125: -0.18 | BJ125: 0.58 | BK125: -0.19 | BL125: 0.56 | BM125: -0.21 | BN125: 0.54 | BO125: -0.13 | BP125: 0.51 | BQ125: -0.26 | BS125: 86 | BT125: -0.05304191114 | BU125: 0.02343835415 | BV125: 0.2880199511 | BW125: -0.2693601257 | BX125: 0.2247000132 | BY125: -0.2553513707 | CG125: -0.0530 | CH125: 0.0234
G126: 87 | J126: -0.3151665796 | L126: 0.01276817184 | M126: -0.3350936527 | N126: 0.009745906243 | O126: -0.5274094629 | P126: -0.0285487011 | Q126: -0.4086843717 | R126: 0.02103564312 | S126: -0.6212908074 | T126: -0.01729131633 | U126: -0.6127875164 | V126: -0.011091988 | W126: -0.6262799946 | X126: -0.2822634335 | Z126: -0.2813541255 | AB126: -0.004087298127 | AC126: -0.7001746379 | AD126: -0.2953676621 | AF126: 0.06425784911 | AG126: -0.6792670935 | AH126: -0.06185251866 | AI126: -0.6196775137 | AL126: 0.01276817184 | AM126: -0.3350936527 | AN126: 0.009745906243 | AO126: -0.5274094629 | AP126: -0.0285487011 | AQ126: -0.4086843717 | AS126: 87 | AT126: 0.2252 | AU126: -0.2485 | AV126: 0.4048 | AW126: -0.2089 | AX126: 0.2946 | AY126: -0.2672 | AZ126: 0.50 | BA126: -0.18 | BB126: 0.49 | BC126: -0.22 | BD126: 0.51 | BE126: -0.21 | BJ126: 0.58 | BK126: -0.19 | BN126: 0.54 | BO126: -0.13 | BP126: 0.51 | BQ126: -0.26 | BS126: 87 | BV126: 0.2945663204 | BW126: -0.2672462507 | BX126: 0.2251750351 | BY126: -0.2484894079
G127: 88 | J127: -0.4457651366 | L127: 0.0144004847 | M127: -0.3299209281 | N127: 0.00951692787 | O127: -0.5155054916 | P127: -0.02826594356 | Q127: -0.4170794698 | R127: 0.01999394934 | S127: -0.6214354279 | T127: -0.01737584504 | U127: -0.612685929 | V127: -0.01138074089 | W127: -0.6272221347 | X127: -0.4278162518 | Z127: -0.4279867165 | AB127: -0.005071869338 | AC127: -0.6999507031 | AD127: -0.4369509823 | AF127: 0.06425784911 | AG127: -0.6792670935 | AH127: -0.0630970293 | AI127: -0.6186105044 | AL127: 0.0144004847 | AM127: -0.3299209281 | AN127: 0.00951692787 | AO127: -0.5155054916 | AP127: -0.02826594356 | AQ127: -0.4170794698 | AS127: 88 | AT127: 0.2231 | AU127: -0.2435 | AV127: 0.3932 | AW127: -0.2112 | AX127: 0.3028 | AY127: -0.2655 | AZ127: 0.50 | BA127: -0.18 | BB127: 0.49 | BC127: -0.22 | BD127: 0.51 | BE127: -0.21 | BJ127: 0.58 | BK127: -0.19 | BN127: 0.54 | BO127: -0.13 | BP127: 0.51 | BQ127: -0.26 | BS127: 88 | BV127: 0.3027847778 | BW127: -0.2655099953 | BX127: 0.2231004961 | BY127: -0.2434776405
G128: 89 | J128: -0.4444094802 | L128: 0.01388950533 | M128: -0.3251339883 | N128: 0.009566989434 | O128: -0.5018527497 | P128: -0.02835369366 | Q128: -0.4259415707 | R128: 0.01894522708 | S128: -0.6214388933 | T128: -0.01745700595 | U128: -0.612577606 | V128: -0.01172591676 | W128: -0.6281611511 | X128: -0.4258703261 | Z128: -0.427721644 | AB128: -0.006002848482 | AC128: -0.6996180223 | AD128: -0.4402980054 | AF128: 0.06425784911 | AG128: -0.6792670935 | AH128: -0.0646828111 | AI128: -0.6178757855 | AL128: 0.01388950533 | AM128: -0.3251339883 | AN128: 0.009566989434 | AO128: -0.5018527497 | AP128: -0.02835369366 | AQ128: -0.4259415707 | AS128: 89 | AT128: 0.2196 | AU128: -0.2401 | AV128: 0.3797 | AW128: -0.2135 | AX128: 0.3115 | AY128: -0.2641 | AZ128: 0.50 | BA128: -0.18 | BB128: 0.49 | BC128: -0.22 | BD128: 0.51 | BE128: -0.21 | BJ128: 0.58 | BK128: -0.19 | BN128: 0.54 | BO128: -0.13 | BP128: 0.51 | BQ128: -0.27 | BS128: 89 | BV128: 0.311527481 | BW128: -0.2640575247 | BX128: 0.2196320775 | BY128: -0.2401390831
G129: 90 | J129: -0.3106715083 | L129: 0.01223430114 | M129: -0.3213401124 | N129: 0.009812676688 | O129: -0.4897384125 | P129: -0.02852022116 | Q129: -0.4341565643 | R129: 0.01789816433 | S129: -0.621296518 | T129: -0.01753518952 | U129: -0.6124618641 | V129: -0.01203980618 | W129: -0.6290984103 | X129: -0.2758111535 | Z129: -0.2804752009 | AB129: -0.006780226317 | AC129: -0.699113925 | AD129: -0.3064656861 | AF129: 0.06425784911 | AG129: -0.6792670935 | AH129: -0.0646828111 | AI129: -0.6178757855 | AL129: 0.01223430114 | AM129: -0.3213401124 | AN129: 0.009812676688 | AO129: -0.4897384125 | AP129: -0.02852022116 | AQ129: -0.4341565643 | AS129: 90 | AT129: 0.2159 | AU129: -0.2383 | AV129: 0.3677 | AW129: -0.2154 | AX129: 0.3196 | AY129: -0.2628 | AZ129: 0.50 | BA129: -0.18 | BB129: 0.49 | BC129: -0.22 | BD129: 0.51 | BE129: -0.21 | BJ129: 0.58 | BK129: -0.20 | BN129: 0.54 | BO129: -0.13 | BP129: 0.51 | BQ129: -0.27 | BS129: 90 | BV129: 0.3196465877 | BW129: -0.2627950036 | BX129: 0.2159254612 | BY129: -0.2382967503
G130: 91 | J130: -0.04412311891 | K130: 0.02668820708 | L130: 0.01043393956 | M130: -0.3191465797 | N130: 0.01017057538 | O130: -0.4824496553 | P130: -0.02847379585 | Q130: -0.4406103411 | R130: 0.01686144905 | S130: -0.6210036164 | T130: -0.01761078623 | U130: -0.6123380198 | V130: -0.01223469974 | W130: -0.630035279 | X130: 0.02297576871 | Y130: -0.6205297643 | Z130: 0.01383632 | AA130: -0.6848516342 | AB130: -0.007303993601 | AC130: -0.6983757406 | AD130: -0.03651097905 | AE130: -0.6622856968 | AF130: 0.06425784911 | AG130: -0.6792670935 | AH130: -0.0646828111 | AI130: -0.6178757855 | AL130: 0.01043393956 | AM130: -0.3191465797 | AN130: 0.01017057538 | AO130: -0.4824496553 | AP130: -0.02847379585 | AQ130: -0.4406103411 | AS130: 91 | AT130: 0.2131 | AU130: -0.2378 | AV130: 0.3605 | AW130: -0.2163 | AX130: 0.3260 | AY130: -0.2616 | AZ130: 0.50 | BA130: -0.19 | BB130: 0.49 | BC130: -0.22 | BD130: 0.51 | BE130: -0.21 | BF130: 0.49 | BG130: -0.18 | BH130: 0.56 | BI130: -0.18 | BJ130: 0.58 | BK130: -0.20 | BL130: 0.55 | BM130: -0.23 | BN130: 0.54 | BO130: -0.13 | BP130: 0.51 | BQ130: -0.27 | BS130: 91 | BT130: -0.04412311891 | BU130: 0.02668820708 | BV130: 0.3259942554 | BW130: -0.261628597 | BX130: 0.2131363285 | BY130: -0.2377736568 | CG130: -0.0441 | CH130: 0.0267
G131: 92 | J131: -0.04485856998 | K131: 0.02436836526 | L131: 0.009037934529 | M131: -0.318486587 | N131: 0.01038042884 | O131: -0.4749385497 | P131: -0.02842746816 | Q131: -0.4442835779 | R131: 0.01616327977 | S131: -0.6206485649 | T131: -0.01811896723 | U131: -0.6112029141 | V131: -0.01270276804 | W131: -0.6321020065 | X131: 0.02303669023 | Y131: -0.6211322927 | Z131: 0.01169051411 | AA131: -0.6859125424 | AB131: -0.007544629144 | AC131: -0.6975272809 | AD131: -0.03659065943 | AE131: -0.6635743794 | AF131: 0.06599947742 | AG131: -0.6794205158 | AH131: -0.0646828111 | AI131: -0.6178757855 | AL131: 0.009037934529 | AM131: -0.318486587 | AN131: 0.01038042884 | AO131: -0.4749385497 | AP131: -0.02842746816 | AQ131: -0.4442835779 | AS131: 92 | AT131: 0.2116 | AU131: -0.2382 | AV131: 0.3531 | AW131: -0.2174 | AX131: 0.3296 | AY131: -0.2609 | AZ131: 0.50 | BA131: -0.19 | BB131: 0.49 | BC131: -0.22 | BD131: 0.51 | BE131: -0.21 | BF131: 0.49 | BG131: -0.18 | BH131: 0.56 | BI131: -0.18 | BJ131: 0.58 | BK131: -0.20 | BL131: 0.55 | BM131: -0.23 | BN131: 0.54 | BO131: -0.13 | BP131: 0.51 | BQ131: -0.27 | BS131: 92 | BT131: -0.04485856998 | BU131: 0.02436836526 | BV131: 0.3296036428 | BW131: -0.2609451222 | BX131: 0.2116426915 | BY131: -0.2381654079 | CG131: -0.0449 | CH131: 0.0244
G132: 93 | J132: -0.04475734052 | K132: 0.02186402615 | L132: 0.007028939717 | M132: -0.3179309476 | N132: 0.01033657413 | O132: -0.4626075746 | P132: -0.02847875808 | Q132: -0.4493876935 | R132: 0.01535553472 | S132: -0.6200833427 | T132: -0.01869377226 | U132: -0.609508606 | V132: -0.01356613886 | W132: -0.6346275368 | X132: 0.0230585159 | Y132: -0.6223257981 | Z132: 0.009451190544 | AA132: -0.6870367068 | AB132: -0.00764547627 | AC132: -0.6966075603 | AD132: -0.03629744053 | AE132: -0.6648648191 | AF132: 0.06761107908 | AG132: -0.6791161116 | AH132: -0.0646828111 | AI132: -0.6178757855 | AL132: 0.007028939717 | AM132: -0.3179309476 | AN132: 0.01033657413 | AO132: -0.4626075746 | AP132: -0.02847875808 | AQ132: -0.4493876935 | AS132: 93 | AT132: 0.2097 | AU132: -0.2390 | AV132: 0.3409 | AW132: -0.2196 | AX132: 0.3346 | AY132: -0.2601 | AZ132: 0.50 | BA132: -0.19 | BB132: 0.49 | BC132: -0.22 | BD132: 0.51 | BE132: -0.21 | BF132: 0.50 | BG132: -0.18 | BH132: 0.56 | BI132: -0.18 | BJ132: 0.57 | BK132: -0.20 | BL132: 0.55 | BM132: -0.23 | BN132: 0.54 | BO132: -0.13 | BP132: 0.51 | BQ132: -0.27 | BS132: 93 | BT132: -0.04475734052 | BU132: 0.02186402615 | BV132: 0.3346391219 | BW132: -0.2601093126 | BX132: 0.2097465541 | BY132: -0.2390311203 | CG132: -0.0448 | CH132: 0.0219
G133: 94 | J133: -0.04387229046 | K133: 0.01943168004 | L133: 0.004937311598 | M133: -0.3175039682 | N133: 0.01027900414 | O133: -0.4485848863 | P133: -0.02854517873 | Q133: -0.4548721274 | R133: 0.01454534924 | S133: -0.6193989293 | T133: -0.01917901313 | U133: -0.6076361945 | V133: -0.01459194538 | W133: -0.6372614226 | X133: 0.02302313765 | Y133: -0.6238041517 | Z133: 0.007395534515 | AA133: -0.6880941008 | AB133: -0.007657833032 | AC133: -0.6956536735 | AD133: -0.03576090974 | AE133: -0.6661226546 | AF133: 0.068988008 | AG133: -0.6784075704 | AH133: -0.0646828111 | AI133: -0.6178757855 | AL133: 0.004937311598 | AM133: -0.3175039682 | AN133: 0.01027900414 | AO133: -0.4485848863 | AP133: -0.02854517873 | AQ133: -0.4548721274 | AS133: 94 | AT133: 0.2079 | AU133: -0.2400 | AV133: 0.3271 | AW133: -0.2221 | AX133: 0.3401 | AY133: -0.2592 | AZ133: 0.49 | BA133: -0.19 | BB133: 0.49 | BC133: -0.22 | BD133: 0.52 | BE133: -0.21 | BF133: 0.50 | BG133: -0.18 | BH133: 0.56 | BI133: -0.18 | BJ133: 0.57 | BK133: -0.20 | BL133: 0.55 | BM133: -0.23 | BN133: 0.54 | BO133: -0.12 | BP133: 0.51 | BQ133: -0.27 | BS133: 94 | BT133: -0.04387229046 | BU133: 0.01943168004 | BV133: 0.3400517687 | BW133: -0.2592223622 | BX133: 0.2078698169 | BY133: -0.2400485078 | CG133: -0.0439 | CH133: 0.0194
G134: 95 | J134: -0.04225627974 | K134: 0.01732781718 | L134: 0.003293406646 | M134: -0.3172299555 | N134: 0.01044771178 | O134: -0.4359986412 | P134: -0.02854424323 | Q134: -0.4596863188 | R134: 0.01383985864 | S134: -0.6186863045 | T134: -0.01941850166 | U134: -0.6059667788 | V134: -0.01554732079 | W134: -0.6396532167 | X134: 0.02291244742 | Y134: -0.6252612247 | Z134: 0.005800731221 | AA134: -0.6889546976 | AB134: -0.007632997485 | AC134: -0.6947027153 | AD134: -0.03511065444 | AE134: -0.6673135243 | AF134: 0.07002561811 | AG134: -0.6773485821 | AH134: -0.0664064615 | AI134: -0.6175865608 | AL134: 0.003293406646 | AM134: -0.3172299555 | AN134: 0.01044771178 | AO134: -0.4359986412 | AP134: -0.02854424323 | AQ134: -0.4596863188 | AS134: 95 | AT134: 0.2064 | AU134: -0.2409 | AV134: 0.3147 | AW134: -0.2241 | AX134: 0.3448 | AY134: -0.2584 | AZ134: 0.49 | BA134: -0.19 | BB134: 0.49 | BC134: -0.22 | BD134: 0.52 | BE134: -0.21 | BF134: 0.50 | BG134: -0.18 | BH134: 0.56 | BI134: -0.18 | BJ134: 0.57 | BK134: -0.20 | BL134: 0.55 | BM134: -0.23 | BN134: 0.54 | BO134: -0.12 | BP134: 0.51 | BQ134: -0.27 | BS134: 95 | BT134: -0.04225627974 | BU134: 0.01732781718 | BV134: 0.3447926593 | BW134: -0.2583854653 | BX134: 0.2064343807 | BY134: -0.2408952836 | CG134: -0.0423 | CH134: 0.0173
G135: 96 | J135: -0.0399621683 | K135: 0.01580892785 | L135: 0.002627581335 | M135: -0.3171332165 | N135: 0.01108268992 | O135: -0.4279769954 | P135: -0.0283934647 | Q135: -0.462779707 | R135: 0.01334619825 | S135: -0.6180364478 | T135: -0.01925604969 | U135: -0.6048814581 | V135: -0.01619939829 | W135: -0.6414524719 | X135: 0.02270833713 | Y135: -0.6263908882 | Z135: 0.004943965865 | AA135: -0.6894884707 | AB135: -0.007622267683 | AC135: -0.6937917803 | AD135: -0.034476262 | AE135: -0.668403067 | AF135: 0.07061926334 | AG135: -0.6759928362 | AH135: -0.06803595972 | AI135: -0.6177647292 | AL135: 0.002627581335 | AM135: -0.3171332165 | AN135: 0.01108268992 | AO135: -0.4279769954 | AP135: -0.0283934647 | AQ135: -0.462779707 | AS135: 96 | AT135: 0.2059 | AU135: -0.2412 | AV135: 0.3067 | AW135: -0.2249 | AX135: 0.3478 | AY135: -0.2577 | AZ135: 0.49 | BA135: -0.19 | BB135: 0.49 | BC135: -0.22 | BD135: 0.52 | BE135: -0.21 | BF135: 0.50 | BG135: -0.18 | BH135: 0.57 | BI135: -0.19 | BJ135: 0.57 | BK135: -0.20 | BL135: 0.55 | BM135: -0.23 | BN135: 0.54 | BO135: -0.12 | BP135: 0.51 | BQ135: -0.27 | BS135: 96 | BT135: -0.0399621683 | BU135: 0.01580892785 | BV135: 0.3478128695 | BW135: -0.2576998162 | BX135: 0.2058621463 | BY135: -0.2412491615 | CG135: -0.0400 | CH135: 0.0158
G136: 97 | J136: -0.03401208213 | K136: 0.01627170039 | L136: 0.002528808584 | M136: -0.3152750002 | N136: 0.01123532319 | O136: -0.4259549117 | P136: -0.02793634583 | Q136: -0.4696892929 | R136: 0.01289391146 | S136: -0.617266131 | T136: -0.01879053571 | U136: -0.6039622581 | V136: -0.01698068896 | W136: -0.6441653955 | X136: 0.02242246396 | Y136: -0.6281619971 | Z136: 0.004456089321 | AA136: -0.6898973258 | AB136: -0.007571815648 | AC136: -0.6924052198 | AD136: -0.03399257488 | AE136: -0.6694362193 | AF136: 0.0710604624 | AG136: -0.6740427617 | AH136: -0.06946275498 | AI136: -0.6183647033 | AL136: 0.002528808584 | AM136: -0.3152750002 | AN136: 0.01123532319 | AO136: -0.4259549117 | AP136: -0.02793634583 | AQ136: -0.4696892929 | AS136: 97 | AT136: =IMREAL(IMPRODUCT(COMPLEX((AL136-AT$35),(AM136-AU$35)),AT$36))+AT$37 -> 0.2046 | AU136: =IMAGINARY(IMPRODUCT(COMPLEX((AL136-AT$35),(AM136-AU$35)),AT$36))+AU$37 -> -0.2399 | AV136: =IMREAL(IMPRODUCT(COMPLEX((AN136-AV$35),(AO136-AW$35)),AV$36))+AV$37 -> 0.3047 | AW136: =IMAGINARY(IMPRODUCT(COMPLEX((AN136-AV$35),(AO136-AW$35)),AV$36))+AW$37 -> -0.2251 | AX136: =IMREAL(IMPRODUCT(COMPLEX((AP136-AX$35),(AQ136-AY$35)),AX$36))+AX$37 -> 0.3545 | AY136: =IMAGINARY(IMPRODUCT(COMPLEX((AP136-AX$35),(AQ136-AY$35)),AX$36))+AY$37 -> -0.2560 | AZ136: =IMREAL(IMPRODUCT(COMPLEX(R136-AZ$35,S136-BA$35),AZ$36))+AZ$37 -> 0.49 | BA136: =IMAGINARY(IMPRODUCT(COMPLEX(R136-AZ$35,S136-BA$35),AZ$36))+BA$37 -> -0.19 | BB136: =IMREAL(IMPRODUCT(COMPLEX(T136-BB$35,U136-BC$35),BB$36))+BB$37 -> 0.49 | BC136: =IMAGINARY(IMPRODUCT(COMPLEX(T136-BB$35,U136-BC$35),BB$36))+BC$37 -> -0.22 | BD136: =IMREAL(IMPRODUCT(COMPLEX(V136-BD$35,W136-BE$35),BD$36))+BD$37 -> 0.52 | BE136: =IMAGINARY(IMPRODUCT(COMPLEX(V136-BD$35,W136-BE$35),BD$36))+BE$37 -> -0.21 | BF136: =IMREAL(IMPRODUCT(COMPLEX(X136-BF$35,Y136-BG$35),BF$36))+BF$37 -> 0.50 | BG136: =IMAGINARY(IMPRODUCT(COMPLEX(X136-BF$35,Y136-BG$35),BF$36))+BG$37 -> -0.18 | BH136: =IMREAL(IMPRODUCT(COMPLEX(Z136-BH$35,AA136-BI$35),BH$36))+BH$37 -> 0.57 | BI136: =IMAGINARY(IMPRODUCT(COMPLEX(Z136-BH$35,AA136-BI$35),BH$36))+BI$37 -> -0.19 | BJ136: =IMREAL(IMPRODUCT(COMPLEX(AB136-BJ$35,AC136-BK$35),BJ$36))+BJ$37 -> 0.57 | BK136: =IMAGINARY(IMPRODUCT(COMPLEX(AB136-BJ$35,AC136-BK$35),BJ$36))+BK$37 -> -0.20 | BL136: =IMREAL(IMPRODUCT(COMPLEX(AD136-BL$35,AE136-BM$35),BL$36))+BL$37 -> 0.55 | BM136: =IMAGINARY(IMPRODUCT(COMPLEX(AD136-BL$35,AE136-BM$35),BL$36))+BM$37 -> -0.23 | BN136: =IMREAL(IMPRODUCT(COMPLEX(AF136-BN$35,AG136-BO$35),BN$36))+BN$37 -> 0.54 | BO136: =IMAGINARY(IMPRODUCT(COMPLEX(AF136-BN$35,AG136-BO$35),BN$36))+BO$37 -> -0.12 | BP136: =IMREAL(IMPRODUCT(COMPLEX(AH136-BP$35,AI136-BQ$35),BP$36))+BP$37 -> 0.51 | BQ136: =IMAGINARY(IMPRODUCT(COMPLEX(AH136-BP$35,AI136-BQ$35),BP$36))+BQ$37 -> -0.27 | BS136: 97 | BT136: -0.03401208213 | BU136: 0.01627170039 | BV136: 0.3545381054 | BW136: -0.256049805 | BX136: 0.2045920435 | BY136: -0.2398891751 | CG136: -0.0340 | CH136: 0.0163
G137: 98 | J137: -0.02597097796 | K137: 0.02006240368 | L137: 0.002454342617 | M137: -0.31313135 | N137: 0.01139469208 | O137: -0.4220682341 | P137: -0.02777412977 | Q137: -0.4793602858 | R137: 0.01240506687 | S137: -0.616163231 | T137: -0.0181080666 | U137: -0.6024760951 | V137: -0.01792221894 | W137: -0.6475585185 | X137: 0.02231537744 | Y137: -0.630499288 | Z137: 0.003970457983 | AA137: -0.6903081332 | AB137: -0.00742267221 | AC137: -0.690603394 | AD137: -0.0335728761 | AE137: -0.6705779223 | AF137: 0.07211255245 | AG137: -0.6693925842 | AH137: -0.07057829648 | AI137: -0.6193408957 | AL137: 0.002454342617 | AM137: -0.31313135 | AN137: 0.01139469208 | AO137: -0.4220682341 | AP137: -0.02777412977 | AQ137: -0.4793602858 | AS137: 98 | AT137: 0.2032 | AU137: -0.2383 | AV137: 0.3008 | AW137: -0.2256 | AX137: 0.3640 | AY137: -0.2542 | AZ137: 0.49 | BA137: -0.19 | BB137: 0.48 | BC137: -0.22 | BD137: 0.53 | BE137: -0.22 | BF137: 0.50 | BG137: -0.18 | BH137: 0.57 | BI137: -0.19 | BJ137: 0.57 | BK137: -0.20 | BL137: 0.55 | BM137: -0.23 | BN137: 0.53 | BO137: -0.12 | BP137: 0.51 | BQ137: -0.27 | BS137: 98 | BT137: -0.02597097796 | BU137: 0.02006240368 | BV137: 0.3640340056 | BW137: -0.2542107031 | BX137: 0.2031570875 | BY137: -0.2382949096 | CG137: -0.0260 | CH137: 0.0201
G138: 99 | J138: -0.01780067688 | K138: 0.02522590342 | L138: 0.00237089583 | M138: -0.3108922298 | N138: 0.01161634099 | O138: -0.4171080555 | P138: -0.02776024367 | Q138: -0.4897644845 | R138: 0.01222259516 | S138: -0.6149364542 | T138: -0.01727306997 | U138: -0.6007194336 | V138: -0.01887160714 | W138: -0.6509561319 | X138: 0.02232865344 | Y138: -0.6329068637 | Z138: 0.003486144482 | AA138: -0.6907199169 | AB138: -0.007225744953 | AC138: -0.6887383119 | AD138: -0.033142537 | AE138: -0.6717395393 | AF138: 0.07336827285 | AG138: -0.6638423723 | AH138: -0.07127403346 | AI138: -0.6206477189 | AL138: 0.00237089583 | AM138: -0.3108922298 | AN138: 0.01161634099 | AO138: -0.4171080555 | AP138: -0.02776024367 | AQ138: -0.4897644845 | AS138: 99 | AT138: 0.2017 | AU138: -0.2366 | AV138: 0.2959 | AW138: -0.2262 | AX138: 0.3743 | AY138: -0.2524 | AZ138: 0.49 | BA138: -0.19 | BB138: 0.48 | BC138: -0.22 | BD138: 0.53 | BE138: -0.22 | BF138: 0.51 | BG138: -0.18 | BH138: 0.57 | BI138: -0.19 | BJ138: 0.57 | BK138: -0.20 | BL138: 0.55 | BM138: -0.23 | BN138: 0.53 | BO138: -0.12 | BP138: 0.51 | BQ138: -0.27 | BS138: 99 | BT138: -0.01780067688 | BU138: 0.02522590342 | BV138: 0.3742777299 | BW138: -0.2523903578 | BX138: 0.2016538849 | BY138: -0.2366332826 | CG138: -0.0178 | CH138: 0.0252
G139: 100 | J139: -0.011463 | K139: 0.0298070653 | L139: 0.002245180619 | M139: -0.3087476035 | N139: 0.01195581437 | O139: -0.4118654693 | P139: -0.02774811468 | Q139: -0.498873688 | R139: 0.01268942697 | S139: -0.6137945071 | T139: -0.01634997345 | U139: -0.5989887385 | V139: -0.01967647246 | W139: -0.6536825267 | X139: 0.0224038678 | Y139: -0.6348888266 | Z139: 0.003002221451 | AA139: -0.6911317005 | AB139: -0.007031941458 | AC139: -0.6871619828 | AD139: -0.03262692892 | AE139: -0.6728324335 | AF139: 0.0744203629 | AG139: -0.6591921948 | AH139: -0.07186444916 | AI139: -0.6225576074 | AL139: 0.002245180619 | AM139: -0.3087476035 | AN139: 0.01195581437 | AO139: -0.4118654693 | AP139: -0.02774811468 | AQ139: -0.498873688 | AS139: 100 | AT139: 0.2002 | AU139: -0.2351 | AV139: 0.2907 | AW139: -0.2268 | AX139: 0.3832 | AY139: -0.2508 | AZ139: 0.49 | BA139: -0.19 | BB139: 0.48 | BC139: -0.22 | BD139: 0.53 | BE139: -0.22 | BF139: 0.51 | BG139: -0.18 | BH139: 0.57 | BI139: -0.19 | BJ139: 0.57 | BK139: -0.20 | BL139: 0.56 | BM139: -0.23 | BN139: 0.52 | BO139: -0.12 | BP139: 0.51 | BQ139: -0.27 | BS139: 100 | BT139: -0.011463 | BU139: 0.0298070653 | BV139: =IF(ISERROR(MATCH($BS139,$DO$218:$DO$403)),AX139,IF(ISNA(INDEX($DP$218:$DP$403,MATCH($BS139,$DO$218:$DO$403),1)),NA(),AX139)) -> 0.383246438 | BW139: =IF(ISERROR(MATCH($BS139,$DO$218:$DO$403)),AY139,IF(ISNA(INDEX($DP$218:$DP$403,MATCH($BS139,$DO$218:$DO$403),1)),NA(),AY139)) -> -0.2507966165 | BX139: 0.2001790422 | BY139: -0.2350712117 | CG139: -0.0115 | CH139: 0.0298
G140: 101 | J140: -0.008919768412 | K140: 0.03185075504 | L140: 0.002043909377 | M140: -0.3068874349 | N140: 0.01246865661 | O140: -0.4071315684 | P140: -0.02759116997 | Q140: -0.5046596953 | R140: 0.01414849298 | S140: -0.6129460962 | T140: -0.01540320466 | U140: -0.5975804743 | V140: -0.02018443383 | W140: -0.6550619937 | X140: 0.02248259641 | Y140: -0.6359492792 | Z140: 0.002517761524 | AA140: -0.6915425079 | AB140: -0.006892169311 | AC140: -0.6862264156 | AD140: -0.0319514232 | AE140: -0.6737679681 | AF140: 0.07486156196 | AG140: -0.6572421203 | AH140: -0.07327236354 | AI140: -0.627111957 | AL140: 0.002043909377 | AM140: -0.3068874349 | AN140: 0.01246865661 | AO140: -0.4071315684 | AP140: -0.02759116997 | AQ140: -0.5046596953 | AS140: 101 | AT140: 0.1988 | AU140: -0.2338 | AV140: 0.2859 | AW140: -0.2271 | AX140: 0.3889 | AY140: -0.2496 | AZ140: 0.49 | BA140: -0.19 | BB140: 0.48 | BC140: -0.22 | BD140: 0.54 | BE140: -0.22 | BF140: 0.51 | BG140: -0.18 | BH140: 0.57 | BI140: -0.19 | BJ140: 0.56 | BK140: -0.20 | BL140: 0.56 | BM140: -0.22 | BN140: 0.52 | BO140: -0.12 | BP140: 0.52 | BQ140: -0.27 | BS140: 101 | BT140: -0.008919768412 | BU140: 0.03185075504 | BV140: 0.3889172896 | BW140: -0.2496373265 | BX140: 0.1988291661 | BY140: -0.2337756145 | CG140: -0.0089 | CH140: 0.0319
G141: 102 | J141: -0.001752919417 | K141: 0.03475516365 | L141: 0.001570602262 | M141: -0.3031722388 | N141: 0.01318022391 | O141: -0.3993916796 | P141: -0.02718805805 | Q141: -0.5106585984 | R141: 0.01468361645 | S141: -0.6127243415 | T141: -0.01455210926 | U141: -0.5966193151 | V141: -0.02048814662 | W141: -0.6554603386 | X141: 0.02267887288 | Y141: -0.6374027403 | Z141: -0.2861660635 | AB141: -0.006786180991 | AC141: -0.685230716 | AD141: -0.03097474275 | AE141: -0.6745992146 | AF141: -0.2495422792 | AH141: -0.07495277748 | AI141: -0.6325477936 | AL141: 0.001570602262 | AM141: -0.3031722388 | AN141: 0.01318022391 | AO141: -0.3993916796 | AP141: -0.02718805805 | AQ141: -0.5106585984 | AS141: 102 | AT141: 0.1961 | AU141: -0.2312 | AV141: 0.2782 | AW141: -0.2278 | AX141: 0.3948 | AY141: -0.2482 | AZ141: 0.49 | BA141: -0.19 | BB141: 0.48 | BC141: -0.22 | BD141: 0.54 | BE141: -0.22 | BF141: 0.51 | BG141: -0.18 | BJ141: 0.56 | BK141: -0.20 | BL141: 0.56 | BM141: -0.22 | BP141: 0.52 | BQ141: -0.27 | BS141: 102 | BT141: -0.001752919417 | BU141: 0.03475516365 | BV141: 0.3947550562 | BW141: -0.2481986402 | BX141: 0.1960785098 | BY141: -0.2312338452 | CB141: =IF($K$11=0,NA(),BP141) ->  | CC141: =IF($K$11=0,NA(),BQ141) ->  | CG141: -0.0018 | CH141: 0.0348
G142: 103 | J142: 0.006060206962 | K142: 0.03546171177 | L142: 0.001233325285 | M142: -0.2993870509 | N142: 0.01349385302 | O142: -0.3898368842 | P142: -0.02655412929 | Q142: -0.5209173875 | R142: 0.01541626915 | S142: -0.6123532319 | T142: -0.01373254434 | U142: -0.5958732074 | V142: -0.02085750725 | W142: -0.6558327173 | X142: 0.0230073236 | Y142: -0.6399413188 | Z142: -0.429332538 | AB142: -0.006720508744 | AC142: -0.6835360743 | AD142: -0.02961823217 | AE142: -0.6754462752 | AF142: -0.417036209 | AH142: -0.07636069186 | AI142: -0.6371021432 | AL142: 0.001233325285 | AM142: -0.2993870509 | AN142: 0.01349385302 | AO142: -0.3898368842 | AP142: -0.02655412929 | AQ142: -0.5209173875 | AS142: 103 | AT142: 0.1934 | AU142: -0.2286 | AV142: 0.2687 | AW142: -0.2291 | AX142: 0.4047 | AY142: -0.2458 | AZ142: 0.49 | BA142: -0.19 | BB142: 0.48 | BC142: -0.22 | BD142: 0.54 | BE142: -0.22 | BF142: 0.51 | BG142: -0.18 | BJ142: 0.56 | BK142: -0.20 | BL142: 0.56 | BM142: -0.22 | BP142: 0.53 | BQ142: -0.27 | BS142: 103 | BT142: 0.006060206962 | BU142: 0.03546171177 | BV142: 0.4047479108 | BW142: -0.2457929222 | BX142: 0.1933870688 | BY142: -0.2285510205 | CG142: 0.0061 | CH142: 0.0355
G143: 104 | J143: 0.0134778356 | K143: 0.03477452447 | L143: 0.0009977658583 | M143: -0.2955795086 | N143: 0.01347284896 | O143: -0.3799400368 | P143: -0.0258734417 | Q143: -0.5322230767 | R143: 0.01620329485 | S143: -0.6119225756 | T143: -0.01290575573 | U143: -0.5953121827 | V143: -0.02126323044 | W143: -0.6561824486 | X143: 0.02337389399 | Y143: -0.6428676344 | Z143: -0.4258966421 | AB143: -0.006745962536 | AC143: -0.6814265577 | AD143: -0.02809338003 | AE143: -0.6761160621 | AF143: -0.4325051591 | AH143: -0.07695110757 | AI143: -0.6390120317 | AL143: 0.0009977658583 | AM143: -0.2955795086 | AN143: 0.01347284896 | AO143: -0.3799400368 | AP143: -0.0258734417 | AQ143: -0.5322230767 | AS143: 104 | AT143: 0.1908 | AU143: -0.2258 | AV143: 0.2590 | AW143: -0.2309 | AX143: 0.4158 | AY143: -0.2432 | AZ143: 0.49 | BA143: -0.19 | BB143: 0.48 | BC143: -0.22 | BD143: 0.54 | BE143: -0.22 | BF143: 0.52 | BG143: -0.18 | BJ143: 0.56 | BK143: -0.20 | BL143: 0.56 | BM143: -0.22 | BP143: 0.53 | BQ143: -0.27 | BS143: 104 | BT143: 0.0134778356 | BU143: 0.03477452447 | BV143: 0.415763641 | BW143: -0.2431593635 | BX143: 0.1907591788 | BY143: -0.2257856885 | CG143: 0.0135 | CH143: 0.0348
G144: 105 | J144: 0.01945819135 | K144: 0.03349772681 | L144: 0.0008296113908 | M144: -0.2917972492 | N144: 0.01318051676 | O144: -0.3711739917 | P144: -0.02533005327 | Q144: -0.54136268 | R144: 0.01690153735 | S144: -0.6115221807 | T144: -0.01203298922 | U144: -0.5949062725 | V144: -0.02167603091 | W144: -0.6565128517 | X144: 0.0236845295 | Y144: -0.645484307 | Z144: -0.2747733563 | AB144: -0.006913352332 | AC144: -0.6791862336 | AD144: -0.02661167487 | AE144: -0.6764154879 | AF144: -0.3008340611 | AH144: -0.07711434862 | AI144: -0.6404839751 | AL144: 0.0008296113908 | AM144: -0.2917972492 | AN144: 0.01318051676 | AO144: -0.3711739917 | AP144: -0.02533005327 | AQ144: -0.54136268 | AS144: 105 | AT144: 0.1882 | AU144: -0.2230 | AV144: 0.2504 | AW144: -0.2327 | AX144: 0.4247 | AY144: -0.2410 | AZ144: 0.49 | BA144: -0.19 | BB144: 0.48 | BC144: -0.22 | BD144: 0.54 | BE144: -0.22 | BF144: 0.52 | BG144: -0.17 | BJ144: 0.56 | BK144: -0.20 | BL144: 0.56 | BM144: -0.22 | BP144: 0.53 | BQ144: -0.27 | BS144: 105 | BT144: 0.01945819135 | BU144: 0.03349772681 | BV144: 0.4246700348 | BW144: -0.2410371549 | BX144: 0.1881991755 | BY144: -0.2229963973 | CG144: 0.0195 | CH144: 0.0335
G145: 106 | J145: 0.0229594991 | K145: 0.03243544385 | L145: 0.000694549293 | M145: -0.2880879102 | N145: 0.01268016143 | O145: -0.3650116035 | P145: -0.02510802202 | Q145: -0.5451232113 | R145: 0.0173678404 | S145: -0.6112418554 | T145: -0.01107549063 | U145: -0.5946255079 | V145: -0.02206662337 | W145: -0.6568272455 | X145: 0.02384517554 | Y145: -0.6470939563 | Z145: 0.02512233927 | AA145: -0.662196214 | AB145: -0.007273488098 | AC145: -0.6770991691 | AD145: -0.02538460525 | AE145: -0.6761514648 | AH145: -0.076743963 | AI145: -0.6419199952 | AL145: 0.000694549293 | AM145: -0.2880879102 | AN145: 0.01268016143 | AO145: -0.3650116035 | AP145: -0.02510802202 | AQ145: -0.5451232113 | AS145: 106 | AT145: 0.1857 | AU145: -0.2202 | AV145: 0.2444 | AW145: -0.2342 | AX145: 0.4283 | AY145: -0.2402 | AZ145: 0.49 | BA145: -0.19 | BB145: 0.47 | BC145: -0.22 | BD145: 0.54 | BE145: -0.22 | BF145: 0.52 | BG145: -0.17 | BH145: 0.53 | BI145: -0.17 | BJ145: 0.56 | BK145: -0.20 | BL145: 0.56 | BM145: -0.22 | BP145: 0.53 | BQ145: -0.27 | BS145: 106 | BT145: 0.0229594991 | BU145: 0.03243544385 | BV145: 0.4283348798 | BW145: -0.2401654874 | BX145: 0.1857113948 | BY145: -0.2202416951 | CG145: 0.0230 | CH145: 0.0324
G146: 107 | J146: 0.02468647664 | K146: 0.03123112726 | L146: 0.0006242483444 | M146: -0.2849862245 | P146: -0.02479775258 | Q146: -0.5495065674 | R146: -0.2785767662 | T146: -0.2933613436 | V146: -0.02304046478 | W146: -0.6577316726 | X146: 0.02397077687 | Y146: -0.6485066133 | Z146: 0.02599174611 | AA146: -0.6611385272 | AB146: -0.00772794688 | AC146: -0.6754151026 | AD146: -0.02481285077 | AE146: -0.6755035116 | AH146: -0.07590423192 | AI146: -0.6432212054 | AL146: 0.0006242483444 | AM146: -0.2849862245 | AP146: -0.02479775258 | AQ146: -0.5495065674 | AS146: 107 | AT146: 0.1837 | AU146: -0.2179 | AX146: 0.4326 | AY146: -0.2391 | BD146: 0.54 | BE146: -0.22 | BF146: 0.52 | BG146: -0.17 | BH146: 0.53 | BI146: -0.17 | BJ146: 0.55 | BK146: -0.20 | BL146: 0.56 | BM146: -0.22 | BP146: 0.53 | BQ146: -0.27 | BS146: 107 | BT146: 0.02468647664 | BU146: 0.03123112726 | BV146: 0.4325977651 | BW146: -0.2390987698 | BX146: 0.183663816 | BY146: -0.2179108546 | CG146: 0.0247 | CH146: 0.0312
G147: 108 | J147: 0.02579553471 | K147: 0.02934519572 | L147: 0.0004079114517 | M147: -0.2771937199 | P147: -0.02422996789 | Q147: -0.5586087587 | R147: -0.4262364653 | T147: -0.4341529606 | V147: -0.02386973451 | W147: -0.658709313 | X147: 0.02413103244 | Y147: -0.6499054085 | Z147: 0.02676451151 | AA147: -0.6602497189 | AB147: -0.008000641673 | AC147: -0.6745988567 | AD147: -0.02446732511 | AE147: -0.6745133111 | AH147: -0.07465943656 | AI147: -0.644288719 | AL147: 0.0004079114517 | AM147: -0.2771937199 | AP147: -0.02422996789 | AQ147: -0.5586087587 | AS147: 108 | AT147: 0.1785 | AU147: -0.2121 | AX147: 0.4415 | AY147: -0.2370 | BD147: 0.54 | BE147: -0.22 | BF147: 0.52 | BG147: -0.17 | BH147: 0.53 | BI147: -0.17 | BJ147: 0.55 | BK147: -0.20 | BL147: 0.56 | BM147: -0.22 | BP147: 0.53 | BQ147: -0.27 | BS147: 108 | BT147: 0.02579553471 | BU147: 0.02934519572 | BV147: 0.4414630789 | BW147: -0.2369590321 | BX147: 0.1784891669 | BY147: -0.2120805083 | CG147: 0.0258 | CH147: 0.0293
G148: 109 | J148: 0.02626104869 | K148: 0.02718642295 | L148: 3.738754451e-05 | M148: -0.2669792247 | P148: -0.02361791361 | Q148: -0.5692498916 | R148: -0.4253226994 | T148: -0.4331260559 | V148: -0.02452212113 | W148: -0.6597777377 | X148: 0.0242756692 | Y148: -0.6512999086 | Z148: 0.02758852616 | AA148: -0.6596469301 | AB148: -0.008128471933 | AC148: -0.6742687465 | AD148: -0.02440391434 | AE148: -0.6734252978 | AH148: -0.07307385813 | AI148: -0.6450236495 | AL148: 3.738754451e-05 | AM148: -0.2669792247 | AP148: -0.02361791361 | AQ148: -0.5692498916 | AS148: 109 | AT148: 0.1716 | AU148: -0.2045 | AX148: 0.4518 | AY148: -0.2345 | BD148: 0.54 | BE148: -0.22 | BF148: 0.52 | BG148: -0.17 | BH148: 0.53 | BI148: -0.17 | BJ148: 0.55 | BK148: -0.20 | BL148: 0.55 | BM148: -0.22 | BP148: 0.54 | BQ148: -0.27 | BS148: 109 | BT148: 0.02626104869 | BU148: 0.02718642295 | BV148: 0.4518362671 | BW148: -0.234508463 | BX148: 0.1716395782 | BY148: -0.2044939193 | CG148: 0.0263 | CH148: 0.0272
G149: 110 | J149: 0.02605739395 | K149: 0.02516358271 | L149: -0.0004954744476 | M149: -0.2566115675 | P149: -0.02317483542 | Q149: -0.5782500726 | R149: -0.2755469108 | T149: -0.2899563438 | V149: -0.02496531321 | W149: -0.660954518 | X149: 0.02435441407 | Y149: -0.6526996801 | Z149: 0.02861168073 | AA149: -0.6594473021 | AB149: -0.008148337117 | AC149: -0.6740430871 | AD149: -0.02467850454 | AE149: -0.6724839061 | AH149: -0.07307385813 | AI149: -0.6450236495 | AL149: -0.0004954744476 | AM149: -0.2566115675 | AP149: -0.02317483542 | AQ149: -0.5782500726 | AS149: 110 | AT149: 0.1646 | AU149: -0.1969 | AX149: 0.4606 | AY149: -0.2325 | BD149: 0.54 | BE149: -0.22 | BF149: 0.53 | BG149: -0.17 | BH149: 0.53 | BI149: -0.17 | BJ149: 0.55 | BK149: -0.20 | BL149: 0.55 | BM149: -0.22 | BP149: 0.54 | BQ149: -0.27 | BS149: 110 | BT149: 0.02605739395 | BU149: 0.02516358271 | BV149: 0.4606227753 | BW149: -0.2325092511 | BX149: 0.1645671806 | BY149: -0.1968943502 | CG149: 0.0261 | CH149: 0.0252
G150: 111 | J150: 0.02515894587 | K150: 0.02368544873 | L150: -0.001198825595 | M150: -0.2483595767 | P150: -0.02311397897 | Q150: -0.5824294078 | R150: 0.0233794582 | S150: -0.6220082643 | T150: -0.004319538555 | U150: -0.6012757076 | V150: -0.02516699933 | W150: -0.662257225 | X150: 0.02431699399 | Y150: -0.6541142894 | Z150: 0.0299818659 | AA150: -0.659767976 | AB150: -0.00809713668 | AC150: -0.6735401937 | AD150: -0.02534698179 | AE150: -0.6719335706 | AH150: -0.07307385813 | AI150: -0.6450236495 | AL150: -0.001198825595 | AM150: -0.2483595767 | AP150: -0.02311397897 | AQ150: -0.5824294078 | AS150: 111 | AT150: 0.1587 | AU150: -0.1910 | AX150: 0.4647 | AY150: -0.2317 | AZ150: 0.50 | BA150: -0.18 | BB150: 0.48 | BC150: -0.21 | BD150: 0.54 | BE150: -0.22 | BF150: 0.53 | BG150: -0.17 | BH150: 0.53 | BI150: -0.17 | BJ150: 0.55 | BK150: -0.20 | BL150: 0.55 | BM150: -0.22 | BP150: 0.54 | BQ150: -0.27 | BS150: 111 | BT150: 0.02515894587 | BU150: 0.02368544873 | BV150: 0.4647280494 | BW150: -0.2317235853 | BX150: 0.158724105 | BY150: -0.1910250639 | CG150: 0.0252 | CH150: 0.0237
G151: 112 | J151: 0.02127268308 | K151: 0.02287127719 | L151: -0.001986209235 | M151: -0.2287537957 | P151: -0.02339639485 | Q151: -0.583228652 | R151: 0.02373191471 | S151: -0.6219414451 | T151: -0.004022089564 | U151: -0.6002002219 | V151: -0.02514593019 | W151: -0.6626598651 | X151: 0.02433703 | Y151: -0.655503388 | Z151: 0.03070512291 | AA151: -0.6601254191 | AB151: -0.008000877582 | AC151: -0.6729710505 | AD151: -0.02559728148 | AE151: -0.671328439 | AH151: -0.07307385813 | AI151: -0.6450236495 | AL151: -0.001986209235 | AM151: -0.2287537957 | AP151: -0.02339639485 | AQ151: -0.583228652 | AS151: 112 | AT151: 0.1455 | AU151: -0.1765 | AX151: 0.4656 | AY151: -0.2319 | AZ151: 0.50 | BA151: -0.18 | BB151: 0.48 | BC151: -0.21 | BD151: 0.54 | BE151: -0.22 | BF151: 0.53 | BG151: -0.17 | BH151: 0.53 | BI151: -0.17 | BJ151: 0.55 | BK151: -0.20 | BL151: 0.55 | BM151: -0.22 | BP151: 0.54 | BQ151: -0.27 | BS151: 112 | BT151: 0.02127268308 | BU151: 0.02287127719 | BV151: 0.4655641923 | BW151: -0.2318629233 | BX151: 0.145518581 | BY151: -0.1765122847 | CG151: 0.0213 | CH151: 0.0229
G152: 113 | J152: 0.01461320161 | K152: 0.02320069595 | L152: -0.001530286189 | M152: -0.1997934655 | P152: -0.02374333597 | Q152: -0.5840039799 | R152: 0.02407568326 | S152: -0.621854419 | T152: -0.003734646377 | U152: -0.5995382443 | V152: -0.02506043344 | W152: -0.6630320485 | X152: 0.02445263366 | Y152: -0.6578969718 | Z152: 0.03115012092 | AA152: -0.6605468018 | AB152: -0.00782271731 | AC152: -0.6723939027 | AD152: -0.02590268631 | AE152: -0.670695584 | AH152: -0.07307385813 | AI152: -0.6450236495 | AL152: -0.001530286189 | AM152: -0.1997934655 | AP152: -0.02374333597 | AQ152: -0.5840039799 | AS152: 113 | AT152: 0.1273 | AU152: -0.1540 | AX152: 0.4664 | AY152: -0.2321 | AZ152: 0.50 | BA152: -0.18 | BB152: 0.48 | BC152: -0.21 | BD152: 0.54 | BE152: -0.22 | BF152: 0.53 | BG152: -0.17 | BH152: 0.53 | BI152: -0.16 | BJ152: 0.55 | BK152: -0.20 | BL152: 0.55 | BM152: -0.22 | BP152: 0.54 | BQ152: -0.27 | BS152: 113 | BT152: 0.01461320161 | BU152: 0.02320069595 | BV152: 0.4663879869 | BW152: -0.2320699594 | BX152: 0.1272524969 | BY152: -0.1540343231 | CG152: 0.0146 | CH152: 0.0232
G153: 114 | J153: 0.006875484834 | K153: 0.02388056193 | L153: -0.0003682949718 | M153: -0.1674922215 | P153: -0.02410169835 | Q153: -0.5847744269 | R153: 0.02440744484 | S153: -0.6217489431 | T153: -0.003339579776 | U153: -0.5990951254 | V153: -0.02494296691 | W153: -0.6633940797 | X153: 0.0245914703 | Y153: -0.6606331934 | Z153: 0.0313726972 | AA153: -0.6610843494 | AB153: -0.007569342669 | AC153: -0.6718349117 | AD153: -0.02619896389 | AE153: -0.670044377 | AH153: -0.07307385813 | AI153: -0.6450236495 | AL153: -0.0003682949718 | AM153: -0.1674922215 | AP153: -0.02410169835 | AQ153: -0.5847744269 | AS153: 114 | AT153: 0.1074 | AU153: -0.1285 | AX153: 0.4672 | AY153: -0.2323 | AZ153: 0.50 | BA153: -0.18 | BB153: 0.48 | BC153: -0.21 | BD153: 0.54 | BE153: -0.22 | BF153: 0.53 | BG153: -0.17 | BH153: 0.53 | BI153: -0.16 | BJ153: 0.55 | BK153: -0.20 | BL153: 0.55 | BM153: -0.22 | BP153: 0.54 | BQ153: -0.27 | BS153: 114 | BT153: 0.006875484834 | BU153: 0.02388056193 | BV153: 0.467208958 | BW153: -0.2322890907 | BX153: 0.1073797944 | BY153: -0.128543221 | CG153: 0.0069 | CH153: 0.0239
G154: 115 | J154: -0.000245483884 | K154: 0.02411773204 | L154: 0.0009625259012 | M154: -0.1378636988 | P154: -0.02441837801 | Q154: -0.5855590284 | R154: 0.02472388046 | S154: -0.6216267747 | T154: -0.00271926054 | U154: -0.5986762157 | V154: -0.02482598848 | W154: -0.6637662631 | X154: 0.02468120529 | Y154: -0.6630502054 | Z154: 0.03142868903 | AA154: -0.6617902874 | AB154: -0.007247440466 | AC154: -0.6713202391 | AD154: -0.02642188183 | AE154: -0.6693841891 | AH154: -0.07135030535 | AI154: -0.6453126627 | AL154: 0.0009625259012 | AM154: -0.1378636988 | AP154: -0.02441837801 | AQ154: -0.5855590284 | AS154: 115 | AT154: 0.0894 | AU154: -0.1050 | AX154: 0.4680 | AY154: -0.2325 | AZ154: 0.50 | BA154: -0.18 | BB154: 0.48 | BC154: -0.21 | BD154: 0.55 | BE154: -0.22 | BF154: 0.54 | BG154: -0.17 | BH154: 0.53 | BI154: -0.16 | BJ154: 0.55 | BK154: -0.20 | BL154: 0.55 | BM154: -0.22 | BP154: 0.54 | BQ154: -0.27 | BS154: 115 | BT154: -0.000245483884 | BU154: 0.02411773204 | BV154: 0.4680366306 | BW154: -0.2324647146 | BX154: 0.08935441504 | BY154: -0.1049910207 | CG154: -0.0002 | CH154: 0.0241
G155: 116 | J155: -0.005054721178 | K155: 0.02311906322 | L155: 0.001924937915 | M155: -0.1169215327 | P155: -0.02464027097 | Q155: -0.5863768199 | R155: 0.02502167111 | S155: -0.6214896708 | T155: -0.00175605945 | U155: -0.5980868657 | V155: -0.02474195598 | W155: -0.6641689032 | X155: 0.02464950397 | Y155: -0.6644861604 | Z155: 0.03137393369 | AA155: -0.6627168413 | AB155: -0.006863697508 | AC155: -0.6708760465 | AD155: -0.02650720776 | AE155: -0.6687243916 | AH155: -0.06972100236 | AI155: -0.6451339899 | AL155: 0.001924937915 | AM155: -0.1169215327 | AP155: -0.02464027097 | AQ155: -0.5863768199 | AS155: 116 | AT155: 0.0766 | AU155: -0.0883 | AX155: 0.4689 | AY155: -0.2325 | AZ155: 0.49 | BA155: -0.18 | BB155: 0.48 | BC155: -0.21 | BD155: 0.55 | BE155: -0.22 | BF155: 0.54 | BG155: -0.17 | BH155: 0.53 | BI155: -0.16 | BJ155: 0.55 | BK155: -0.20 | BL155: 0.55 | BM155: -0.22 | BP155: 0.53 | BQ155: -0.27 | BS155: 116 | BT155: -0.005054721178 | BU155: 0.02311906322 | BV155: 0.4688805293 | BW155: -0.2325412285 | BX155: 0.07663030051 | BY155: -0.08832976415 | CG155: -0.0051 | CH155: 0.0231
G156: 117 | J156: -0.2904805585 | L156: -0.2866210999 | P156: -0.02460025589 | Q156: -0.5876512666 | R156: 0.02548625772 | S156: -0.6211777174 | T156: -0.0003954245325 | U156: -0.5973731996 | V156: -0.02425141123 | W156: -0.6650652281 | X156: 0.02442652908 | Y156: -0.6656010186 | Z156: 0.03131741309 | AA156: -0.6634551232 | AB156: -0.2910984291 | AD156: -0.02638982258 | AE156: -0.6680366756 | AH156: -0.06829435354 | AI156: -0.6445334139 | AL156: -0.2866210999 | AP156: -0.02460025589 | AQ156: -0.5876512666 | AS156: 117 | AX156: 0.4701 | AY156: -0.2323 | AZ156: 0.49 | BA156: -0.18 | BB156: 0.48 | BC156: -0.21 | BD156: 0.55 | BE156: -0.22 | BF156: 0.54 | BG156: -0.17 | BH156: 0.54 | BI156: -0.16 | BL156: 0.55 | BM156: -0.22 | BP156: 0.53 | BQ156: -0.27 | BS156: 117 | BV156: 0.4701286657 | BW156: -0.232280516
G157: 118 | J157: -0.4344672649 | L157: -0.4306726732 | P157: -0.0241627419 | Q157: -0.5892793819 | R157: 0.02597529754 | S157: -0.6206594004 | T157: 0.0009059564964 | U157: -0.5970148616 | V157: -0.02319824737 | W157: -0.6661901734 | X157: 0.02409007372 | Y157: -0.6666694108 | Z157: 0.03125293666 | AA157: -0.6642805777 | AB157: -0.432391402 | AD157: -0.02609574953 | AE157: -0.6671058917 | AH157: -0.06717876322 | AI157: -0.6435567171 | AL157: -0.4306726732 | AP157: -0.0241627419 | AQ157: -0.5892793819 | AS157: 118 | AX157: 0.4717 | AY157: -0.2316 | AZ157: 0.49 | BA157: -0.18 | BB157: 0.47 | BC157: -0.21 | BD157: 0.55 | BE157: -0.22 | BF157: 0.54 | BG157: -0.17 | BH157: 0.54 | BI157: -0.16 | BL157: 0.55 | BM157: -0.22 | BP157: 0.53 | BQ157: -0.26 | BS157: 118 | BV157: 0.4716560728 | BW157: -0.2315669296
G158: 119 | J158: -0.4381906446 | L158: -0.4300253708 | P158: -0.02339513396 | Q158: -0.5909114995 | R158: 0.02638731706 | S158: -0.6199387222 | T158: 0.002251119023 | U158: -0.5969879354 | V158: -0.02191914756 | W158: -0.6673281995 | X158: 0.02359523379 | Y158: -0.667644871 | Z158: 0.03116425106 | AA158: -0.6651188202 | AB158: -0.4299816381 | AD158: -0.02569746969 | AE158: -0.6660052531 | AH158: -0.06648263578 | AI158: -0.6422496824 | AL158: -0.4300253708 | AP158: -0.02339513396 | AQ158: -0.5909114995 | AS158: 119 | AX158: 0.4731 | AY158: -0.2305 | AZ158: 0.49 | BA158: -0.18 | BB158: 0.47 | BC158: -0.20 | BD158: 0.55 | BE158: -0.22 | BF158: 0.54 | BG158: -0.17 | BH158: 0.54 | BI158: -0.16 | BL158: 0.55 | BM158: -0.22 | BP158: 0.53 | BQ158: -0.26 | BS158: 119 | BV158: 0.4731301012 | BW158: -0.2305275691
G159: 120 | J159: -0.3028265016 | L159: -0.2844747815 | P159: -0.02236483703 | Q159: -0.5921979532 | R159: 0.02662084279 | S159: -0.6190196849 | T159: 0.003743098435 | U159: -0.5972685047 | V159: -0.02075079493 | W159: -0.6682637667 | X159: 0.02289710518 | Y159: -0.6684809333 | Z159: 0.03103510297 | AA159: -0.6658954659 | AB159: -0.2831081593 | AD159: -0.02526746412 | AE159: -0.6648079731 | AL159: -0.2844747815 | AP159: -0.02236483703 | AQ159: -0.5921979532 | AS159: 120 | AX159: 0.4742 | AY159: -0.2293 | AZ159: 0.49 | BA159: -0.18 | BB159: 0.47 | BC159: -0.20 | BD159: 0.55 | BE159: -0.21 | BF159: 0.54 | BG159: -0.17 | BH159: 0.54 | BI159: -0.16 | BL159: 0.55 | BM159: -0.22 | BS159: 120 | BV159: 0.4742181015 | BW159: -0.2292895344
G160: 121 | J160: -0.02955064011 | K160: 0.01815378418 | L160: 0.006183506138 | M160: 0.01508289687 | P160: -0.02113925608 | Q160: -0.5927890767 | R160: 0.02657440121 | S160: -0.617906291 | T160: 0.005484930119 | U160: -0.5978326532 | V160: -0.02002987262 | W160: -0.6687813353 | X160: 0.0219507838 | Y160: -0.6691311317 | Z160: 0.03084923904 | AA160: -0.6665361302 | AB160: 0.008990012417 | AC160: -0.6611752965 | AD160: -0.0248782139 | AE160: -0.6635872649 | AL160: 0.006183506138 | AM160: 0.01508289687 | AP160: -0.02113925608 | AQ160: -0.5927890767 | AS160: 121 | AT160: -0.0050 | AU160: 0.0155 | AX160: 0.4746 | AY160: -0.2280 | AZ160: 0.49 | BA160: -0.18 | BB160: 0.47 | BC160: -0.20 | BD160: 0.55 | BE160: -0.21 | BF160: 0.54 | BG160: -0.17 | BH160: 0.54 | BI160: -0.16 | BJ160: 0.54 | BK160: -0.19 | BL160: 0.54 | BM160: -0.22 | BS160: 121 | BT160: -0.02955064011 | BU160: 0.01815378418 | BV160: 0.4745874246 | BW160: -0.2279799252 | BX160: -0.004958258713 | BY160: 0.01552885047 | CG160: -0.0296 | CH160: 0.0182
G161: 122 | J161: -0.03059952506 | K161: 0.01932106302 | L161: 0.007275147598 | M161: 0.01445091233 | P161: -0.02047128318 | Q161: -0.5925792964 | R161: 0.02659599097 | S161: -0.6170183612 | V161: -0.01909855995 | W161: -0.6692108202 | X161: 0.02107311201 | Y161: -0.6693933977 | Z161: -0.2716381309 | AB161: 0.009083359256 | AC161: -0.66161604 | AD161: -0.3003455175 | AL161: 0.007275147598 | AM161: 0.01445091233 | AP161: -0.02047128318 | AQ161: -0.5925792964 | AS161: 122 | AT161: -0.0037 | AU161: 0.0157 | AX161: 0.4743 | AY161: -0.2274 | AZ161: 0.49 | BA161: -0.18 | BD161: 0.55 | BE161: -0.21 | BF161: 0.54 | BG161: -0.17 | BJ161: 0.54 | BK161: -0.19 | BS161: 122 | BT161: -0.03059952506 | BU161: 0.01932106302 | BV161: 0.4742648391 | BW161: -0.2273585283 | BX161: -0.003715781007 | BY161: 0.01574641583 | CG161: -0.0306 | CH161: 0.0193
G162: 123 | J162: -0.03258495335 | K162: 0.02194684656 | L162: 0.008206891413 | M162: 0.01363130675 | P162: -0.01995569137 | Q162: -0.5919400963 | R162: 0.0268352192 | S162: -0.616053704 | V162: -0.01816431875 | W162: -0.6693716615 | X162: 0.02013218401 | Y162: -0.6693881914 | Z162: -0.4230352097 | AB162: 0.009137415008 | AC162: -0.6620753309 | AD162: -0.4364717856 | AL162: 0.008206891413 | AM162: 0.01363130675 | AP162: -0.01995569137 | AQ162: -0.5919400963 | AS162: 123 | AT162: -0.0025 | AU162: 0.0157 | AX162: 0.4735 | AY162: -0.2270 | AZ162: 0.49 | BA162: -0.18 | BD162: 0.55 | BE162: -0.21 | BF162: 0.54 | BG162: -0.17 | BJ162: 0.54 | BK162: -0.19 | BS162: 123 | BT162: -0.03258495335 | BU162: 0.02194684656 | BV162: 0.4735458183 | BW162: -0.2269617654 | BX162: -0.00247519152 | BY162: 0.0157174749 | CG162: -0.0326 | CH162: 0.0219
G163: 124 | J163: -0.03493649649 | K163: 0.02518928055 | L163: 0.008978200686 | M163: 0.01265536656 | P163: -0.01957549518 | Q163: -0.5910726662 | R163: 0.02709802207 | S163: -0.6150717685 | V163: -0.01726204731 | W163: -0.6692636639 | X163: 0.01918603346 | Y163: -0.6691721311 | Z163: -0.4234835918 | AB163: 0.009160965256 | AC163: -0.6625326694 | AD163: -0.4317732792 | AL163: 0.008978200686 | AM163: 0.01265536656 | AP163: -0.01957549518 | AQ163: -0.5910726662 | AS163: 124 | AT163: -0.0013 | AU163: 0.0155 | AX163: 0.4726 | AY163: -0.2267 | AZ163: 0.49 | BA163: -0.18 | BD163: 0.55 | BE163: -0.21 | BF163: 0.54 | BG163: -0.18 | BJ163: 0.54 | BK163: -0.19 | BS163: 124 | BT163: -0.03493649649 | BU163: 0.02518928055 | BV163: 0.4726255461 | BW163: -0.2267379729 | BX163: -0.001257012076 | BY163: 0.01546564939 | CG163: -0.0349 | CH163: 0.0252
G164: 125 | J164: -0.03708372597 | K164: 0.0282065107 | L164: 0.009588538521 | M164: 0.01155437821 | P164: -0.01931370916 | Q164: -0.5901781961 | R164: 0.02719033579 | S164: -0.6141320037 | V164: -0.01642664395 | W164: -0.6688866321 | X164: 0.01829269404 | Y164: -0.668801835 | Z164: -0.2731248715 | AB164: 0.009162795586 | AC164: -0.6629675558 | AD164: -0.2847662595 | AL164: 0.009588538521 | AM164: 0.01155437821 | AP164: -0.01931370916 | AQ164: -0.5901781961 | AS164: 125 | AT164: -0.0001 | AU164: 0.0150 | AX164: 0.4717 | AY164: -0.2266 | AZ164: 0.49 | BA164: -0.18 | BD164: 0.55 | BE164: -0.21 | BF164: 0.54 | BG164: -0.18 | BJ164: 0.54 | BK164: -0.19 | BS164: 125 | BT164: -0.03708372597 | BU164: 0.0282065107 | BV164: 0.4716992062 | BW164: -0.2266354871 | BX164: -8.176450235e-05 | BY164: 0.01501456098 | CG164: -0.0371 | CH164: 0.0282
G165: 126 | J165: -0.0384562133 | K165: 0.03015668277 | L165: 0.01003736802 | M165: 0.01035962816 | P165: -0.01915334783 | Q165: -0.5894578757 | R165: 0.02691809655 | S165: -0.6132938589 | V165: -0.01569300693 | W165: -0.668240371 | X165: 0.01751019941 | Y165: -0.6683339212 | Z165: 0.0278993569 | AA165: -0.6590724505 | AB165: 0.009151691583 | AC165: -0.6633594905 | AD165: 0.006033012323 | AE165: -0.6521314317 | AL165: 0.01003736802 | AM165: 0.01035962816 | AP165: -0.01915334783 | AQ165: -0.5894578757 | AS165: 126 | AT165: 0.0010 | AU165: 0.0144 | AX165: 0.4710 | AY165: -0.2266 | AZ165: 0.49 | BA165: -0.18 | BD165: 0.55 | BE165: -0.21 | BF165: 0.54 | BG165: -0.18 | BH165: 0.53 | BI165: -0.17 | BJ165: 0.54 | BK165: -0.19 | BL165: 0.53 | BM165: -0.19 | BS165: 126 | BT165: -0.0384562133 | BU165: 0.03015668277 | BV165: 0.4709619827 | BW165: -0.2266026444 | BX165: 0.001030029377 | BY165: 0.01438783138 | CG165: -0.0385 | CH165: 0.0302
G166: 127 | J166: -0.307716729 | L166: 0.01063646356 | M166: 0.006777086284 | P166: -0.01898085751 | Q166: -0.5890606697 | R166: 0.02609448864 | S166: -0.6125030099 | V166: -0.0145937269 | W166: -0.6663820896 | X166: 0.01702526767 | Y166: -0.6678909325 | Z166: 0.02786463757 | AA166: -0.6578159492 | AB166: 0.009096114624 | AC166: -0.6641711484 | AD166: 0.006547416452 | AE166: -0.6528189037 | AL166: 0.01063646356 | AM166: 0.006777086284 | AP166: -0.01898085751 | AQ166: -0.5890606697 | AS166: 127 | AT166: 0.0038 | AU166: 0.0120 | AX166: 0.4705 | AY166: -0.2265 | AZ166: 0.49 | BA166: -0.18 | BD166: 0.55 | BE166: -0.21 | BF166: 0.54 | BG166: -0.18 | BH166: 0.53 | BI166: -0.17 | BJ166: 0.54 | BK166: -0.19 | BL166: 0.53 | BM166: -0.19 | BS166: 127 | BV166: 0.4705408585 | BW166: -0.2265017487 | BX166: 0.003791776713 | BY166: 0.01202853628
G167: 128 | J167: -0.4427588396 | L167: 0.01053398134 | M167: 0.002912819991 | P167: -0.0185777944 | Q167: -0.5886650255 | R167: 0.02500584892 | S167: -0.6119187197 | V167: -0.01370735087 | W167: -0.6639265837 | X167: 0.01658758284 | Y167: -0.6673378311 | Z167: 0.02777437382 | AA167: -0.6566106971 | AB167: 0.008981381393 | AC167: -0.6654941273 | AD167: 0.007095498657 | AE167: -0.6537640862 | AL167: 0.01053398134 | AM167: 0.002912819991 | AP167: -0.0185777944 | AQ167: -0.5886650255 | AS167: 128 | AT167: 0.0062 | AU167: 0.0090 | AX167: 0.4701 | AY167: -0.2262 | AZ167: 0.49 | BA167: -0.18 | BD167: 0.54 | BE167: -0.21 | BF167: 0.54 | BG167: -0.18 | BH167: 0.53 | BI167: -0.17 | BJ167: 0.54 | BK167: -0.19 | BL167: 0.53 | BM167: -0.19 | BS167: 128 | BV167: 0.4700812339 | BW167: -0.2261735119 | BX167: 0.006197173271 | BY167: 0.009002462254
G168: 129 | J168: -0.4439627169 | L168: 0.009914955538 | M168: -0.001017045336 | P168: -0.01788148799 | Q168: -0.5883374208 | R168: 0.02386400761 | S168: -0.6114888605 | V168: -0.01304349418 | W168: -0.6613650651 | X168: 0.01617069057 | Y168: -0.6667402161 | Z168: 0.02764940701 | AA168: -0.6554264328 | AB168: 0.008837899777 | AC168: -0.6669270237 | AD168: 0.007646997478 | AE168: -0.6548981588 | AL168: 0.009914955538 | AM168: -0.001017045336 | AP168: -0.01788148799 | AQ168: -0.5883374208 | AS168: 129 | AT168: =IMREAL(IMPRODUCT(COMPLEX((AL168-AT$35),(AM168-AU$35)),AT$36))+AT$37 -> 0.0082 | AU168: =IMAGINARY(IMPRODUCT(COMPLEX((AL168-AT$35),(AM168-AU$35)),AT$36))+AU$37 -> 0.0056 | AX168: =IMREAL(IMPRODUCT(COMPLEX((AP168-AX$35),(AQ168-AY$35)),AX$36))+AX$37 -> 0.4696 | AY168: =IMAGINARY(IMPRODUCT(COMPLEX((AP168-AX$35),(AQ168-AY$35)),AX$36))+AY$37 -> -0.2255 | AZ168: =IMREAL(IMPRODUCT(COMPLEX(R168-AZ$35,S168-BA$35),AZ$36))+AZ$37 -> 0.49 | BA168: =IMAGINARY(IMPRODUCT(COMPLEX(R168-AZ$35,S168-BA$35),AZ$36))+BA$37 -> -0.18 | BD168: =IMREAL(IMPRODUCT(COMPLEX(V168-BD$35,W168-BE$35),BD$36))+BD$37 -> 0.54 | BE168: =IMAGINARY(IMPRODUCT(COMPLEX(V168-BD$35,W168-BE$35),BD$36))+BE$37 -> -0.21 | BF168: =IMREAL(IMPRODUCT(COMPLEX(X168-BF$35,Y168-BG$35),BF$36))+BF$37 -> 0.54 | BG168: =IMAGINARY(IMPRODUCT(COMPLEX(X168-BF$35,Y168-BG$35),BF$36))+BG$37 -> -0.18 | BH168: =IMREAL(IMPRODUCT(COMPLEX(Z168-BH$35,AA168-BI$35),BH$36))+BH$37 -> 0.53 | BI168: =IMAGINARY(IMPRODUCT(COMPLEX(Z168-BH$35,AA168-BI$35),BH$36))+BI$37 -> -0.17 | BJ168: =IMREAL(IMPRODUCT(COMPLEX(AB168-BJ$35,AC168-BK$35),BJ$36))+BJ$37 -> 0.54 | BK168: =IMAGINARY(IMPRODUCT(COMPLEX(AB168-BJ$35,AC168-BK$35),BJ$36))+BK$37 -> -0.19 | BL168: =IMREAL(IMPRODUCT(COMPLEX(AD168-BL$35,AE168-BM$35),BL$36))+BL$37 -> 0.53 | BM168: =IMAGINARY(IMPRODUCT(COMPLEX(AD168-BL$35,AE168-BM$35),BL$36))+BM$37 -> -0.19 | BS168: 129 | BV168: 0.4696376939 | BW168: -0.2255446719 | BX168: 0.008249040735 | BY168: 0.005594108642
G169: 130 | J169: -0.3117085327 | L169: 0.008964420334 | M169: -0.004796384309 | P169: -0.01682926778 | Q169: -0.5881443332 | R169: 0.02288079491 | S169: -0.6111613046 | V169: -0.01261177216 | W169: -0.6591887456 | X169: 0.01574813648 | Y169: -0.6661636865 | Z169: 0.02751057849 | AA169: -0.6542328948 | AB169: 0.008696077659 | AC169: -0.6680684338 | AD169: 0.008171651456 | AE169: -0.656152301 | AL169: =L169 -> 0.008964420334 | AM169: =IF(M169>AM$33,M169,IF(M169<AM$34,M169+AM$37,(M169-AM$33)*AM$38+AM$33)) -> -0.004796384309 | AP169: =P169 -> -0.01682926778 | AQ169: =IF(Q169>AQ$33,Q169,IF(Q169<AQ$34,Q169+AQ$37,(Q169-AQ$33)*AQ$38+AQ$33)) -> -0.5881443332 | AS169: 130 | AT169: 0.0100 | AU169: 0.0021 | AX169: 0.4693 | AY169: -0.2245 | AZ169: 0.49 | BA169: -0.18 | BD169: 0.54 | BE169: -0.21 | BF169: 0.54 | BG169: -0.18 | BH169: 0.53 | BI169: -0.17 | BJ169: 0.54 | BK169: -0.19 | BL169: 0.53 | BM169: -0.19 | BS169: 130 | BT169: =IF(ISERROR(MATCH($BS169,$CI$218:$CI$403,0)),CG169,IF(ISNA(INDEX($CJ$218:$CJ$403,MATCH($BS169,$CI$218:$CI$403,0),1)),NA(),CG169)) ->  | BU169: =IF(ISERROR(MATCH($BS169,$CI$218:$CI$403,0)),CH169,IF(ISNA(INDEX($CJ$218:$CJ$403,MATCH($BS169,$CI$218:$CI$403,0),1)),NA(),CH169)) ->  | BV169: 0.4692648236 | BW169: -0.2245419666 | BX169: =IF(ISERROR(MATCH($AS169,$ER$218:$ER$247,0)),AT169,IF(ISNA(INDEX($ES$218:$ES$247,MATCH($AS169,$ER$218:$ER$247,0),1)),NA(),AT169)) -> 0.009950200787 | BY169: =IF(ISERROR(MATCH($AS169,$ER$218:$ER$247,0)),AU169,IF(ISNA(INDEX($ES$218:$ES$247,MATCH($AS169,$ER$218:$ER$247,0),1)),NA(),AU169)) -> 0.002087974772 | CG169: =IMREAL(IMPRODUCT(COMPLEX((J169-CG$35),(K169-CH$35)),CG$36))+CG$37 ->  | CH169: =IMAGINARY(IMPRODUCT(COMPLEX((J169-CG$35),(K169-CH$35)),CG$36))+CH$37 -> 
G170: 131 | J170: -0.04637645873 | K170: 0.03872872912 | L170: 0.007867409905 | M170: -0.008209071539 | P170: -0.01535846325 | Q170: -0.5881522402 | R170: 0.02226804104 | S170: -0.6108839242 | V170: -0.01242180016 | W170: -0.657888837 | X170: 0.01529346619 | Y170: -0.6656738413 | Z170: 0.02737872964 | AA170: -0.6529998217 | AB170: 0.008586322927 | AC170: -0.6685169542 | AD170: 0.008639199132 | AE170: -0.6574576925 | AL170: 0.007867409905 | AM170: -0.008209071539 | AP170: -0.01535846325 | AQ170: -0.5881522402 | AS170: 131 | AT170: 0.0113 | AU170: -0.0012 | AX170: 0.4690 | AY170: -0.2231 | AZ170: 0.48 | BA170: -0.18 | BD170: 0.54 | BE170: -0.21 | BF170: 0.54 | BG170: -0.18 | BH170: 0.53 | BI170: -0.17 | BJ170: 0.54 | BK170: -0.19 | BL170: 0.53 | BM170: -0.19 | BS170: 131 | BT170: -0.04637645873 | BU170: 0.03872872912 | BV170: 0.469017208 | BW170: -0.2230921338 | BX170: 0.01130347511 | BY170: -0.001231440028 | CG170: -0.0464 | CH170: 0.0387
G171: 132 | J171: -0.04698800865 | K171: 0.0391347289 | L171: 0.007234538672 | M171: -0.01040567926 | P171: -0.01473517481 | Q171: -0.5882915731 | V171: -0.01235537138 | W171: -0.6568902414 | X171: 0.01482657744 | Y171: -0.6650031758 | Z171: 0.0272929319 | AA171: -0.6517815539 | AB171: 0.007749788821 | AC171: -0.6709650086 | AD171: 0.008955244278 | AE171: -0.6585049342 | AL171: 0.007234538672 | AM171: -0.01040567926 | AP171: -0.01473517481 | AQ171: -0.5882915731 | AS171: 132 | AT171: 0.0122 | AU171: -0.0033 | AX171: 0.4690 | AY171: -0.2225 | BD171: 0.54 | BE171: -0.21 | BF171: 0.54 | BG171: -0.18 | BH171: 0.52 | BI171: -0.17 | BJ171: 0.55 | BK171: -0.19 | BL171: 0.53 | BM171: -0.19 | BS171: 132 | BT171: -0.04698800865 | BU171: 0.0391347289 | BV171: =IF(ISERROR(MATCH($BS171,$DO$218:$DO$403)),AX171,IF(ISNA(INDEX($DP$218:$DP$403,MATCH($BS171,$DO$218:$DO$403),1)),NA(),AX171)) -> 0.4690461911 | BW171: =IF(ISERROR(MATCH($BS171,$DO$218:$DO$403)),AY171,IF(ISNA(INDEX($DP$218:$DP$403,MATCH($BS171,$DO$218:$DO$403),1)),NA(),AY171)) -> -0.2224541197 | BX171: 0.01223061985 | BY171: -0.003320940956 | CG171: -0.0470 | CH171: 0.0391
G172: 133 | J172: -0.04768067881 | K172: 0.03942231851 | L172: 0.006786506383 | M172: -0.01267847753 | P172: -0.01419217686 | Q172: -0.5885337949 | V172: -0.01233013722 | W172: -0.6558879363 | X172: 0.01466552465 | Y172: -0.6642239595 | Z172: 0.02722826837 | AA172: -0.6504949538 | AB172: 0.006676092732 | AC172: -0.6739478123 | AD172: 0.00919836907 | AE172: -0.6595041481 | AL172: 0.006786506383 | AM172: -0.01267847753 | AP172: -0.01419217686 | AQ172: -0.5885337949 | AS172: 133 | AT172: 0.0133 | AU172: -0.0053 | AX172: 0.4692 | AY172: -0.2219 | BD172: 0.54 | BE172: -0.21 | BF172: 0.54 | BG172: -0.18 | BH172: 0.52 | BI172: -0.17 | BJ172: 0.55 | BK172: -0.19 | BL172: 0.54 | BM172: -0.19 | BS172: 133 | BT172: -0.04768067881 | BU172: 0.03942231851 | BV172: 0.4691904425 | BW172: -0.2218773097 | BX172: 0.01334833377 | BY172: -0.005349995043 | CG172: -0.0477 | CH172: 0.0394
G173: 134 | J173: -0.04846750115 | K173: 0.03957778269 | L173: 0.006446048699 | M173: -0.01498920024 | P173: -0.01359841775 | Q173: -0.5887763096 | V173: -0.01232530515 | W173: -0.6548850455 | X173: 0.01468565015 | Y173: -0.6634209245 | Z173: 0.02713705285 | AA173: -0.6491927349 | AB173: 0.005602738304 | AC173: -0.6772855536 | AD173: 0.009352515411 | AE173: -0.6604190203 | AL173: 0.006446048699 | AM173: -0.01498920024 | AP173: -0.01359841775 | AQ173: -0.5887763096 | AS173: 134 | AT173: 0.0146 | AU173: -0.0073 | AX173: 0.4693 | AY173: -0.2213 | BD173: 0.53 | BE173: -0.21 | BF173: 0.54 | BG173: -0.18 | BH173: 0.52 | BI173: -0.17 | BJ173: 0.55 | BK173: -0.19 | BL173: 0.54 | BM173: -0.19 | BS173: 134 | BT173: -0.04846750115 | BU173: 0.03957778269 | BV173: 0.4693261676 | BW173: -0.2212504589 | BX173: 0.01457283198 | BY173: -0.007338953314 | CG173: -0.0485 | CH173: 0.0396
G174: 135 | J174: -0.04936150762 | K174: 0.03958740616 | L174: 0.006135901284 | M174: -0.01729958129 | P174: -0.01282284584 | Q174: -0.588916521 | V174: -0.01232008261 | W174: -0.6538846928 | X174: 0.01476229624 | Y174: -0.6626788029 | Z174: 0.02697159913 | AA174: -0.6479276107 | AB174: 0.004767229183 | AC174: -0.6807984209 | AD174: 0.009401625203 | AE174: -0.6612132372 | AL174: 0.006135901284 | AM174: -0.01729958129 | AP174: -0.01282284584 | AQ174: -0.588916521 | AS174: 135 | AT174: 0.0158 | AU174: -0.0093 | AX174: 0.4693 | AY174: -0.2205 | BD174: 0.53 | BE174: -0.21 | BF174: 0.54 | BG174: -0.18 | BH174: 0.52 | BI174: -0.17 | BJ174: 0.56 | BK174: -0.19 | BL174: 0.54 | BM174: -0.19 | BS174: 135 | BT174: -0.04936150762 | BU174: 0.03958740616 | BV174: 0.4693295723 | BW174: -0.2204623222 | BX174: 0.01582032959 | BY174: -0.009308166793 | CG174: -0.0494 | CH174: 0.0396
G175: 136 | J175: -0.05037573018 | K175: 0.03943747364 | L175: 0.005778799798 | M175: -0.01957135457 | P175: -0.01173440949 | Q175: -0.5888518331 | V175: -0.01229367705 | W175: -0.6528900019 | X175: 0.01477080524 | Y175: -0.6620823268 | Z175: 0.02668422102 | AA175: -0.6467522947 | AB175: 0.004407069012 | AC175: -0.6843066026 | AD175: 0.009329640351 | AE175: -0.661850485 | AL175: 0.005778799798 | AM175: -0.01957135457 | AP175: -0.01173440949 | AQ175: -0.5888518331 | AS175: 136 | AT175: 0.0170 | AU175: -0.0113 | AX175: 0.4691 | AY175: -0.2194 | BD175: 0.53 | BE175: -0.21 | BF175: 0.54 | BG175: -0.18 | BH175: 0.52 | BI175: -0.17 | BJ175: 0.56 | BK175: -0.19 | BL175: 0.54 | BM175: -0.19 | BS175: 136 | BT175: -0.05037573018 | BU175: 0.03943747364 | BV175: 0.4690768621 | BW175: -0.2194016546 | BX175: 0.01700704169 | BY175: -0.0112779865 | CG175: -0.0504 | CH175: 0.0394
G176: 137 | J176: -0.05552981795 | K176: 0.03753560602 | L176: 0.005407934229 | M176: -0.02112012302 | P176: -0.01126815525 | Q176: -0.5887389546 | V176: -0.01185942511 | W176: -0.6506397533 | X176: 0.01473267743 | Y176: -0.6612733697 | Z176: -0.273741465 | AB176: 0.004096677552 | AC176: -0.6862213395 | AL176: 0.005407934229 | AM176: -0.02112012302 | AP176: -0.01126815525 | AQ176: -0.5887389546 | AS176: 137 | AT176: 0.0177 | AU176: -0.0127 | AX176: 0.4689 | AY176: -0.2190 | BD176: 0.53 | BE176: -0.21 | BF176: 0.54 | BG176: -0.18 | BJ176: 0.56 | BK176: -0.19 | BS176: 137 | BT176: -0.05552981795 | BU176: 0.03753560602 | BV176: 0.4688847343 | BW176: -0.2189620849 | BX176: 0.01771847136 | BY176: -0.01270279976 | CG176: -0.0555 | CH176: 0.0375
G177: 138 | J177: -0.06027366771 | K177: 0.03437159152 | L177: 0.004923588189 | M177: -0.02262974682 | P177: -0.01076597772 | Q177: -0.5885403678 | V177: -0.01085279232 | W177: -0.6465796742 | X177: 0.01478694469 | Y177: -0.6603705044 | Z177: -0.4237016126 | AB177: 0.003352571053 | AC177: -0.6889265837 | AL177: 0.004923588189 | AM177: -0.02262974682 | AP177: -0.01076597772 | AQ177: -0.5885403678 | AS177: 138 | AT177: 0.0183 | AU177: -0.0142 | AX177: 0.4686 | AY177: -0.2185 | BD177: 0.53 | BE177: -0.21 | BF177: 0.53 | BG177: -0.18 | BJ177: 0.57 | BK177: -0.19 | BS177: 138 | BT177: -0.06027366771 | BU177: 0.03437159152 | BV177: 0.4686019623 | BW177: -0.2185020208 | BX177: 0.01831780824 | BY177: -0.01417057032 | CG177: -0.0603 | CH177: 0.0344
G178: 139 | J178: -0.06443156778 | K178: 0.03030031895 | L178: 0.004409712822 | M178: -0.02412843744 | P178: -0.01024759568 | Q178: -0.5882611489 | V178: -0.00959533108 | W178: -0.6419124136 | X178: 0.0148864089 | Y178: -0.6594340587 | Z178: -0.4229629645 | AB178: 0.002407762748 | AC178: -0.6918686483 | AL178: 0.004409712822 | AM178: -0.02412843744 | AP178: -0.01024759568 | AQ178: -0.5882611489 | AS178: 139 | AT178: 0.0189 | AU178: -0.0156 | AX178: 0.4682 | AY178: -0.2180 | BD178: 0.52 | BE178: -0.21 | BF178: 0.53 | BG178: -0.18 | BJ178: 0.57 | BK178: -0.19 | BS178: 139 | BT178: -0.06443156778 | BU178: 0.03030031895 | BV178: 0.4682369693 | BW178: -0.21804 | BX178: 0.01888749663 | BY178: -0.01564894666 | CG178: -0.0644 | CH178: 0.0303
G179: 140 | J179: -0.06782780644 | K179: 0.02567667714 | L179: 0.003950259272 | M179: -0.02564440638 | P179: -0.009732727866 | Q179: -0.587906374 | V179: -0.008408593799 | W179: -0.6378406204 | X179: 0.01498387194 | Y179: -0.6585243601 | Z179: -0.2712922635 | AB179: 0.001495265871 | AC179: -0.6944938462 | AL179: 0.003950259272 | AM179: -0.02564440638 | AP179: -0.009732727866 | AQ179: -0.587906374 | AS179: 140 | AT179: 0.0195 | AU179: -0.0171 | AX179: 0.4678 | AY179: -0.2176 | BD179: 0.52 | BE179: -0.21 | BF179: 0.53 | BG179: -0.18 | BJ179: 0.57 | BK179: -0.19 | BS179: 140 | BT179: -0.06782780644 | BU179: 0.02567667714 | BV179: 0.4677981783 | BW179: -0.2175945602 | BX179: 0.01950998084 | BY179: -0.01710557729 | CG179: -0.0678 | CH179: 0.0257
G180: 141 | J180: -0.07028667201 | K180: 0.0208555549 | L180: 0.003629178684 | M180: -0.02720586513 | P180: -0.009241093044 | Q180: -0.5874811191 | V180: -0.007614132882 | W180: -0.6355669436 | X180: 0.01503213572 | Y180: -0.6577017366 | Z180: 0.03154374766 | AA180: -0.6616755867 | AB180: 0.0008480936582 | AC180: -0.6962484902 | AL180: 0.003629178684 | AM180: -0.02720586513 | AP180: -0.009241093044 | AQ180: -0.5874811191 | AS180: 141 | AT180: 0.0203 | AU180: -0.0185 | AX180: 0.4673 | AY180: -0.2172 | BD180: 0.51 | BE180: -0.21 | BF180: 0.53 | BG180: -0.18 | BH180: 0.53 | BI180: -0.16 | BJ180: 0.57 | BK180: -0.19 | BS180: 141 | BT180: -0.07028667201 | BU180: 0.0208555549 | BV180: 0.4672940125 | BW180: -0.2171842392 | BX180: 0.02026770518 | BY180: -0.01850811071 | CG180: -0.0703 | CH180: 0.0209
G181: 142 | J181: -0.3242354101 | L181: 0.003506880089 | M181: -0.02817021322 | V181: -0.007250556095 | W181: -0.6347027674 | X181: 0.0150663995 | Y181: -0.6560622488 | Z181: 0.03203265732 | AA181: -0.6604074852 | AL181: 0.003506880089 | AM181: -0.02817021322 | AS181: 142 | AT181: 0.0208 | AU181: -0.0193 | BD181: 0.51 | BE181: -0.21 | BF181: 0.53 | BG181: -0.18 | BH181: 0.53 | BI181: -0.16 | BS181: 142 | BX181: 0.02079389003 | BY181: -0.01932545623
G182: 143 | J182: -0.4514061085 | L182: 0.003408546617 | M182: -0.02914632424 | V182: -0.006870677167 | W182: -0.63363008 | X182: 0.01513321875 | Y182: -0.6531625177 | Z182: 0.03241936135 | AA182: -0.6591049246 | AL182: 0.003408546617 | AM182: -0.02914632424 | AS182: 143 | AT182: 0.0213 | AU182: -0.0201 | BD182: 0.51 | BE182: -0.21 | BF182: 0.53 | BG182: -0.18 | BH182: 0.53 | BI182: -0.16 | BS182: 143 | BX182: 0.02134599429 | BY182: -0.02013640819
G183: 144 | J183: -0.4519799942 | L183: 0.003336179429 | M183: -0.03013424699 | V183: -0.006468199762 | W183: -0.6324908174 | X183: 0.01520975096 | Y183: -0.6498781732 | Z183: 0.0327402711 | AA183: -0.6577793263 | AL183: 0.003336179429 | AM183: -0.03013424699 | AS183: 144 | AT183: 0.0219 | AU183: -0.0209 | BD183: 0.51 | BE183: -0.21 | BF183: 0.52 | BG183: -0.18 | BH183: 0.53 | BI183: -0.16 | BS183: 144 | BX183: 0.02192558231 | BY183: -0.02093971765
G184: 145 | J184: -0.3261382945 | L184: 0.003291779686 | M184: -0.03113403028 | V184: -0.006036827545 | W184: -0.6314269156 | X184: 0.0152731536 | Y184: -0.6470848453 | Z184: 0.03303179796 | AA184: -0.6564421115 | AL184: 0.003291779686 | AM184: -0.03113403028 | AS184: 145 | AT184: 0.0225 | AU184: -0.0217 | BD184: 0.51 | BE184: -0.21 | BF184: 0.52 | BG184: -0.18 | BH184: 0.53 | BI184: -0.16 | BS184: 145 | BX184: 0.02253421844 | BY184: -0.02173413569
G185: 146 | J185: -0.07406223643 | K185: -0.01947577066 | L185: 0.00327734855 | M185: -0.03214572292 | V185: -0.005570264179 | W185: -0.6305803107 | X185: 0.01530058414 | Y185: -0.645658164 | Z185: 0.03333035328 | AA185: -0.6551047014 | AL185: 0.00327734855 | AM185: -0.03214572292 | AS185: 146 | AT185: 0.0232 | AU185: -0.0225 | BD185: 0.51 | BE185: -0.21 | BF185: 0.52 | BG185: -0.18 | BH185: 0.53 | BI185: -0.16 | BS185: 146 | BT185: -0.07406223643 | BU185: -0.01947577066 | BX185: 0.02317346704 | BY185: -0.02251841337 | CG185: -0.0741 | CH185: -0.0195
G186: 147 | J186: -0.07049252314 | K186: -0.01500282603 | L186: -0.2861319624 | V186: -0.004852791018 | W186: -0.629696188 | X186: 0.01512296077 | Y186: -0.6423376033 | Z186: 0.03367108755 | AA186: -0.6539666265 | AL186: -0.2861319624 | AS186: 147 | BD186: 0.51 | BE186: -0.21 | BF186: 0.52 | BG186: -0.18 | BH186: 0.53 | BI186: -0.16 | BS186: 147 | BT186: -0.07049252314 | BU186: -0.01500282603 | CG186: -0.0705 | CH186: -0.0150
G187: 148 | J187: -0.06394400849 | K187: -0.008643030623 | L187: -0.4320069269 | V187: -0.00393383511 | W187: -0.6286547057 | X187: 0.01464833581 | Y187: -0.638584011 | Z187: 0.03411436912 | AA187: -0.6526478614 | AL187: -0.4320069269 | AS187: 148 | BD187: 0.51 | BE187: -0.20 | BF187: 0.51 | BG187: -0.18 | BH187: 0.52 | BI187: -0.16 | BS187: 148 | BT187: -0.06394400849 | BU187: -0.008643030623 | CG187: -0.0639 | CH187: -0.0086
G188: 149 | J188: -0.05694206004 | K188: -0.001699677146 | L188: -0.4354278303 | V188: -0.002979688053 | W188: -0.6274927633 | X188: 0.01401532629 | Y188: -0.6349678643 | Z188: 0.03450015391 | AA188: -0.6512825327 | AL188: -0.4354278303 | AS188: 149 | BD188: 0.51 | BE188: -0.20 | BF188: 0.51 | BG188: -0.19 | BH188: 0.52 | BI188: -0.16 | BS188: 149 | BT188: -0.05694206004 | BU188: -0.001699677146 | CG188: -0.0569 | CH188: -0.0017
G189: 150 | J189: -0.05201204536 | K189: 0.004523941695 | L189: -0.2974749578 | V189: -0.002156641447 | W189: -0.6262472602 | X189: 0.0133625492 | Y189: -0.6320596405 | Z189: 0.03466839786 | AA189: -0.650004767 | AL189: -0.2974749578 | AS189: 150 | BD189: 0.50 | BE189: -0.20 | BF189: 0.51 | BG189: -0.19 | BH189: 0.52 | BI189: -0.16 | BS189: 150 | BT189: -0.05201204536 | BU189: 0.004523941695 | CG189: -0.0520 | CH189: 0.0045
G190: 151 | J190: -0.05167933201 | K190: 0.008724533193 | L190: -0.01922859474 | M190: -0.2751576443 | V190: -0.001630986888 | W190: -0.6249550959 | X190: 0.01282862155 | Y190: -0.6304298168 | Z190: 0.0344590569 | AA190: -0.6489486909 | AL190: -0.01922859474 | AM190: -0.2751576443 | AS190: 151 | AT190: 0.1621 | AU190: -0.2231 | BD190: 0.50 | BE190: -0.20 | BF190: 0.51 | BG190: -0.19 | BH190: 0.52 | BI190: -0.16 | BS190: 151 | BT190: -0.05167933201 | BU190: 0.008724533193 | BX190: 0.1621379663 | BY190: -0.2231428868 | CG190: -0.0517 | CH190: 0.0087
G191: 152 | J191: -0.3144744789 | L191: -0.01990965653 | M191: -0.2834232364 | V191: -0.001352247938 | W191: -0.6233488144 | X191: 0.01186868251 | Y191: -0.6287368997 | AL191: -0.01990965653 | AM191: -0.2834232364 | AS191: 152 | AT191: 0.1669 | AU191: -0.2299 | BD191: 0.50 | BE191: -0.20 | BF191: 0.50 | BG191: -0.19 | BS191: 152 | BX191: 0.1669292629 | BY191: -0.2299124759
G192: 153 | J192: -0.4455151379 | L192: -0.02064865437 | M192: -0.2901493013 | V192: -0.00122457224 | W192: -0.6216020612 | X192: 0.01098078528 | Y192: -0.6273325402 | AL192: -0.02064865437 | AM192: -0.2901493013 | AS192: 153 | AT192: 0.1707 | AU192: -0.2355 | BD192: 0.50 | BE192: -0.20 | BF192: 0.50 | BG192: -0.19 | BS192: 153 | BX192: 0.1706865889 | BY192: -0.2355399591
G193: 154 | J193: -0.4444718497 | L193: -0.02142762663 | M193: -0.2958165079 | V193: -0.001216234069 | W193: -0.6198789314 | X193: 0.01017303209 | Y193: -0.6261568012 | AL193: -0.02142762663 | AM193: -0.2958165079 | AS193: 154 | AT193: 0.1737 | AU193: -0.2404 | BD193: 0.50 | BE193: -0.20 | BF193: 0.50 | BG193: -0.19 | BS193: 154 | BX193: 0.1737326717 | BY193: -0.2403820049
G194: 155 | J194: -0.3110151548 | L194: -0.02222861166 | M194: -0.3009055254 | V194: -0.001295507703 | W194: -0.6183435203 | X194: 0.009453525232 | Y194: -0.6251497454 | AL194: -0.02222861166 | AM194: -0.3009055254 | AS194: 155 | AT194: 0.1764 | AU194: -0.2448 | BD194: 0.50 | BE194: -0.20 | BF194: 0.50 | BG194: -0.19 | BS194: 155 | BX194: 0.1763902389 | BY194: -0.2447952818
G195: 156 | J195: -0.04481559383 | K195: -0.04499260709 | L195: -0.02303364781 | M195: -0.3058970229 | V195: -0.001430667418 | W195: -0.617159923 | X195: 0.008830366951 | Y195: -0.6242514356 | AL195: -0.02303364781 | AM195: -0.3058970229 | AS195: 156 | AT195: 0.1790 | AU195: -0.2491 | BF195: 0.50 | BG195: -0.19 | BS195: 156 | BT195: -0.04481559383 | BU195: -0.04499260709 | BX195: 0.1789820182 | BY195: -0.2491364579 | CG195: -0.0448 | CH195: -0.0450
G196: 157 | J196: -0.04612959193 | K196: -0.04875104776 | L196: -0.02360798916 | M196: -0.3081744742 | X196: 0.00827620805 | Y196: -0.6232280777 | AL196: -0.02360798916 | AM196: -0.3081744742 | AS196: 157 | AT196: 0.1800 | AU196: -0.2513 | BF196: 0.50 | BG196: -0.19 | BS196: 157 | BT196: -0.04612959193 | BU196: -0.04875104776 | BX196: 0.1800059648 | BY196: -0.2512502664 | CG196: -0.0461 | CH196: -0.0488
G197: 158 | J197: -0.0482510341 | K197: -0.05345662329 | L197: -0.02442603286 | M197: -0.3101475539 | X197: 0.007836652224 | Y197: -0.6220319366 | AL197: -0.02442603286 | AM197: -0.3101475539 | AS197: 158 | AT197: 0.1806 | AU197: -0.2533 | BF197: 0.50 | BG197: -0.19 | BS197: 158 | BT197: -0.0482510341 | BU197: -0.05345662329 | BX197: 0.1806475781 | BY197: -0.2532875615 | CG197: -0.0483 | CH197: -0.0535
G198: 159 | J198: -0.05078276307 | K198: -0.05840453453 | L198: -0.02530538042 | M198: -0.3120170613 | X198: 0.007548696545 | Y198: -0.6207577014 | AL198: -0.02530538042 | AM198: -0.3120170613 | AS198: 159 | AT198: 0.1812 | AU198: -0.2553 | BF198: 0.50 | BG198: -0.19 | BS198: 159 | BT198: -0.05078276307 | BU198: -0.05840453453 | BX198: 0.1811756549 | BY198: -0.2552849209 | CG198: -0.0508 | CH198: -0.0584
G199: 160 | J199: -0.05332762162 | K199: -0.06288998235 | L199: -0.02606363334 | M199: -0.3139837958 | X199: 0.007449338088 | Y199: -0.6195000612 | AL199: -0.02606363334 | AM199: -0.3139837958 | AS199: 160 | AT199: 0.1819 | AU199: -0.2573 | BF199: 0.50 | BG199: -0.20 | BS199: 160 | BT199: -0.05332762162 | BU199: -0.06288998235 | BX199: 0.1818589921 | BY199: -0.2572789226 | CG199: -0.0533 | CH199: -0.0629
G200: 161 | J200: -0.05548845249 | K200: -0.0662081676 | L200: -0.02651839311 | M200: -0.3162485569 | X200: 0.007575573926 | Y200: -0.618353705 | AL200: -0.02651839311 | AM200: -0.3162485569 | AS200: 161 | AT200: =IMREAL(IMPRODUCT(COMPLEX((AL200-AT$35),(AM200-AU$35)),AT$36))+AT$37 -> 0.1830 | AU200: =IMAGINARY(IMPRODUCT(COMPLEX((AL200-AT$35),(AM200-AU$35)),AT$36))+AU$37 -> -0.2593 | BF200: =IMREAL(IMPRODUCT(COMPLEX(X200-BF$35,Y200-BG$35),BF$36))+BF$37 -> 0.49 | BG200: =IMAGINARY(IMPRODUCT(COMPLEX(X200-BF$35,Y200-BG$35),BF$36))+BG$37 -> -0.20 | BS200: 161 | BT200: -0.05548845249 | BU200: -0.0662081676 | BX200: 0.1829663863 | BY200: -0.2593061442 | CG200: -0.0555 | CH200: -0.0662
G201: 162 | J201: -0.05907245049 | K201: -0.06996397259 | L201: -0.02675572592 | M201: -0.3178292463 | X201: 0.007932358155 | Y201: -0.6170805762 | AL201: -0.02675572592 | AM201: -0.3178292463 | AS201: 162 | AT201: 0.1838 | AU201: -0.2607 | BF201: 0.49 | BG201: -0.20 | BS201: 162 | BT201: -0.05907245049 | BU201: -0.06996397259 | BX201: 0.1838006264 | BY201: -0.2606695771 | CG201: -0.0591 | CH201: -0.0700
G202: 163 | J202: -0.06366854787 | K202: -0.07373227264 | L202: -0.02707627775 | M202: -0.3196086852 | X202: 0.008391836109 | Y202: -0.6157857762 | AL202: -0.02707627775 | AM202: -0.3196086852 | AS202: 163 | AT202: 0.1847 | AU202: -0.2622 | BF202: 0.49 | BG202: -0.19 | BS202: 163 | BT202: -0.06366854787 | BU202: -0.07373227264 | BX202: 0.1846988707 | BY202: -0.2622387531 | CG202: -0.0637 | CH202: -0.0737
... 185 more rows

Sheet Creative Commons Licence
